Organisation ,Directorate ,Pay Date ,Amount SUM,Supplier name ,Type of Expenditure ,Category Name
Leeds City Council,Adults and Health,15/04/2019, 120.00 ,Airedale Community Trading (Act) Ltd,Assessment And Care Management,Supplies & Services
Leeds City Council,Adults and Health,03/04/2019, 700.00 ,New Wortley Community Association,Assessment And Care Management,Supplies & Services
Leeds City Council,Adults and Health,10/04/2019, 587.84 ,St Annes Community Services,Assessment And Care Management,Supplies & Services
Leeds City Council,Adults and Health,08/04/2019," 1,152.92 ",St Annes Community Services,Assessment And Care Management,Supplies & Services
Leeds City Council,Adults and Health,08/04/2019," 1,092.24 ",St Annes Community Services,Assessment And Care Management,Supplies & Services
Leeds City Council,Adults and Health,08/04/2019," 1,071.36 ",St Annes Community Services,Assessment And Care Management,Supplies & Services
Leeds City Council,Adults and Health,08/04/2019," 1,071.36 ",St Annes Community Services,Assessment And Care Management,Supplies & Services
Leeds City Council,Adults and Health,08/04/2019," 1,071.36 ",St Annes Community Services,Assessment And Care Management,Supplies & Services
Leeds City Council,Adults and Health,08/04/2019," 1,071.36 ",St Annes Community Services,Assessment And Care Management,Supplies & Services
Leeds City Council,Adults and Health,08/04/2019," 1,071.36 ",St Annes Community Services,Assessment And Care Management,Supplies & Services
Leeds City Council,Adults and Health,03/04/2019, 232.00 ,Second Chance Headway Centre,Assessment And Care Management,Supplies & Services
Leeds City Council,Adults and Health,03/04/2019, 304.00 ,Second Chance Headway Centre,Assessment And Care Management,Supplies & Services
Leeds City Council,Adults and Health,03/04/2019, 304.00 ,Second Chance Headway Centre,Assessment And Care Management,Supplies & Services
Leeds City Council,Adults and Health,18/04/2019, 761.30 ,Specialist Autism Services,Assessment And Care Management,Supplies & Services
Leeds City Council,Adults and Health,18/04/2019, 380.65 ,Specialist Autism Services,Assessment And Care Management,Supplies & Services
Leeds City Council,Adults and Health,18/04/2019, 761.30 ,Specialist Autism Services,Assessment And Care Management,Supplies & Services
Leeds City Council,Adults and Health,18/04/2019, 380.65 ,Specialist Autism Services,Assessment And Care Management,Supplies & Services
Leeds City Council,Adults and Health,18/04/2019, 380.65 ,Specialist Autism Services,Assessment And Care Management,Supplies & Services
Leeds City Council,Adults and Health,18/04/2019," 1,120.30 ",Specialist Autism Services,Assessment And Care Management,Supplies & Services
Leeds City Council,Adults and Health,15/04/2019, 304.52 ,Specialist Autism Services,Assessment And Care Management,Supplies & Services
Leeds City Council,Adults and Health,29/04/2019, 609.04 ,Specialist Autism Services,Assessment And Care Management,Supplies & Services
Leeds City Council,Adults and Health,18/04/2019, 511.36 ,Affinity Trust,Assessment And Care Management,Supplies & Services
Leeds City Council,Adults and Health,10/04/2019," 1,486.43 ",Be Caring Ltd,Services For Older People Under 65 P/Dis,Supplies & Services
Leeds City Council,Adults and Health,03/04/2019," 3,796.80 ",The Disabilities Trust,Assessment And Care Management,Supplies & Services
Leeds City Council,Adults and Health,03/04/2019," 5,554.41 ",St Annes Residential Care,Assessment And Care Management,Supplies & Services
Leeds City Council,Adults and Health,03/04/2019," 1,691.40 ",Larchfield Residential Home,Assessment And Care Management,Supplies & Services
Leeds City Council,Adults and Health,04/04/2019, 703.08 ,The Riverside Group Ltd,Asylum Seekers,Supplies & Services
Leeds City Council,Adults and Health,11/04/2019, 527.85 ,The Riverside Group Ltd,Asylum Seekers,Supplies & Services
Leeds City Council,Adults and Health,18/04/2019," 3,300.00 ",Cgl,Drugs Commissioning Service,Supplies & Services
Leeds City Council,Adults and Health,02/04/2019," 43,000.00 ",Leeds Community Foundation,Other Adult Services,Supplies & Services
Leeds City Council,Adults and Health,11/04/2019," 7,434.00 ",Leeds Community Foundation,Other Adult Services,Supplies & Services
Leeds City Council,Adults and Health,10/04/2019," 42,496.00 ",St Annes Community Services,Other Adult Services,Supplies & Services
Leeds City Council,Adults and Health,09/04/2019,-810.75 ,Phoenix House,Other Adult Services,Supplies & Services
Leeds City Council,Adults and Health,09/04/2019, 620.00 ,Phoenix House,Other Adult Services,Supplies & Services
Leeds City Council,Adults and Health,09/04/2019," 1,825.79 ",Phoenix House,Other Adult Services,Supplies & Services
Leeds City Council,Adults and Health,09/04/2019," 2,287.19 ",Phoenix House,Other Adult Services,Supplies & Services
Leeds City Council,Adults and Health,29/04/2019, 170.00 ,Shared Lives Plus,Other Generic Services,Supplies & Services
Leeds City Council,Adults and Health,01/04/2019," 15,087.50 ",Leeds Jewish Welfare Board,Other Generic Services,Supplies & Services
Leeds City Council,Adults and Health,17/04/2019, 100.00 ,Bha,Public Health,Supplies & Services
Leeds City Council,Adults and Health,10/04/2019, 299.00 ,St Gemmas Hospice Services Limited,Public Health,Supplies & Services
Leeds City Council,Adults and Health,18/04/2019, 447.00 ,Medical Museum Trading Company Ltd,Public Health,Supplies & Services
Leeds City Council,Adults and Health,11/04/2019," 7,800.00 ",Humankind,Public Health,Supplies & Services
Leeds City Council,Adults and Health,03/04/2019," 15,275.00 ",Humankind,Public Health,Supplies & Services
Leeds City Council,Adults and Health,12/04/2019, 384.00 ,Henry,Public Health,Supplies & Services
Leeds City Council,Adults and Health,25/04/2019, 256.00 ,Henry,Public Health,Supplies & Services
Leeds City Council,Adults and Health,18/04/2019," 10,000.00 ",Leeds Citizens Advice Bureau,Public Health,Supplies & Services
Leeds City Council,Adults and Health,05/04/2019," 4,000.83 ",Leeds Ohas,Public Health,Supplies & Services
Leeds City Council,Adults and Health,18/04/2019," 4,000.83 ",Leeds Ohas,Public Health,Supplies & Services
Leeds City Council,Adults and Health,10/04/2019," 8,750.00 ",Space2 Leeds,Public Health,Supplies & Services
Leeds City Council,Adults and Health,23/04/2019," 19,630.00 ",Dazl,Public Health,Supplies & Services
Leeds City Council,Adults and Health,23/04/2019," 10,000.00 ",Dazl,Public Health,Supplies & Services
Leeds City Council,Adults and Health,25/04/2019," 40,000.00 ",Humankind,Public Health,Supplies & Services
Leeds City Council,Adults and Health,25/04/2019," 180,000.00 ",Humankind,Public Health,Supplies & Services
Leeds City Council,Adults and Health,25/04/2019," 1,914,932.50 ",Humankind,Public Health,Supplies & Services
Leeds City Council,Adults and Health,24/04/2019," 80,000.00 ",Leeds Community Foundation,Public Health,Supplies & Services
Leeds City Council,Adults and Health,24/04/2019," 166,500.00 ",Leeds Community Foundation,Public Health,Supplies & Services
Leeds City Council,Adults and Health,10/04/2019, 131.00 ,City Health Partnership Cic,Public Health,Supplies & Services
Leeds City Council,Adults and Health,10/04/2019," 3,147.00 ",Locala Community Partnership C.I.C.,Public Health,Supplies & Services
Leeds City Council,Adults and Health,10/04/2019," 6,162.00 ",Locala Community Partnership C.I.C.,Public Health,Supplies & Services
Leeds City Council,Adults and Health,10/04/2019,-12.00 ,City Health Partnership Cic,Public Health,Supplies & Services
Leeds City Council,Adults and Health,18/04/2019," 17,944.96 ",Advonet,Services For Adults Under 65 Learn/Dis,Supplies & Services
Leeds City Council,Adults and Health,29/04/2019," 1,500.00 ",Better Action For Families Cio,Services For Adults Under 65 Learn/Dis,Supplies & Services
Leeds City Council,Adults and Health,29/04/2019," 2,500.00 ",Better Action For Families Cio,Services For Adults Under 65 Learn/Dis,Supplies & Services
Leeds City Council,Adults and Health,10/04/2019," 19,119.15 ",Connect In The North,Services For Adults Under 65 Learn/Dis,Supplies & Services
Leeds City Council,Adults and Health,11/04/2019," 19,029.00 ",Connect In The North,Services For Adults Under 65 Learn/Dis,Supplies & Services
Leeds City Council,Adults and Health,05/04/2019," 37,747.00 ",Hamara (Hlc),Services For Adults Under 65 Learn/Dis,Supplies & Services
Leeds City Council,Adults and Health,16/04/2019," 13,677.75 ",Leep1,Services For Adults Under 65 Learn/Dis,Supplies & Services
Leeds City Council,Adults and Health,10/04/2019," 5,199.66 ",Pyramid Of Arts,Services For Adults Under 65 Learn/Dis,Supplies & Services
Leeds City Council,Adults and Health,02/04/2019," 6,000.00 ",Barnardos,Services For Adults Under 65 Mental/Dis,Supplies & Services
Leeds City Council,Adults and Health,04/04/2019," 1,872.00 ",Making Space,Services For Adults Under 65 Mental/Dis,Supplies & Services
Leeds City Council,Adults and Health,18/04/2019," 1,872.00 ",Making Space,Services For Adults Under 65 Mental/Dis,Supplies & Services
Leeds City Council,Adults and Health,01/04/2019," 7,769.75 ",Leeds Jewish Welfare Board,Services For Older People - 65 And Over,Supplies & Services
Leeds City Council,Adults and Health,01/04/2019," 327,411.25 ",Touchstone - Leeds,Services For Adults Under 65 Mental/Dis,Supplies & Services
Leeds City Council,Adults and Health,03/04/2019, 827.40 ,Leeds Autism Services,Services For Adults Under 65 Mental/Dis,Supplies & Services
Leeds City Council,Adults and Health,18/04/2019, 380.65 ,Specialist Autism Services,Services For Adults Under 65 Mental/Dis,Supplies & Services
Leeds City Council,Adults and Health,18/04/2019, 761.30 ,Specialist Autism Services,Services For Adults Under 65 Mental/Dis,Supplies & Services
Leeds City Council,Adults and Health,18/04/2019," 1,522.60 ",Specialist Autism Services,Services For Adults Under 65 Mental/Dis,Supplies & Services
Leeds City Council,Adults and Health,18/04/2019, 761.30 ,Specialist Autism Services,Services For Adults Under 65 Mental/Dis,Supplies & Services
Leeds City Council,Adults and Health,18/04/2019, 380.65 ,Specialist Autism Services,Services For Adults Under 65 Mental/Dis,Supplies & Services
Leeds City Council,Adults and Health,29/04/2019, 64.00 ,Angels Housekeeping Cic Ltd,Services For Adults Under 65 Mental/Dis,Supplies & Services
Leeds City Council,Adults and Health,02/04/2019, 178.56 ,St Annes Community Services,Services For Adults Under 65 Mental/Dis,Supplies & Services
Leeds City Council,Adults and Health,05/04/2019, 223.20 ,St Annes Community Services,Services For Adults Under 65 Mental/Dis,Supplies & Services
Leeds City Council,Adults and Health,05/04/2019, 357.12 ,St Annes Community Services,Services For Adults Under 65 Mental/Dis,Supplies & Services
Leeds City Council,Adults and Health,05/04/2019, 357.12 ,St Annes Community Services,Services For Adults Under 65 Mental/Dis,Supplies & Services
Leeds City Council,Adults and Health,05/04/2019, 357.12 ,St Annes Community Services,Services For Adults Under 65 Mental/Dis,Supplies & Services
Leeds City Council,Adults and Health,05/04/2019, 357.12 ,St Annes Community Services,Services For Adults Under 65 Mental/Dis,Supplies & Services
Leeds City Council,Adults and Health,05/04/2019, 357.12 ,St Annes Community Services,Services For Adults Under 65 Mental/Dis,Supplies & Services
Leeds City Council,Adults and Health,05/04/2019, 357.12 ,St Annes Community Services,Services For Adults Under 65 Mental/Dis,Supplies & Services
Leeds City Council,Adults and Health,05/04/2019, 357.12 ,St Annes Community Services,Services For Adults Under 65 Mental/Dis,Supplies & Services
Leeds City Council,Adults and Health,10/04/2019, 714.24 ,St Annes Community Services,Services For Adults Under 65 Mental/Dis,Supplies & Services
Leeds City Council,Adults and Health,05/04/2019, 357.12 ,St Annes Community Services,Services For Adults Under 65 Mental/Dis,Supplies & Services
Leeds City Council,Adults and Health,01/04/2019," 1,000.00 ",Leeds Jewish Welfare Board,Services For Adults Under 65 Mental/Dis,Supplies & Services
Leeds City Council,Adults and Health,12/04/2019, 578.00 ,Leeds Jewish Welfare Board,Services For Adults Under 65 Mental/Dis,Supplies & Services
Leeds City Council,Adults and Health,17/04/2019," 1,000.68 ",Rani Care Cic,Services For Adults Under 65 Mental/Dis,Supplies & Services
Leeds City Council,Adults and Health,05/04/2019, 47.25 ,Real Life Options,Services For Adults Under 65 Mental/Dis,Supplies & Services
Leeds City Council,Adults and Health,05/04/2019," 2,932.90 ",Real Life Options,Services For Adults Under 65 Mental/Dis,Supplies & Services
Leeds City Council,Adults and Health,05/04/2019, 756.00 ,Real Life Options,Services For Adults Under 65 Mental/Dis,Supplies & Services
Leeds City Council,Adults and Health,05/04/2019, 803.25 ,Real Life Options,Services For Adults Under 65 Mental/Dis,Supplies & Services
Leeds City Council,Adults and Health,01/04/2019," 2,929.43 ",Real Life Options,Services For Adults Under 65 Mental/Dis,Supplies & Services
Leeds City Council,Adults and Health,01/04/2019," 3,113.60 ",Real Life Options,Services For Adults Under 65 Mental/Dis,Supplies & Services
Leeds City Council,Adults and Health,01/04/2019, 125.00 ,Touchstone - Leeds,Services For Adults Under 65 Mental/Dis,Supplies & Services
Leeds City Council,Adults and Health,12/04/2019, 613.00 ,Touchstone - Leeds,Services For Adults Under 65 Mental/Dis,Supplies & Services
Leeds City Council,Adults and Health,12/04/2019, 640.00 ,Touchstone - Leeds,Services For Adults Under 65 Mental/Dis,Supplies & Services
Leeds City Council,Adults and Health,12/04/2019," 1,056.00 ",Touchstone - Leeds,Services For Adults Under 65 Mental/Dis,Supplies & Services
Leeds City Council,Adults and Health,12/04/2019, 640.00 ,Touchstone - Leeds,Services For Adults Under 65 Mental/Dis,Supplies & Services
Leeds City Council,Adults and Health,12/04/2019, 660.00 ,Touchstone - Leeds,Services For Adults Under 65 Mental/Dis,Supplies & Services
Leeds City Council,Adults and Health,12/04/2019, 300.00 ,Touchstone - Leeds,Services For Adults Under 65 Mental/Dis,Supplies & Services
Leeds City Council,Adults and Health,12/04/2019, 552.00 ,Touchstone - Leeds,Services For Adults Under 65 Mental/Dis,Supplies & Services
Leeds City Council,Adults and Health,12/04/2019, 320.00 ,Touchstone - Leeds,Services For Adults Under 65 Mental/Dis,Supplies & Services
Leeds City Council,Adults and Health,12/04/2019, 616.00 ,Touchstone - Leeds,Services For Adults Under 65 Mental/Dis,Supplies & Services
Leeds City Council,Adults and Health,12/04/2019, 660.00 ,Touchstone - Leeds,Services For Adults Under 65 Mental/Dis,Supplies & Services
Leeds City Council,Adults and Health,12/04/2019, 880.00 ,Touchstone - Leeds,Services For Adults Under 65 Mental/Dis,Supplies & Services
Leeds City Council,Adults and Health,12/04/2019, 400.00 ,Touchstone - Leeds,Services For Adults Under 65 Mental/Dis,Supplies & Services
Leeds City Council,Adults and Health,12/04/2019, 240.00 ,Touchstone - Leeds,Services For Adults Under 65 Mental/Dis,Supplies & Services
Leeds City Council,Adults and Health,12/04/2019, 320.00 ,Touchstone - Leeds,Services For Adults Under 65 Mental/Dis,Supplies & Services
Leeds City Council,Adults and Health,12/04/2019, 480.00 ,Touchstone - Leeds,Services For Adults Under 65 Mental/Dis,Supplies & Services
Leeds City Council,Adults and Health,12/04/2019, 175.00 ,Touchstone - Leeds,Services For Adults Under 65 Mental/Dis,Supplies & Services
Leeds City Council,Adults and Health,12/04/2019, 160.00 ,Touchstone - Leeds,Services For Adults Under 65 Mental/Dis,Supplies & Services
Leeds City Council,Adults and Health,12/04/2019, 920.00 ,Touchstone - Leeds,Services For Adults Under 65 Mental/Dis,Supplies & Services
Leeds City Council,Adults and Health,01/04/2019, 488.00 ,Touchstone - Leeds,Services For Adults Under 65 Mental/Dis,Supplies & Services
Leeds City Council,Adults and Health,02/04/2019, 352.00 ,Touchstone - Leeds,Services For Adults Under 65 Mental/Dis,Supplies & Services
Leeds City Council,Adults and Health,10/04/2019," 1,641.82 ",Be Caring Ltd,Services For Older People Under 65 P/Dis,Supplies & Services
Leeds City Council,Adults and Health,12/04/2019, 59.06 ,Real Life Options,Services For Adults Under 65 Mental/Dis,Supplies & Services
Leeds City Council,Adults and Health,15/04/2019, 267.84 ,St Annes Community Services,Services For Adults Under 65 Mental/Dis,Supplies & Services
Leeds City Council,Adults and Health,15/04/2019, 405.12 ,St Annes Community Services,Services For Adults Under 65 Mental/Dis,Supplies & Services
Leeds City Council,Adults and Health,18/04/2019, 761.30 ,Specialist Autism Services,Services For Adults Under 65 Mental/Dis,Supplies & Services
Leeds City Council,Adults and Health,26/04/2019, 871.89 ,The Disabilities Trust,Services For Adults Under 65 Mental/Dis,Supplies & Services
Leeds City Council,Adults and Health,25/04/2019, 44.00 ,Touchstone - Leeds,Services For Adults Under 65 Mental/Dis,Supplies & Services
Leeds City Council,Adults and Health,11/04/2019, 88.00 ,Touchstone - Leeds,Services For Adults Under 65 Mental/Dis,Supplies & Services
Leeds City Council,Adults and Health,11/04/2019, 88.00 ,Touchstone - Leeds,Services For Adults Under 65 Mental/Dis,Supplies & Services
Leeds City Council,Adults and Health,11/04/2019, 66.00 ,Touchstone - Leeds,Services For Adults Under 65 Mental/Dis,Supplies & Services
Leeds City Council,Adults and Health,11/04/2019, 176.00 ,Touchstone - Leeds,Services For Adults Under 65 Mental/Dis,Supplies & Services
Leeds City Council,Adults and Health,12/04/2019, 352.00 ,Touchstone - Leeds,Services For Adults Under 65 Mental/Dis,Supplies & Services
Leeds City Council,Adults and Health,03/04/2019," 5,811.72 ",Community Links,Services For Adults Under 65 Mental/Dis,Supplies & Services
Leeds City Council,Adults and Health,03/04/2019," 40,011.41 ",St Annes Residential Care,Assessment And Care Management,Supplies & Services
Leeds City Council,Adults and Health,10/04/2019, 143.46 ,Be Caring Ltd,Services For Older People Under 65 P/Dis,Supplies & Services
Leeds City Council,Adults and Health,26/04/2019, 858.60 ,Specialist Autism Services,Services For Adults Under 65 Mental/Dis,Supplies & Services
Leeds City Council,Adults and Health,26/04/2019," 1,538.08 ",Specialist Autism Services,Services For Adults Under 65 Mental/Dis,Supplies & Services
Leeds City Council,Adults and Health,03/04/2019," 5,926.20 ",Chatterton Hey,Services For Adults Under 65 Mental/Dis,Supplies & Services
Leeds City Council,Adults and Health,03/04/2019," 15,932.80 ",Larchfield Residential Home,Assessment And Care Management,Supplies & Services
Leeds City Council,Adults and Health,03/04/2019," 6,939.12 ",St Annes Residential Care,Assessment And Care Management,Supplies & Services
Leeds City Council,Adults and Health,03/04/2019," 3,401.02 ",Sign Health,Services For Adults Under 65 Mental/Dis,Supplies & Services
Leeds City Council,Adults and Health,01/04/2019," 11,666.25 ",Leeds Involving People,Services For Older People - 65 And Over,Supplies & Services
Leeds City Council,Adults and Health,05/04/2019, 100.00 ,Bramley Elderly Action,Services For Older People - 65 And Over,Supplies & Services
Leeds City Council,Adults and Health,18/04/2019," 103,916.67 ",Advonet,Services For Older People - 65 And Over,Supplies & Services
Leeds City Council,Adults and Health,18/04/2019," 9,167.47 ",Anchor Trust,Services For Older People - 65 And Over,Supplies & Services
Leeds City Council,Adults and Health,18/04/2019," 9,167.47 ",Anchor Trust,Services For Older People - 65 And Over,Supplies & Services
Leeds City Council,Adults and Health,01/04/2019," 49,415.82 ",Action For Gipton Elderly,Services For Older People - 65 And Over,Supplies & Services
Leeds City Council,Adults and Health,01/04/2019," 31,773.91 ",Armley Helping Hands,Services For Older People - 65 And Over,Supplies & Services
Leeds City Council,Adults and Health,01/04/2019," 23,631.16 ",Avsed,Services For Older People - 65 And Over,Supplies & Services
Leeds City Council,Adults and Health,01/04/2019," 3,000.00 ",Al Khidmat Centre,Services For Older People - 65 And Over,Supplies & Services
Leeds City Council,Adults and Health,01/04/2019," 32,336.41 ",Belle Isle Elderly Winter Aid,Services For Older People - 65 And Over,Supplies & Services
Leeds City Council,Adults and Health,01/04/2019," 56,653.82 ",Bramley Elderly Action,Services For Older People - 65 And Over,Supplies & Services
Leeds City Council,Adults and Health,01/04/2019," 16,553.66 ",Burmantofts Senior Action,Services For Older People - 65 And Over,Supplies & Services
Leeds City Council,Adults and Health,01/04/2019," 13,706.91 ",Caring Together In Woodhouse And Little,Services For Older People - 65 And Over,Supplies & Services
Leeds City Council,Adults and Health,01/04/2019," 26,277.16 ",Crossgates And District Good Neighbours,Services For Older People - 65 And Over,Supplies & Services
Leeds City Council,Adults and Health,01/04/2019," 16,551.66 ",Farsley Live At Home Scheme,Services For Older People - 65 And Over,Supplies & Services
Leeds City Council,Adults and Health,01/04/2019," 18,586.91 ",Hamara (Hlc),Services For Older People - 65 And Over,Supplies & Services
Leeds City Council,Adults and Health,01/04/2019," 18,846.91 ",Hawksworth Older People Support,Services For Older People - 65 And Over,Supplies & Services
Leeds City Council,Adults and Health,01/04/2019," 15,636.41 ",Holbeck Elderly Aid,Services For Older People - 65 And Over,Supplies & Services
Leeds City Council,Adults and Health,01/04/2019," 14,586.91 ",Hope,Services For Older People - 65 And Over,Supplies & Services
Leeds City Council,Adults and Health,01/04/2019," 7,517.25 ",Hamwattan Elderly Centre,Services For Older People - 65 And Over,Supplies & Services
Leeds City Council,Adults and Health,01/04/2019," 21,621.41 ",Leeds Black Elders Association,Services For Older People - 65 And Over,Supplies & Services
Leeds City Council,Adults and Health,01/04/2019," 9,887.50 ",Leeds Jewish Welfare Board,Services For Older People - 65 And Over,Supplies & Services
Leeds City Council,Adults and Health,01/04/2019," 20,367.41 ",M H A Rothwell Live At Home Scheme,Services For Older People - 65 And Over,Supplies & Services
Leeds City Council,Adults and Health,01/04/2019," 24,228.66 ",Middleton Elderly Aid,Services For Older People - 65 And Over,Supplies & Services
Leeds City Council,Adults and Health,01/04/2019," 21,479.41 ",Moor Allerton Elderly Care,Services For Older People - 65 And Over,Supplies & Services
Leeds City Council,Adults and Health,01/04/2019," 30,361.91 ",Morley Elderly Action,Services For Older People - 65 And Over,Supplies & Services
Leeds City Council,Adults and Health,29/04/2019," 14,752.50 ",Methodist Homes,Services For Older People - 65 And Over,Supplies & Services
Leeds City Council,Adults and Health,29/04/2019," 11,436.05 ",Methodist Homes,Services For Older People - 65 And Over,Supplies & Services
Leeds City Council,Adults and Health,29/04/2019," 21,971.70 ",Methodist Homes,Services For Older People - 65 And Over,Supplies & Services
Leeds City Council,Adults and Health,29/04/2019," 39,559.25 ",Methodist Homes,Services For Older People - 65 And Over,Supplies & Services
Leeds City Council,Adults and Health,01/04/2019," 24,113.16 ",Mha Horsforth Live At Home Scheme,Services For Older People - 65 And Over,Supplies & Services
Leeds City Council,Adults and Health,01/04/2019," 17,456.66 ",North Seacroft Good Neighbours,Services For Older People - 65 And Over,Supplies & Services
Leeds City Council,Adults and Health,01/04/2019," 15,726.91 ",Neighbourhood Action In Farnley,Services For Older People - 65 And Over,Supplies & Services
Leeds City Council,Adults and Health,01/04/2019," 26,131.91 ",Neighbourhood Elders Team,Services For Older People - 65 And Over,Supplies & Services
Leeds City Council,Adults and Health,01/04/2019," 22,151.41 ",Older Peoples Action In The Locality,Services For Older People - 65 And Over,Supplies & Services
Leeds City Council,Adults and Health,01/04/2019," 19,172.41 ",Otley Action For Older People,Services For Older People - 65 And Over,Supplies & Services
Leeds City Council,Adults and Health,01/04/2019," 22,158.41 ",Owls At Heart,Services For Older People - 65 And Over,Supplies & Services
Leeds City Council,Adults and Health,01/04/2019," 21,502.91 ",Pudsey Live At Home Scheme,Services For Older People - 65 And Over,Supplies & Services
Leeds City Council,Adults and Health,01/04/2019," 29,226.66 ",Richmond Hill Elderly Action,Services For Older People - 65 And Over,Supplies & Services
Leeds City Council,Adults and Health,01/04/2019," 50,945.98 ",Royal Voluntary Service,Services For Older People - 65 And Over,Supplies & Services
Leeds City Council,Adults and Health,01/04/2019," 25,419.91 ",South Leeds Live At Home Scheme,Services For Older People - 65 And Over,Supplies & Services
Leeds City Council,Adults and Health,01/04/2019," 21,749.00 ",South Leeds Team Ministry,Services For Older People - 65 And Over,Supplies & Services
Leeds City Council,Adults and Health,01/04/2019," 16,581.66 ",South Seacroft Friends & Neighbours,Services For Older People - 65 And Over,Supplies & Services
Leeds City Council,Adults and Health,01/04/2019," 29,665.66 ",Step,Services For Older People - 65 And Over,Supplies & Services
Leeds City Council,Adults and Health,01/04/2019," 16,023.91 ",Swarcliffe Good Neighbours Scheme,Services For Older People - 65 And Over,Supplies & Services
Leeds City Council,Adults and Health,01/04/2019," 36,578.91 ",Wetherby In Support Of The Elderly,Services For Older People - 65 And Over,Supplies & Services
Leeds City Council,Adults and Health,18/04/2019, 511.36 ,Affinity Trust,Services For Older People - 65 And Over,Supplies & Services
Leeds City Council,Adults and Health,02/04/2019, 240.48 ,St Annes Community Services,Services For Older People - 65 And Over,Supplies & Services
Leeds City Council,Adults and Health,10/04/2019,"-3,945.47 ",Be Caring Ltd,Services For Older People - 65 And Over,Supplies & Services
Leeds City Council,Adults and Health,01/04/2019," 3,154.75 ",Reflections Community Support,Services For Older People - 65 And Over,Supplies & Services
Leeds City Council,Adults and Health,18/04/2019, 380.65 ,Specialist Autism Services,Services For Older People - 65 And Over,Supplies & Services
Leeds City Council,Adults and Health,18/04/2019, 778.15 ,Specialist Autism Services,Services For Older People - 65 And Over,Supplies & Services
Leeds City Council,Adults and Health,17/04/2019, 658.00 ,Anchor Trust,Services For Older People - 65 And Over,Supplies & Services
Leeds City Council,Adults and Health,17/04/2019," 1,637.05 ",Anchor Trust,Services For Older People - 65 And Over,Supplies & Services
Leeds City Council,Adults and Health,17/04/2019,-0.02 ,Affinity Trust,Services For Older People - 65 And Over,Supplies & Services
Leeds City Council,Adults and Health,26/04/2019," 12,963.30 ",Be Caring Ltd,Services For Older People Under 65 P/Dis,Supplies & Services
Leeds City Council,Adults and Health,18/04/2019," 2,853.30 ",Be Caring Ltd,Services For Older People Under 65 P/Dis,Supplies & Services
Leeds City Council,Adults and Health,10/04/2019," 92,736.86 ",Be Caring Ltd,Services For Older People Under 65 P/Dis,Supplies & Services
Leeds City Council,Adults and Health,17/04/2019, 0.19 ,Leeds Autism Services,Services For Older People - 65 And Over,Supplies & Services
Leeds City Council,Adults and Health,10/04/2019," 4,809.72 ",Rani Care Cic,Services For Older People - 65 And Over,Supplies & Services
Leeds City Council,Adults and Health,26/04/2019," 4,809.72 ",Rani Care Cic,Services For Older People - 65 And Over,Supplies & Services
Leeds City Council,Adults and Health,26/04/2019," 3,134.24 ",Reflections Community Support,Services For Older People - 65 And Over,Supplies & Services
Leeds City Council,Adults and Health,23/04/2019," 3,256.53 ",Reflections Community Support,Services For Older People - 65 And Over,Supplies & Services
Leeds City Council,Adults and Health,16/04/2019," 2,898.15 ",Reflections Community Support,Services For Older People - 65 And Over,Supplies & Services
Leeds City Council,Adults and Health,17/04/2019," 3,154.75 ",Reflections Community Support,Services For Older People - 65 And Over,Supplies & Services
Leeds City Council,Adults and Health,26/04/2019, 877.76 ,St Annes Community Services,Services For Older People - 65 And Over,Supplies & Services
Leeds City Council,Adults and Health,17/04/2019," 2,224.80 ",The Disabilities Trust,Services For Older People - 65 And Over,Supplies & Services
Leeds City Council,Adults and Health,26/04/2019, 0.11 ,The Disabilities Trust,Services For Adults Under 65 Mental/Dis,Supplies & Services
Leeds City Council,Adults and Health,10/04/2019," 2,240.00 ",The Disabilities Trust,Services For Older People - 65 And Over,Supplies & Services
Leeds City Council,Adults and Health,30/04/2019," 2,076.48 ",The Disabilities Trust,Services For Older People - 65 And Over,Supplies & Services
Leeds City Council,Adults and Health,03/04/2019," 15,324.11 ",St Annes Residential Care,Assessment And Care Management,Supplies & Services
Leeds City Council,Adults and Health,03/04/2019," 4,400.00 ",Donisthorpe Hall,Services For Older People - 65 And Over,Supplies & Services
Leeds City Council,Adults and Health,03/04/2019," 8,221.50 ",Gledhow Christian Care Home,Services For Older People - 65 And Over,Supplies & Services
Leeds City Council,Adults and Health,03/04/2019," 3,332.12 ",Little Sisters Of The Poor,Services For Older People - 65 And Over,Supplies & Services
Leeds City Council,Adults and Health,03/04/2019," 7,985.63 ",Leonard Cheshire Disability,Services For Older People Under 65 P/Dis,Supplies & Services
Leeds City Council,Adults and Health,03/04/2019," 1,460.76 ",Sir Gabriel Wood'S Mariners' Home,Services For Older People - 65 And Over,Supplies & Services
Leeds City Council,Adults and Health,12/04/2019, 207.00 ,Touchstone - Leeds,Services For Older People - 65 And Over,Supplies & Services
Leeds City Council,Adults and Health,03/04/2019," 6,055.87 ",Anchor Trust,Services For Older People - 65 And Over,Supplies & Services
Leeds City Council,Adults and Health,03/04/2019," 14,846.06 ",Anchor Trust,Services For Older People - 65 And Over,Supplies & Services
Leeds City Council,Adults and Health,30/04/2019," 5,846.33 ",Anchor Trust Simon Marks Court,Services For Older People - 65 And Over,Supplies & Services
Leeds City Council,Adults and Health,03/04/2019," 21,488.51 ",Anchor Trust Simon Marks Court,Services For Older People - 65 And Over,Supplies & Services
Leeds City Council,Adults and Health,03/04/2019," 3,173.33 ",Ashcroft Nursing Home,Services For Older People - 65 And Over,Supplies & Services
Leeds City Council,Adults and Health,03/04/2019," 12,605.28 ",Donisthorpe Hall,Services For Older People - 65 And Over,Supplies & Services
Leeds City Council,Adults and Health,05/04/2019," 1,454.70 ",Donisthorpe Hall,Services For Older People - 65 And Over,Supplies & Services
Leeds City Council,Adults and Health,03/04/2019," 6,154.85 ",Larchfield Residential Home,Assessment And Care Management,Supplies & Services
Leeds City Council,Adults and Health,03/04/2019," 18,787.14 ",Donisthorpe Hall,Services For Older People - 65 And Over,Supplies & Services
Leeds City Council,Adults and Health,03/04/2019,"-4,259.35 ",Gledhow Christian Care Home,Services For Older People - 65 And Over,Supplies & Services
Leeds City Council,Adults and Health,03/04/2019," 2,116.24 ",Methodist Homes For The Aged,Services For Older People - 65 And Over,Supplies & Services
Leeds City Council,Adults and Health,09/04/2019, 255.68 ,Affinity Trust,Services For Older People Under 65 P/Dis,Supplies & Services
Leeds City Council,Adults and Health,18/04/2019, 399.50 ,Affinity Trust,Services For Older People - 65 And Over,Supplies & Services
Leeds City Council,Adults and Health,10/04/2019," 1,243.32 ",Be Caring Ltd,Services For Older People Under 65 P/Dis,Supplies & Services
Leeds City Council,Adults and Health,03/04/2019,"-4,225.33 ",Anchor Trust,Services For Older People - 65 And Over,Supplies & Services
Leeds City Council,Adults and Health,03/04/2019," 18,176.49 ",Anchor Trust,Services For Older People - 65 And Over,Supplies & Services
Leeds City Council,Adults and Health,03/04/2019," 22,804.54 ",Anchor Trust,Services For Older People - 65 And Over,Supplies & Services
Leeds City Council,Adults and Health,03/04/2019," 6,393.76 ",Anchor Trust Simon Marks Court,Services For Older People - 65 And Over,Supplies & Services
Leeds City Council,Adults and Health,03/04/2019," 1,581.89 ",Borrage House,Services For Older People - 65 And Over,Supplies & Services
Leeds City Council,Adults and Health,04/04/2019, 12.27 ,Community Links,Services For Older People - 65 And Over,Supplies & Services
Leeds City Council,Adults and Health,03/04/2019," 19,337.14 ",Donisthorpe Hall,Services For Older People - 65 And Over,Supplies & Services
Leeds City Council,Adults and Health,03/04/2019," 2,328.87 ",Dyneley House,Services For Older People - 65 And Over,Supplies & Services
Leeds City Council,Adults and Health,03/04/2019," 4,146.26 ",Gledhow Christian Care Home,Services For Older People - 65 And Over,Supplies & Services
Leeds City Council,Adults and Health,03/04/2019," 1,581.89 ",Heath Lodge Residential Home,Services For Older People - 65 And Over,Supplies & Services
Leeds City Council,Adults and Health,03/04/2019," 3,259.83 ",Joseph Rowntree Foundation,Services For Older People - 65 And Over,Supplies & Services
Leeds City Council,Adults and Health,03/04/2019," 28,817.25 ",Larchfield Residential Home,Assessment And Care Management,Supplies & Services
Leeds City Council,Adults and Health,03/04/2019," 4,002.32 ",Lily Thompson House,Services For Older People - 65 And Over,Supplies & Services
Leeds City Council,Adults and Health,03/04/2019," 16,486.81 ",Little Sisters Of The Poor,Services For Older People - 65 And Over,Supplies & Services
Leeds City Council,Adults and Health,03/04/2019," 4,982.87 ",Livability,Services For Older People Under 65 P/Dis,Supplies & Services
Leeds City Council,Adults and Health,03/04/2019," 10,162.02 ",Lynda Cohen House,Services For Older People - 65 And Over,Supplies & Services
Leeds City Council,Adults and Health,03/04/2019," 4,723.76 ",Leonard Cheshire,Services For Older People Under 65 P/Dis,Supplies & Services
Leeds City Council,Adults and Health,03/04/2019," 2,491.20 ",Leonard Cheshire Disability,Services For Older People Under 65 P/Dis,Supplies & Services
Leeds City Council,Adults and Health,03/04/2019," 1,469.13 ",Orders Of St John Care Trust,Services For Older People - 65 And Over,Supplies & Services
Leeds City Council,Adults and Health,03/04/2019,-114.62 ,St Annes Residential Care,Assessment And Care Management,Supplies & Services
Leeds City Council,Adults and Health,01/04/2019," 8,131.00 ",William Merritt Dlc,Services For Older People Under 65 P/Dis,Supplies & Services
Leeds City Council,Adults and Health,08/04/2019," 2,677.92 ",Be Caring Ltd,Services For Older People Under 65 P/Dis,Supplies & Services
Leeds City Council,Adults and Health,08/04/2019," 2,677.92 ",Be Caring Ltd,Services For Older People Under 65 P/Dis,Supplies & Services
Leeds City Council,Adults and Health,01/04/2019, 721.14 ,People Matters (West Yorkshire) Cio,Services For Older People Under 65 P/Dis,Supplies & Services
Leeds City Council,Adults and Health,01/04/2019," 29,104.08 ",Saint John Of God Hospitaller Services,Services For Older People Under 65 P/Dis,Supplies & Services
Leeds City Council,Adults and Health,01/04/2019," 157,210.00 ",Leeds Centre For Integrated Living,Services For Older People Under 65 P/Dis,Supplies & Services
Leeds City Council,Adults and Health,26/04/2019, 526.68 ,Affinity Trust,Services For Older People Under 65 P/Dis,Supplies & Services
Leeds City Council,Adults and Health,18/04/2019, 933.51 ,Affinity Trust,Services For Older People Under 65 P/Dis,Supplies & Services
Leeds City Council,Adults and Health,09/04/2019, 814.98 ,Affinity Trust,Services For Older People Under 65 P/Dis,Supplies & Services
Leeds City Council,Adults and Health,01/04/2019, 306.00 ,Reflections Community Support,Services For Older People - 65 And Over,Supplies & Services
Leeds City Council,Adults and Health,18/04/2019, 958.80 ,Affinity Trust,Services For Older People - 65 And Over,Supplies & Services
Leeds City Council,Adults and Health,26/04/2019," 2,550.40 ",Be Caring Ltd,Services For Older People Under 65 P/Dis,Supplies & Services
Leeds City Council,Adults and Health,18/04/2019, 95.64 ,Be Caring Ltd,Services For Older People Under 65 P/Dis,Supplies & Services
Leeds City Council,Adults and Health,10/04/2019," 25,603.65 ",Be Caring Ltd,Services For Older People Under 65 P/Dis,Supplies & Services
Leeds City Council,Adults and Health,26/04/2019, 566.64 ,Reflections Community Support,Services For Older People - 65 And Over,Supplies & Services
Leeds City Council,Adults and Health,23/04/2019, 306.00 ,Reflections Community Support,Services For Older People - 65 And Over,Supplies & Services
Leeds City Council,Adults and Health,16/04/2019, 306.00 ,Reflections Community Support,Services For Older People - 65 And Over,Supplies & Services
Leeds City Council,Adults and Health,17/04/2019, 321.30 ,Reflections Community Support,Services For Older People - 65 And Over,Supplies & Services
Leeds City Council,Adults and Health,03/04/2019," 42,856.29 ",St Annes Residential Care,Assessment And Care Management,Supplies & Services
Leeds City Council,Adults and Health,03/04/2019," 9,735.24 ",The Disabilities Trust,Services For Older People Under 65 P/Dis,Supplies & Services
Leeds City Council,Adults and Health,03/04/2019," 38,750.52 ",The Disabilities Trust,Assessment And Care Management,Supplies & Services
Leeds City Council,Adults and Health,03/04/2019," 1,853.60 ",Anchor Trust,Services For Older People - 65 And Over,Supplies & Services
Leeds City Council,Adults and Health,03/04/2019," 56,915.75 ",Leonard Cheshire Disability,Services For Older People Under 65 P/Dis,Supplies & Services
Leeds City Council,Adults and Health,03/04/2019, 421.90 ,Larchfield Residential Home,Assessment And Care Management,Supplies & Services
Leeds City Council,Adults and Health,26/04/2019," 2,112.05 ",Be Caring Ltd,Services For Older People Under 65 P/Dis,Supplies & Services
Leeds City Council,Adults and Health,17/04/2019," 1,920.81 ",Leeds Autism Services,Services For Older People - 65 And Over,Supplies & Services
Leeds City Council,Adults and Health,18/04/2019," 1,921.00 ",Leeds Autism Services,Services For Older People Under 65 P/Dis,Supplies & Services
Leeds City Council,Adults and Health,17/04/2019, 549.44 ,People Matters (West Yorkshire) Cio,Services For Older People Under 65 P/Dis,Supplies & Services
Leeds City Council,Adults and Health,26/04/2019, 289.60 ,Specialist Autism Services,Services For Adults Under 65 Mental/Dis,Supplies & Services
Leeds City Council,Adults and Health,17/04/2019, 330.02 ,The Disabilities Trust,Services For Older People Under 65 P/Dis,Supplies & Services
Leeds City Council,Adults and Health,10/04/2019," 1,024.00 ",The Disabilities Trust,Services For Older People Under 65 P/Dis,Supplies & Services
Leeds City Council,Adults and Health,10/04/2019, 608.00 ,The Disabilities Trust,Services For Older People Under 65 P/Dis,Supplies & Services
Leeds City Council,Adults and Health,16/04/2019, 318.64 ,The Disabilities Trust,Services For Older People Under 65 P/Dis,Supplies & Services
Leeds City Council,Adults and Health,16/04/2019, 238.98 ,The Disabilities Trust,Services For Older People Under 65 P/Dis,Supplies & Services
Leeds City Council,Adults and Health,10/04/2019, 255.04 ,Be Caring Ltd,Services For Older People Under 65 P/Dis,Supplies & Services
Leeds City Council,Adults and Health,03/04/2019," 5,434.88 ",Henshaw Yokshire,Services For Older People Under 65 P/Dis,Supplies & Services
Leeds City Council,Adults and Health,03/04/2019," 4,090.76 ",Hollybank Trust,Services For Older People Under 65 P/Dis,Supplies & Services
Leeds City Council,Adults and Health,03/04/2019," 5,954.20 ",Larchfield Residential Home,Assessment And Care Management,Supplies & Services
Leeds City Council,Adults and Health,03/04/2019," 5,096.60 ",Livability,Services For Older People Under 65 P/Dis,Supplies & Services
Leeds City Council,Adults and Health,03/04/2019," 27,758.88 ",Leonard Cheshire,Services For Older People Under 65 P/Dis,Supplies & Services
Leeds City Council,Adults and Health,03/04/2019," 3,285.48 ",Leonard Cheshire Disability,Services For Older People Under 65 P/Dis,Supplies & Services
Leeds City Council,Adults and Health,03/04/2019," 3,810.64 ",Leonard Cheshire Of Gloucestershire,Services For Older People Under 65 P/Dis,Supplies & Services
Leeds City Council,Adults and Health,03/04/2019," 4,671.88 ",Royal National Institute For The,Services For Older People Under 65 P/Dis,Supplies & Services
Leeds City Council,Adults and Health,03/04/2019," 21,337.16 ",St Annes Residential Care,Assessment And Care Management,Supplies & Services
Leeds City Council,Adults and Health,03/04/2019," 29,794.40 ",Saint John Of God Hospitaller Services,Services For Older People Under 65 P/Dis,Supplies & Services
Leeds City Council,Adults and Health,26/04/2019," 6,128.01 ",Leeds Care Association,Social Services Support Services,Supplies & Services
Leeds City Council,Adults and Health,24/04/2019," 1,250.00 ",Basis Yorkshire Ltd,Social Services Support Services,Supplies & Services
Leeds City Council,Adults and Health,05/04/2019, 538.00 ,Behind Closed Doors (Bcd),Social Services Support Services,Supplies & Services
Leeds City Council,Adults and Health,17/04/2019, 538.00 ,Behind Closed Doors (Bcd),Social Services Support Services,Supplies & Services
Leeds City Council,Adults and Health,18/04/2019, 172.00 ,Voluntary Action-Leeds,Social Services Support Services,Supplies & Services
Leeds City Council,Children and Families,26/04/2019, 950.00 ,Stonewall Equality Ltd,Learning,Supplies & Services
Leeds City Council,Children and Families,26/04/2019," 9,000.00 ",Sing Up,Learning,Supplies & Services
Leeds City Council,Children and Families,26/04/2019, 280.00 ,Aim Project,Learning,Supplies & Services
Leeds City Council,Children and Families,18/04/2019, 21.00 ,Signature,Learning,Supplies & Services
Leeds City Council,Children and Families,18/04/2019, 21.00 ,Signature,Learning,Supplies & Services
Leeds City Council,Children and Families,25/04/2019, 14.70 ,Signature,Learning,Supplies & Services
Leeds City Council,Children and Families,25/04/2019, 14.70 ,Signature,Learning,Supplies & Services
Leeds City Council,Children and Families,01/04/2019, 137.50 ,Lsdbp,Learning,Supplies & Services
Leeds City Council,Children and Families,09/04/2019, 390.00 ,Health For All (Leeds),Learning,Supplies & Services
Leeds City Council,Children and Families,03/04/2019, 588.00 ,Yamsen,Learning,Supplies & Services
Leeds City Council,Children and Families,03/04/2019," 46,085.50 ",Barnardos,Learning,Supplies & Services
Leeds City Council,Children and Families,12/04/2019," 1,000.00 ",The Big Hoo-Ha Company,Learning,Supplies & Services
Leeds City Council,Children and Families,24/04/2019," 1,000.00 ",Cloth Cat Studios Ltd,Learning,Supplies & Services
Leeds City Council,Children and Families,18/04/2019, 500.00 ,Leeds Symphony Orchestra,Learning,Supplies & Services
Leeds City Council,Children and Families,18/04/2019," 4,000.00 ",Leeds Youth Opera,Learning,Supplies & Services
Leeds City Council,Children and Families,12/04/2019," 4,552.50 ",Dj School Leeds Cic,Learning,Supplies & Services
Leeds City Council,Children and Families,04/04/2019, 300.00 ,Dj School Leeds Cic,Learning,Supplies & Services
Leeds City Council,Children and Families,03/04/2019," 1,000.00 ",Yamsen,Learning,Supplies & Services
Leeds City Council,Children and Families,12/04/2019, 683.00 ,Basis Yorkshire Ltd,Partnerships & Health,Supplies & Services
Leeds City Council,Children and Families,12/04/2019, 603.00 ,Basis Yorkshire Ltd,Partnerships & Health,Supplies & Services
Leeds City Council,Children and Families,12/04/2019, 310.00 ,Basis Yorkshire Ltd,Partnerships & Health,Supplies & Services
Leeds City Council,Children and Families,12/04/2019, 310.00 ,Basis Yorkshire Ltd,Partnerships & Health,Supplies & Services
Leeds City Council,Children and Families,12/04/2019, 683.00 ,Basis Yorkshire Ltd,Partnerships & Health,Supplies & Services
Leeds City Council,Children and Families,12/04/2019, 683.00 ,Basis Yorkshire Ltd,Partnerships & Health,Supplies & Services
Leeds City Council,Children and Families,12/04/2019, 310.00 ,Basis Yorkshire Ltd,Partnerships & Health,Supplies & Services
Leeds City Council,Children and Families,12/04/2019, 683.00 ,Basis Yorkshire Ltd,Partnerships & Health,Supplies & Services
Leeds City Council,Children and Families,12/04/2019," 1,366.00 ",Basis Yorkshire Ltd,Partnerships & Health,Supplies & Services
Leeds City Council,Children and Families,12/04/2019, 683.00 ,Basis Yorkshire Ltd,Partnerships & Health,Supplies & Services
Leeds City Council,Children and Families,18/04/2019, 277.50 ,Coram Academy Ltd,Partnerships & Health,Supplies & Services
Leeds City Council,Children and Families,15/04/2019," 15,000.00 ",The Dartington Hall Trust,Partnerships & Health,Supplies & Services
Leeds City Council,Children and Families,18/04/2019," 4,935.85 ",The Dartington Hall Trust,Partnerships & Health,Supplies & Services
Leeds City Council,Children and Families,11/04/2019, 210.00 ,Open College Network Yhr,Partnerships & Health,Supplies & Services
Leeds City Council,Children and Families,18/04/2019, 45.00 ,National Youth Agency,Partnerships & Health,Supplies & Services
Leeds City Council,Children and Families,11/04/2019, 300.00 ,British Youth Council,Partnerships & Health,Supplies & Services
Leeds City Council,Children and Families,25/04/2019, 660.00 ,Aim Project,Partnerships & Health,Supplies & Services
Leeds City Council,Children and Families,03/04/2019, 300.00 ,Action On Hearing Loss,Partnerships & Health,Supplies & Services
Leeds City Council,Children and Families,03/04/2019, 600.00 ,Action On Hearing Loss,Partnerships & Health,Supplies & Services
Leeds City Council,Children and Families,03/04/2019, 300.00 ,Action On Hearing Loss,Partnerships & Health,Supplies & Services
Leeds City Council,Children and Families,24/04/2019, 437.70 ,Community Accord,Partnerships & Health,Supplies & Services
Leeds City Council,Children and Families,24/04/2019, 441.00 ,Community Accord,Partnerships & Health,Supplies & Services
Leeds City Council,Children and Families,24/04/2019, 529.00 ,Community Accord,Partnerships & Health,Supplies & Services
Leeds City Council,Children and Families,24/04/2019, 69.00 ,Community Accord,Partnerships & Health,Supplies & Services
Leeds City Council,Children and Families,03/04/2019, 63.90 ,Action On Hearing Loss,Partnerships & Health,Supplies & Services
Leeds City Council,Children and Families,03/04/2019, 30.00 ,Action On Hearing Loss,Partnerships & Health,Supplies & Services
Leeds City Council,Children and Families,11/04/2019," 22,027.00 ",Child Bereavement Uk,Partnerships & Health,Supplies & Services
Leeds City Council,Children and Families,17/04/2019," 5,032.00 ",Breckenbrough School Ltd,Partnerships & Health,Supplies & Services
Leeds City Council,Children and Families,17/04/2019," 9,492.00 ",Breckenbrough School Ltd,Partnerships & Health,Supplies & Services
Leeds City Council,Children and Families,17/04/2019," 20,043.00 ",Breckenbrough School Ltd,Partnerships & Health,Supplies & Services
Leeds City Council,Children and Families,16/04/2019," 2,300.00 ",Breckenbrough School Ltd,Partnerships & Health,Supplies & Services
Leeds City Council,Children and Families,16/04/2019," 2,300.00 ",Breckenbrough School Ltd,Partnerships & Health,Supplies & Services
Leeds City Council,Children and Families,05/04/2019," 1,750.00 ",Yorkshire Youth & Music Ltd,Social Care,Supplies & Services
Leeds City Council,Children and Families,29/04/2019, 185.00 ,National Autistic Society,Social Care,Supplies & Services
Leeds City Council,Children and Families,18/04/2019, 185.00 ,National Autistic Society,Social Care,Supplies & Services
Leeds City Council,Children and Families,03/04/2019, 50.00 ,Moortown Methodist Church,Social Care,Supplies & Services
Leeds City Council,Children and Families,11/04/2019, 20.00 ,Bramley Elderly Action,Social Care,Supplies & Services
Leeds City Council,Children and Families,01/04/2019," 3,640.60 ",The Conservation Volunteers,Social Care,Supplies & Services
Leeds City Council,Children and Families,05/04/2019, 300.00 ,Henry,Social Care,Supplies & Services
Leeds City Council,Children and Families,04/04/2019," 1,956.50 ",Hunslet Club,Social Care,Supplies & Services
Leeds City Council,Children and Families,02/04/2019, 28.00 ,Meanwood Valley Urban Farm,Social Care,Supplies & Services
Leeds City Council,Children and Families,24/04/2019, 250.00 ,Leeds Rugby Foundation,Social Care,Supplies & Services
Leeds City Council,Children and Families,24/04/2019, 500.00 ,Leeds Rugby Foundation,Social Care,Supplies & Services
Leeds City Council,Children and Families,10/04/2019, 60.00 ,Meanwood Valley Urban Farm,Social Care,Supplies & Services
Leeds City Council,Children and Families,03/04/2019, 300.00 ,Northern Ballet Limited,Social Care,Supplies & Services
Leeds City Council,Children and Families,05/04/2019, 300.00 ,Northern Ballet Limited,Social Care,Supplies & Services
Leeds City Council,Children and Families,09/04/2019," 5,500.00 ",In Control Partnerships,Social Care,Supplies & Services
Leeds City Council,Children and Families,05/04/2019," 11,200.00 ",Leeds Schools Football Association,Social Care,Supplies & Services
Leeds City Council,Children and Families,12/04/2019," 2,995.00 ",Catch22 Charity Ltd,Social Care,Supplies & Services
Leeds City Council,Children and Families,04/04/2019, 33.00 ,Beeston Parish Centre,Social Care,Supplies & Services
Leeds City Council,Children and Families,10/04/2019, 40.00 ,Trinity Methodist Church,Social Care,Supplies & Services
Leeds City Council,Children and Families,11/04/2019, 18.00 ,The Cardigan Centre,Social Care,Supplies & Services
Leeds City Council,Children and Families,15/04/2019, 60.00 ,Christ The Saviour Church,Social Care,Supplies & Services
Leeds City Council,Children and Families,04/04/2019, 110.00 ,St.Cyprian With St James Church,Social Care,Supplies & Services
Leeds City Council,Children and Families,05/04/2019, 52.00 ,Guiseley Methodist Church,Social Care,Supplies & Services
Leeds City Council,Children and Families,12/04/2019, 30.00 ,Kippax Parish Hall,Social Care,Supplies & Services
Leeds City Council,Children and Families,29/04/2019, 39.00 ,St Margarets Church (Parish Centre),Social Care,Supplies & Services
Leeds City Council,Children and Families,29/04/2019, 59.50 ,St Margarets Church (Parish Centre),Social Care,Supplies & Services
Leeds City Council,Children and Families,10/04/2019, 39.00 ,St Margarets Church (Parish Centre),Social Care,Supplies & Services
Leeds City Council,Children and Families,08/04/2019, 60.00 ,St Margarets Church (Parish Centre),Social Care,Supplies & Services
Leeds City Council,Children and Families,08/04/2019, 115.50 ,St Margarets Church (Parish Centre),Social Care,Supplies & Services
Leeds City Council,Children and Families,18/04/2019, 45.00 ,Parochial Church Council Of Otley,Social Care,Supplies & Services
Leeds City Council,Children and Families,03/04/2019, 9.00 ,Rothwell Baptist Church,Social Care,Supplies & Services
Leeds City Council,Children and Families,16/04/2019, 44.00 ,The Salvation Army,Social Care,Supplies & Services
Leeds City Council,Children and Families,05/04/2019, 44.00 ,The Salvation Army,Social Care,Supplies & Services
Leeds City Council,Children and Families,24/04/2019, 80.00 ,Seacroft Village Hall Social Club,Social Care,Supplies & Services
Leeds City Council,Children and Families,05/04/2019, 25.00 ,Wesley Road Chapel,Social Care,Supplies & Services
Leeds City Council,Children and Families,11/04/2019, 60.00 ,St Wilfrid'S Church,Social Care,Supplies & Services
Leeds City Council,Children and Families,04/04/2019, 35.00 ,St Wilfrid'S Church,Social Care,Supplies & Services
Leeds City Council,Children and Families,17/04/2019, 112.00 ,Leeds Mencap Ltd,Social Care,Supplies & Services
Leeds City Council,Children and Families,17/04/2019, 45.00 ,Seacroft Methodist Church,Social Care,Supplies & Services
Leeds City Council,Children and Families,16/04/2019, 55.00 ,The Salvation Army,Social Care,Supplies & Services
Leeds City Council,Children and Families,10/04/2019, 60.00 ,Allerton Bywater Community Partnership,Social Care,Supplies & Services
Leeds City Council,Children and Families,09/04/2019, 144.00 ,Drighlington Methodist Church,Social Care,Supplies & Services
Leeds City Council,Children and Families,04/04/2019, 350.00 ,Dj School Leeds Cic,Social Care,Supplies & Services
Leeds City Council,Children and Families,05/04/2019," 5,625.00 ",Unitas Academy Ltd,Social Care,Supplies & Services
Leeds City Council,Children and Families,26/04/2019, 900.00 ,The Cardigan Centre,Social Care,Supplies & Services
Leeds City Council,Children and Families,03/04/2019, 25.00 ,The Ear Trust,Social Care,Supplies & Services
Leeds City Council,Children and Families,10/04/2019, 150.00 ,Doncaster Culture & Leisure Trust,Social Care,Supplies & Services
Leeds City Council,Children and Families,18/04/2019, 399.30 ,Coram Voice,Social Care,Supplies & Services
Leeds City Council,Children and Families,04/04/2019," 1,609.50 ",Coram Voice,Social Care,Supplies & Services
Leeds City Council,Children and Families,25/04/2019," 10,000.00 ",Barca - Leeds,Social Care,Supplies & Services
Leeds City Council,Children and Families,25/04/2019," 85,000.00 ",Barca - Leeds,Social Care,Supplies & Services
Leeds City Council,Children and Families,05/04/2019," 5,312.50 ",Barca - Leeds,Social Care,Supplies & Services
Leeds City Council,Children and Families,15/04/2019," 7,500.00 ",Gipsil,Social Care,Supplies & Services
Leeds City Council,Children and Families,03/04/2019, 521.07 ,Gorse Academies Trust,Social Care,Supplies & Services
Leeds City Council,Children and Families,01/04/2019," 15,750.00 ",Home-Start Leeds Ltd,Social Care,Supplies & Services
Leeds City Council,Children and Families,01/04/2019," 15,750.00 ",Home-Start Leeds Ltd,Social Care,Supplies & Services
Leeds City Council,Children and Families,10/04/2019," 4,168.42 ",Ireland Wood Childrens Centre,Social Care,Supplies & Services
Leeds City Council,Children and Families,08/04/2019," 2,084.21 ",Ireland Wood Childrens Centre,Social Care,Supplies & Services
Leeds City Council,Children and Families,23/04/2019," 40,000.00 ",Northpoint Wellbeing Limited,Social Care,Supplies & Services
Leeds City Council,Children and Families,03/04/2019, 801.20 ,People Matters (West Yorkshire) Cio,Social Care,Supplies & Services
Leeds City Council,Children and Families,12/04/2019, 603.05 ,People Matters (West Yorkshire) Cio,Social Care,Supplies & Services
Leeds City Council,Children and Families,09/04/2019, 687.50 ,Shantona Womens Centre,Social Care,Supplies & Services
Leeds City Council,Children and Families,16/04/2019," 27,161.00 ",Aireborough Supported Activities Scheme,Social Care,Supplies & Services
Leeds City Council,Children and Families,16/04/2019," 27,161.00 ",Aireborough Supported Activities Scheme,Social Care,Supplies & Services
Leeds City Council,Children and Families,03/04/2019, 174.72 ,Brownberrie Lane Pre-School,Social Care,Supplies & Services
Leeds City Council,Children and Families,30/04/2019, 174.72 ,Brownberrie Lane Pre-School,Social Care,Supplies & Services
Leeds City Council,Children and Families,05/04/2019," 9,458.25 ",Brownberrie Lane Pre-School,Social Care,Supplies & Services
Leeds City Council,Children and Families,03/04/2019," 4,033.78 ",Chapel Street Pre-School,Social Care,Supplies & Services
Leeds City Council,Children and Families,30/04/2019," 3,590.08 ",Chapel Street Pre-School,Social Care,Supplies & Services
Leeds City Council,Children and Families,05/04/2019," 7,611.00 ",Chapel Street Pre-School,Social Care,Supplies & Services
Leeds City Council,Children and Families,05/04/2019, 436.02 ,Garforth Pre-School Playgroup,Social Care,Supplies & Services
Leeds City Council,Children and Families,05/04/2019," 7,121.66 ",Greenacre Pre-School,Social Care,Supplies & Services
Leeds City Council,Children and Families,05/04/2019," 6,473.22 ",Greenside Care Club,Social Care,Supplies & Services
Leeds City Council,Children and Families,05/04/2019," 6,104.28 ",Kirkstall St Stephens Pre School,Social Care,Supplies & Services
Leeds City Council,Children and Families,16/04/2019," 37,997.50 ",Leeds Weekend Care Association,Social Care,Supplies & Services
Leeds City Council,Children and Families,16/04/2019," 37,997.50 ",Leeds Weekend Care Association,Social Care,Supplies & Services
Leeds City Council,Children and Families,05/04/2019," 27,750.00 ",Leeds Centre For Integrated Living,Social Care,Supplies & Services
Leeds City Council,Children and Families,16/04/2019," 43,595.99 ",Leeds Mencap Ltd,Social Care,Supplies & Services
Leeds City Council,Children and Families,03/04/2019," 1,622.40 ",Owls & The Pussycats Playgroup,Social Care,Supplies & Services
Leeds City Council,Children and Families,05/04/2019," 1,475.76 ",Owls & The Pussycats Playgroup,Social Care,Supplies & Services
Leeds City Council,Children and Families,15/04/2019, 663.36 ,People Matters (West Yorkshire) Cio,Social Care,Supplies & Services
Leeds City Council,Children and Families,16/04/2019, 482.44 ,People Matters (West Yorkshire) Cio,Social Care,Supplies & Services
Leeds City Council,Children and Families,30/04/2019, 447.98 ,People Matters (West Yorkshire) Cio,Social Care,Supplies & Services
Leeds City Council,Children and Families,16/04/2019," 7,255.00 ",Phoenix Dance Theatre,Social Care,Supplies & Services
Leeds City Council,Children and Families,03/04/2019, 182.52 ,Pool Pre-School Group,Social Care,Supplies & Services
Leeds City Council,Children and Families,05/04/2019," 5,539.69 ",Pool Pre-School Group,Social Care,Supplies & Services
Leeds City Council,Children and Families,05/04/2019," 3,156.20 ",Roundabout Playgroup,Social Care,Supplies & Services
Leeds City Council,Children and Families,30/04/2019, 468.00 ,Rainbow St Peters Pre School,Social Care,Supplies & Services
Leeds City Council,Children and Families,05/04/2019," 12,708.75 ",Rainbow St Peters Pre School,Social Care,Supplies & Services
Leeds City Council,Children and Families,16/04/2019," 13,189.96 ",Sense,Social Care,Supplies & Services
Leeds City Council,Children and Families,30/04/2019," 3,295.50 ",Shantona Womens Centre,Social Care,Supplies & Services
Leeds City Council,Children and Families,16/04/2019," 2,511.50 ",Sunshire And Smiles,Social Care,Supplies & Services
Leeds City Council,Children and Families,03/04/2019, 608.40 ,Templegate Tiny Tots,Social Care,Supplies & Services
Leeds City Council,Children and Families,30/04/2019, 608.40 ,Templegate Tiny Tots,Social Care,Supplies & Services
Leeds City Council,Children and Families,05/04/2019," 6,945.36 ",Templegate Tiny Tots,Social Care,Supplies & Services
Leeds City Council,Children and Families,05/04/2019," 3,173.40 ",The Play Centre,Social Care,Supplies & Services
Leeds City Council,Children and Families,03/04/2019, 202.80 ,Thorner Pre-School & Toddler Group,Social Care,Supplies & Services
Leeds City Council,Children and Families,05/04/2019," 5,270.49 ",Thorner Pre-School & Toddler Group,Social Care,Supplies & Services
Leeds City Council,Children and Families,12/04/2019," 9,742.86 ",Catholic Care,Social Care,Supplies & Services
Leeds City Council,Children and Families,12/04/2019," 9,742.86 ",Catholic Care,Social Care,Supplies & Services
Leeds City Council,Children and Families,04/04/2019, 302.82 ,Adolescent And Childrens Trust,Social Care,Supplies & Services
Leeds City Council,Children and Families,04/04/2019, 284.89 ,Adolescent And Childrens Trust,Social Care,Supplies & Services
Leeds City Council,Children and Families,04/04/2019," 3,057.04 ",Adolescent And Childrens Trust,Social Care,Supplies & Services
Leeds City Council,Children and Families,04/04/2019, 759.92 ,Adolescent And Childrens Trust,Social Care,Supplies & Services
Leeds City Council,Children and Families,04/04/2019," 2,826.32 ",Adolescent And Childrens Trust,Social Care,Supplies & Services
Leeds City Council,Children and Families,04/04/2019," 2,826.32 ",Adolescent And Childrens Trust,Social Care,Supplies & Services
Leeds City Council,Children and Families,04/04/2019," 2,826.32 ",Adolescent And Childrens Trust,Social Care,Supplies & Services
Leeds City Council,Children and Families,03/04/2019," 2,826.32 ",Adolescent And Childrens Trust,Social Care,Supplies & Services
Leeds City Council,Children and Families,03/04/2019," 2,884.00 ",Adolescent And Childrens Trust,Social Care,Supplies & Services
Leeds City Council,Children and Families,04/04/2019," 2,884.00 ",Adolescent And Childrens Trust,Social Care,Supplies & Services
Leeds City Council,Children and Families,04/04/2019," 2,660.00 ",Adolescent And Childrens Trust,Social Care,Supplies & Services
Leeds City Council,Children and Families,16/04/2019," 3,613.36 ",Barnardos,Social Care,Supplies & Services
Leeds City Council,Children and Families,16/04/2019," 6,608.00 ",Barnardos,Social Care,Supplies & Services
Leeds City Council,Children and Families,16/04/2019," 6,442.80 ",Barnardos,Social Care,Supplies & Services
Leeds City Council,Children and Families,12/04/2019," 7,869.42 ",Barnardos,Social Care,Supplies & Services
Leeds City Council,Children and Families,12/04/2019," 6,442.80 ",Barnardos,Social Care,Supplies & Services
Leeds City Council,Children and Families,12/04/2019," 4,635.71 ",Barnardos,Social Care,Supplies & Services
Leeds City Council,Children and Families,16/04/2019," 6,230.31 ",Barnardos,Social Care,Supplies & Services
Leeds City Council,Children and Families,12/04/2019," 5,520.71 ",Barnardos,Social Care,Supplies & Services
Leeds City Council,Children and Families,16/04/2019," 6,120.66 ",Barnardos,Social Care,Supplies & Services
Leeds City Council,Children and Families,16/04/2019," 5,798.52 ",Barnardos,Social Care,Supplies & Services
Leeds City Council,Children and Families,16/04/2019," 5,798.52 ",Barnardos,Social Care,Supplies & Services
Leeds City Council,Children and Families,16/04/2019," 2,074.80 ",Barnardos,Social Care,Supplies & Services
Leeds City Council,Children and Families,05/04/2019," 3,244.46 ",Childrens Family Trust,Social Care,Supplies & Services
Leeds City Council,Children and Families,26/04/2019," 2,773.00 ",Doncaster Childrens Services Trust Ltd,Social Care,Supplies & Services
Leeds City Council,Children and Families,01/04/2019," 4,776.48 ",Action For Children Services Ltd,Social Care,Supplies & Services
Leeds City Council,Children and Families,18/04/2019," 5,026.48 ",Action For Children,Social Care,Supplies & Services
Leeds City Council,Children and Families,18/04/2019," 4,776.48 ",Action For Children,Social Care,Supplies & Services
Leeds City Council,Children and Families,24/04/2019," 4,776.48 ",Action For Children,Social Care,Supplies & Services
Leeds City Council,Children and Families,03/04/2019, 381.45 ,Parallel Parents,Social Care,Supplies & Services
Leeds City Council,Children and Families,03/04/2019," 1,780.10 ",Parallel Parents,Social Care,Supplies & Services
Leeds City Council,Children and Families,03/04/2019, 195.44 ,Parallel Parents,Social Care,Supplies & Services
Leeds City Council,Children and Families,03/04/2019, 222.58 ,Parallel Parents,Social Care,Supplies & Services
Leeds City Council,Children and Families,03/04/2019, 195.44 ,Parallel Parents,Social Care,Supplies & Services
Leeds City Council,Children and Families,03/04/2019," 3,560.20 ",Parallel Parents,Social Care,Supplies & Services
Leeds City Council,Children and Families,03/04/2019," 2,793.84 ",Parallel Parents,Social Care,Supplies & Services
Leeds City Council,Children and Families,03/04/2019," 3,181.64 ",Parallel Parents,Social Care,Supplies & Services
Leeds City Council,Children and Families,03/04/2019," 3,057.60 ",Parallel Parents,Social Care,Supplies & Services
Leeds City Council,Children and Families,05/04/2019, 225.00 ,The Cardigan Centre,Social Care,Supplies & Services
Leeds City Council,Children and Families,26/04/2019, 225.00 ,The Cardigan Centre,Social Care,Supplies & Services
Leeds City Council,Children and Families,05/04/2019," 13,500.00 ",Path Yorkshire,Social Care,Supplies & Services
Leeds City Council,Children and Families,03/04/2019, 531.90 ,Asha Neighbourhood Project,Social Care,Supplies & Services
Leeds City Council,Children and Families,05/04/2019," 1,006.20 ",Asha Neighbourhood Project,Social Care,Supplies & Services
Leeds City Council,Children and Families,03/04/2019," 1,014.00 ",Abc Daycare And Ozone Out Of School,Social Care,Supplies & Services
Leeds City Council,Children and Families,05/04/2019," 12,074.40 ",Abc Daycare And Ozone Out Of School,Social Care,Supplies & Services
Leeds City Council,Children and Families,03/04/2019," 2,636.40 ",Amazing Grace Early Years Childcare,Social Care,Supplies & Services
Leeds City Council,Children and Families,05/04/2019," 6,875.70 ",Amazing Grace Early Years Childcare,Social Care,Supplies & Services
Leeds City Council,Children and Families,05/04/2019," 9,223.50 ",Burmantofts Community Nursery,Social Care,Supplies & Services
Leeds City Council,Children and Families,30/04/2019," 6,286.80 ",Burmantofts Community Nursery,Social Care,Supplies & Services
Leeds City Council,Children and Families,03/04/2019," 6,057.30 ",Burmantofts Community Nursery,Social Care,Supplies & Services
Leeds City Council,Children and Families,05/04/2019," 4,527.90 ",Chapeltown Community Nursery,Social Care,Supplies & Services
Leeds City Council,Children and Families,03/04/2019, 982.80 ,Chapeltown Community Nursery,Social Care,Supplies & Services
Leeds City Council,Children and Families,05/04/2019," 17,776.20 ",Calverley Village Day Nursery,Social Care,Supplies & Services
Leeds City Council,Children and Families,03/04/2019," 1,041.04 ",Ducklings Pre-School Learning Centre,Social Care,Supplies & Services
Leeds City Council,Children and Families,30/04/2019," 1,041.04 ",Ducklings Pre-School Learning Centre,Social Care,Supplies & Services
Leeds City Council,Children and Families,05/04/2019," 15,098.16 ",Ducklings Pre-School Learning Centre,Social Care,Supplies & Services
Leeds City Council,Children and Families,03/04/2019," 9,328.80 ",Faith Together In Leeds 11,Social Care,Supplies & Services
Leeds City Council,Children and Families,30/04/2019," 9,328.80 ",Faith Together In Leeds 11,Social Care,Supplies & Services
Leeds City Council,Children and Families,05/04/2019," 13,614.15 ",Faith Together In Leeds 11,Social Care,Supplies & Services
Leeds City Council,Children and Families,03/04/2019," 4,258.80 ",Ireland Wood Childrens Centre,Social Care,Supplies & Services
Leeds City Council,Children and Families,30/04/2019," 4,258.80 ",Ireland Wood Childrens Centre,Social Care,Supplies & Services
Leeds City Council,Children and Families,05/04/2019," 14,925.30 ",Ireland Wood Childrens Centre,Social Care,Supplies & Services
Leeds City Council,Children and Families,03/04/2019," 5,881.20 ",Kangaroo Kids Pre-School,Social Care,Supplies & Services
Leeds City Council,Children and Families,05/04/2019," 2,515.50 ",Kangaroo Kids Pre-School,Social Care,Supplies & Services
Leeds City Council,Children and Families,12/04/2019," 10,000.00 ",Leeds Centre For Integrated Living,Social Care,Supplies & Services
Leeds City Council,Children and Families,05/04/2019," 11,571.30 ",Leeds Mencap Ltd,Social Care,Supplies & Services
Leeds City Council,Children and Families,03/04/2019," 7,706.40 ",Leeds Mencap Ltd,Social Care,Supplies & Services
Leeds City Council,Children and Families,03/04/2019," 1,014.00 ",North Leeds Community Nursery,Social Care,Supplies & Services
Leeds City Council,Children and Families,05/04/2019," 8,809.84 ",North Leeds Community Nursery,Social Care,Supplies & Services
Leeds City Council,Children and Families,03/04/2019," 3,650.40 ",New Beginnings,Social Care,Supplies & Services
Leeds City Council,Children and Families,05/04/2019," 2,850.90 ",New Beginnings,Social Care,Supplies & Services
Leeds City Council,Children and Families,03/04/2019, 468.00 ,Rainbow St Peters Pre School,Social Care,Supplies & Services
Leeds City Council,Children and Families,03/04/2019, 608.40 ,Shadwell Pre-School Playgroup,Social Care,Supplies & Services
Leeds City Council,Children and Families,30/04/2019, 608.40 ,Shadwell Pre-School Playgroup,Social Care,Supplies & Services
Leeds City Council,Children and Families,05/04/2019," 16,340.00 ",Shadwell Pre-School Playgroup,Social Care,Supplies & Services
Leeds City Council,Children and Families,04/04/2019," 1,622.40 ",Sunbeams Ltd,Social Care,Supplies & Services
Leeds City Council,Children and Families,04/04/2019," 18,558.80 ",Sunbeams Ltd,Social Care,Supplies & Services
Leeds City Council,Children and Families,03/04/2019," 7,300.80 ",The Salvation Army,Social Care,Supplies & Services
Leeds City Council,Children and Families,30/04/2019," 7,300.80 ",The Salvation Army,Social Care,Supplies & Services
Leeds City Council,Children and Families,05/04/2019," 11,790.60 ",The Salvation Army,Social Care,Supplies & Services
Leeds City Council,Children and Families,25/04/2019," 35,763.75 ",The Brigshaw Learning Partnership,Social Care,Supplies & Services
Leeds City Council,Children and Families,25/04/2019," 50,200.25 ",The Brigshaw Learning Partnership,Social Care,Supplies & Services
Leeds City Council,Children and Families,26/04/2019," 1,836.45 ",The Co-Operative Acadamies Trust,Social Care,Supplies & Services
Leeds City Council,Children and Families,25/04/2019," 30,153.75 ",The Co-Operative Acadamies Trust,Social Care,Supplies & Services
Leeds City Council,Children and Families,18/04/2019, 87.44 ,Barnardos,Social Care,Supplies & Services
Leeds City Council,Children and Families,18/04/2019, 376.91 ,Barnardos,Social Care,Supplies & Services
Leeds City Council,Children and Families,18/04/2019, 18.00 ,Barnardos,Social Care,Supplies & Services
Leeds City Council,Children and Families,18/04/2019, 120.00 ,Barnardos,Social Care,Supplies & Services
Leeds City Council,Children and Families,18/04/2019, 165.52 ,Barnardos,Social Care,Supplies & Services
Leeds City Council,Children and Families,18/04/2019, 130.61 ,Barnardos,Social Care,Supplies & Services
Leeds City Council,Children and Families,18/04/2019, 121.88 ,Barnardos,Social Care,Supplies & Services
Leeds City Council,Children and Families,18/04/2019, 312.72 ,Barnardos,Social Care,Supplies & Services
Leeds City Council,Children and Families,18/04/2019, 148.65 ,Barnardos,Social Care,Supplies & Services
Leeds City Council,Children and Families,18/04/2019, 152.34 ,Barnardos,Social Care,Supplies & Services
Leeds City Council,Children and Families,18/04/2019," 1,016.63 ",Barnardos,Social Care,Supplies & Services
Leeds City Council,Children and Families,18/04/2019, 513.20 ,Barnardos,Social Care,Supplies & Services
Leeds City Council,Children and Families,18/04/2019, 474.85 ,Barnardos,Social Care,Supplies & Services
Leeds City Council,Children and Families,12/04/2019, 41.52 ,Barnardos,Social Care,Supplies & Services
Leeds City Council,Children and Families,12/04/2019," 9,800.91 ",Barnardos,Social Care,Supplies & Services
Leeds City Council,Children and Families,12/04/2019, 82.50 ,Barnardos,Social Care,Supplies & Services
Leeds City Council,Children and Families,12/04/2019, 230.53 ,Barnardos,Social Care,Supplies & Services
Leeds City Council,Children and Families,12/04/2019, 329.14 ,Barnardos,Social Care,Supplies & Services
Leeds City Council,Children and Families,05/04/2019,-166.75 ,Gipsil,Social Care,Supplies & Services
Leeds City Council,Children and Families,05/04/2019," 1,464.60 ",Gipsil,Social Care,Supplies & Services
Leeds City Council,Children and Families,10/04/2019, 632.84 ,Gipsil,Social Care,Supplies & Services
Leeds City Council,Children and Families,26/04/2019," 1,218.78 ",Turning Lives Around (Tla),Social Care,Supplies & Services
Leeds City Council,Children and Families,03/04/2019, 315.00 ,The Sanctuary Project Limited,Social Care,Supplies & Services
Leeds City Council,Children and Families,29/04/2019," 4,000.00 ",The Sanctuary Project Limited,Social Care,Supplies & Services
Leeds City Council,Children and Families,29/04/2019," 3,709.40 ",The Sanctuary Project Limited,Social Care,Supplies & Services
Leeds City Council,Children and Families,29/04/2019," 2,404.20 ",The Sanctuary Project Limited,Social Care,Supplies & Services
Leeds City Council,Children and Families,29/04/2019, 74.00 ,The Sanctuary Project Limited,Social Care,Supplies & Services
Leeds City Council,Children and Families,23/04/2019, 120.00 ,Barnardos,Social Care,Supplies & Services
Leeds City Council,Children and Families,18/04/2019, 153.00 ,Barnardos,Social Care,Supplies & Services
Leeds City Council,Children and Families,12/04/2019," 1,160.04 ",Barnardos,Social Care,Supplies & Services
Leeds City Council,Children and Families,12/04/2019," 1,160.04 ",Barnardos,Social Care,Supplies & Services
Leeds City Council,Children and Families,12/04/2019," 1,039.92 ",Barnardos,Social Care,Supplies & Services
Leeds City Council,Children and Families,12/04/2019," 1,160.04 ",Barnardos,Social Care,Supplies & Services
Leeds City Council,Children and Families,12/04/2019, 300.00 ,Think Like A Pony Cic,Social Care,Supplies & Services
Leeds City Council,Children and Families,08/04/2019, 162.00 ,Brownberrie Lane Pre-School,Social Care,Supplies & Services
Leeds City Council,Children and Families,01/04/2019, 403.00 ,Leeds Federated Housing Association,Social Care,Supplies & Services
Leeds City Council,Children and Families,15/04/2019," 2,160.00 ",Think Like A Pony Cic,Social Care,Supplies & Services
Leeds City Council,Children and Families,04/04/2019, 190.00 ,Think Like A Pony Cic,Social Care,Supplies & Services
Leeds City Council,Children and Families,01/04/2019, 360.00 ,Think Like A Pony Cic,Social Care,Supplies & Services
Leeds City Council,Children and Families,16/04/2019, 137.40 ,Advonet,Social Care,Supplies & Services
Leeds City Council,Children and Families,16/04/2019, 170.10 ,Advonet,Social Care,Supplies & Services
Leeds City Council,Children and Families,15/04/2019, 144.90 ,Advonet,Social Care,Supplies & Services
Leeds City Council,Children and Families,16/04/2019, 144.90 ,Advonet,Social Care,Supplies & Services
Leeds City Council,Children and Families,16/04/2019, 28.50 ,Advonet,Social Care,Supplies & Services
Leeds City Council,Children and Families,16/04/2019, 110.10 ,Advonet,Social Care,Supplies & Services
Leeds City Council,Children and Families,15/04/2019, 192.00 ,The Cardigan Centre,Social Care,Supplies & Services
Leeds City Council,Children and Families,15/04/2019, 32.00 ,The Cardigan Centre,Social Care,Supplies & Services
Leeds City Council,Children and Families,12/04/2019, 240.00 ,Think Like A Pony Cic,Social Care,Supplies & Services
Leeds City Council,Children and Families,16/04/2019, 250.00 ,Think Like A Pony Cic,Social Care,Supplies & Services
Leeds City Council,Children and Families,24/04/2019, 300.00 ,Think Like A Pony Cic,Social Care,Supplies & Services
Leeds City Council,Children and Families,12/04/2019, 969.36 ,Leeds Womens Aid,Social Care,Supplies & Services
Leeds City Council,Children and Families,12/04/2019," 1,292.48 ",Leeds Womens Aid,Social Care,Supplies & Services
Leeds City Council,Children and Families,12/04/2019, 969.36 ,Leeds Womens Aid,Social Care,Supplies & Services
Leeds City Council,Children and Families,26/04/2019," 3,290.94 ",Lucy Faithfull Foundation,Social Care,Supplies & Services
Leeds City Council,Children and Families,26/04/2019," 2,883.25 ",Lucy Faithfull Foundation,Social Care,Supplies & Services
Leeds City Council,Children and Families,02/04/2019, 59.99 ,Health For All (Leeds),Social Care,Supplies & Services
Leeds City Council,Children and Families,23/04/2019, 100.00 ,Families Forward,Social Care,Supplies & Services
Leeds City Council,Children and Families,26/04/2019, 677.60 ,Latch Ltd,Social Care,Supplies & Services
Leeds City Council,Children and Families,18/04/2019, 671.95 ,St Annes Community Services,Social Care,Supplies & Services
Leeds City Council,Children and Families,11/04/2019,-335.50 ,Gipsil,Social Care,Supplies & Services
Leeds City Council,Children and Families,05/04/2019,-629.20 ,Gipsil,Social Care,Supplies & Services
Leeds City Council,Children and Families,05/04/2019,-157.30 ,Gipsil,Social Care,Supplies & Services
Leeds City Council,Children and Families,05/04/2019,-775.05 ,Gipsil,Social Care,Supplies & Services
Leeds City Council,Children and Families,05/04/2019,-661.75 ,Gipsil,Social Care,Supplies & Services
Leeds City Council,Children and Families,08/04/2019, 775.50 ,Gipsil,Social Care,Supplies & Services
Leeds City Council,Children and Families,08/04/2019, 671.00 ,Gipsil,Social Care,Supplies & Services
Leeds City Council,Children and Families,11/04/2019," 4,393.75 ",Gipsil,Social Care,Supplies & Services
Leeds City Council,Children and Families,08/04/2019, 671.00 ,Gipsil,Social Care,Supplies & Services
Leeds City Council,Children and Families,10/04/2019," 1,162.50 ",Gipsil,Social Care,Supplies & Services
Leeds City Council,Children and Families,10/04/2019, 671.00 ,Gipsil,Social Care,Supplies & Services
Leeds City Council,Children and Families,09/04/2019," 4,160.00 ",Doncaster Deaf Trust,Social Care,Supplies & Services
Leeds City Council,Children and Families,23/04/2019, 240.00 ,The Sanctuary Project Limited,Social Care,Supplies & Services
Leeds City Council,Children and Families,29/04/2019, 300.00 ,The Sanctuary Project Limited,Social Care,Supplies & Services
Leeds City Council,Children and Families,29/04/2019, 240.00 ,The Sanctuary Project Limited,Social Care,Supplies & Services
Leeds City Council,Children and Families,29/04/2019, 300.00 ,The Sanctuary Project Limited,Social Care,Supplies & Services
Leeds City Council,City Development,05/04/2019," 10,000.00 ",Unity Enterprise,Economic Development,Supplies & Services
Leeds City Council,City Development,26/04/2019," 15,000.00 ",Ahead Partnership Ltd,Economic Development,Supplies & Services
Leeds City Council,City Development,17/04/2019, 262.50 ,Open College Network Yhr,Employment & Skills,Supplies & Services
Leeds City Council,City Development,26/04/2019, 25.00 ,The Cardigan Centre,Employment & Skills,Supplies & Services
Leeds City Council,City Development,26/04/2019, 75.00 ,Vera Media Ltd,Employment & Skills,Supplies & Services
Leeds City Council,City Development,05/04/2019," 3,112.00 ",Centre For Local Economic Strategies,Employment & Skills,Supplies & Services
Leeds City Council,City Development,05/04/2019," 4,100.00 ",Leeds Mind,Employment & Skills,Supplies & Services
Leeds City Council,City Development,12/04/2019," 5,500.00 ",Learning Partnerships,Employment & Skills,Supplies & Services
Leeds City Council,City Development,12/04/2019," 24,223.13 ",Path Yorkshire,Employment & Skills,Supplies & Services
Leeds City Council,City Development,24/04/2019," 33,863.93 ",Path Yorkshire,Employment & Skills,Supplies & Services
Leeds City Council,City Development,10/04/2019," 9,000.00 ",Remploy Ltd,Employment & Skills,Supplies & Services
Leeds City Council,City Development,30/04/2019," 7,850.00 ",Learning Partnerships,Employment & Skills,Supplies & Services
Leeds City Council,City Development,18/04/2019," 6,000.00 ",Path Yorkshire,Employment & Skills,Supplies & Services
Leeds City Council,City Development,25/04/2019," 24,115.00 ",East Street Arts,Employment & Skills,Supplies & Services
Leeds City Council,City Development,12/04/2019," 3,532.50 ",Pre-School Learning Alliance,Employment & Skills,Supplies & Services
Leeds City Council,City Development,12/04/2019," 1,700.00 ",Pre-School Learning Alliance,Employment & Skills,Supplies & Services
Leeds City Council,City Development,12/04/2019, 25.00 ,Pre-School Learning Alliance,Employment & Skills,Supplies & Services
Leeds City Council,City Development,15/04/2019," 35,685.00 ",Nari Ekta Ltd,Employment & Skills,Supplies & Services
Leeds City Council,City Development,16/04/2019," 5,928.00 ",Swarthmore Education Centre,Employment & Skills,Supplies & Services
Leeds City Council,City Development,26/04/2019," 5,000.00 ",The Cardigan Centre,Employment & Skills,Supplies & Services
Leeds City Council,City Development,02/04/2019," 15,992.00 ",Leeds Involving People,,Supplies & Services
Leeds City Council,City Development,18/04/2019, 100.00 ,Milford Rl Sports Club,,Supplies & Services
Leeds City Council,City Development,25/04/2019," 65,000.00 ",Yorkshire Wildlife Trust,,Supplies & Services
Leeds City Council,City Development,18/04/2019, 650.00 ,Institution Of Civil Engineers,Highways,Supplies & Services
Leeds City Council,City Development,01/04/2019," 10,000.00 ",Sustrans Ltd,Highways,Supplies & Services
Leeds City Council,City Development,05/04/2019, 200.00 ,The Clore Leadership Programme,"Libraries, Arts & Heritage",Supplies & Services
Leeds City Council,City Development,18/04/2019," 1,221.00 ",Lumen,"Libraries, Arts & Heritage",Supplies & Services
Leeds City Council,City Development,18/04/2019, 30.00 ,Thoresby Society,"Libraries, Arts & Heritage",Supplies & Services
Leeds City Council,City Development,08/04/2019," 8,208.00 ",Artlink West Yorkshire,"Libraries, Arts & Heritage",Supplies & Services
Leeds City Council,City Development,18/04/2019," 1,000.00 ",Assembly House Cic,"Libraries, Arts & Heritage",Supplies & Services
Leeds City Council,City Development,17/04/2019," 2,000.00 ",Black Health Initiative,"Libraries, Arts & Heritage",Supplies & Services
Leeds City Council,City Development,09/04/2019," 6,300.00 ",Courthouse Project (Otley) Ltd,"Libraries, Arts & Heritage",Supplies & Services
Leeds City Council,City Development,18/04/2019," 8,000.00 ",David Oluwale Memorial Association,"Libraries, Arts & Heritage",Supplies & Services
Leeds City Council,City Development,24/04/2019," 40,500.00 ",East Street Arts,"Libraries, Arts & Heritage",Supplies & Services
Leeds City Council,City Development,18/04/2019," 6,020.00 ",Gipsil,"Libraries, Arts & Heritage",Supplies & Services
Leeds City Council,City Development,08/04/2019," 3,600.00 ",Geraldine Connor Foundation,"Libraries, Arts & Heritage",Supplies & Services
Leeds City Council,City Development,09/04/2019," 9,450.00 ",Heads Together Productions Ltd,"Libraries, Arts & Heritage",Supplies & Services
Leeds City Council,City Development,18/04/2019," 1,000.00 ",Headingley Festival,"Libraries, Arts & Heritage",Supplies & Services
Leeds City Council,City Development,24/04/2019," 10,800.00 ",Interplay Theatre Trust,"Libraries, Arts & Heritage",Supplies & Services
Leeds City Council,City Development,09/04/2019," 3,600.00 ",Leeds Community Arts Network,"Libraries, Arts & Heritage",Supplies & Services
Leeds City Council,City Development,08/04/2019," 3,600.00 ",Leeds Irish Arts Foundation,"Libraries, Arts & Heritage",Supplies & Services
Leeds City Council,City Development,09/04/2019," 3,600.00 ",Leeds Lieder Ltd,"Libraries, Arts & Heritage",Supplies & Services
Leeds City Council,City Development,08/04/2019," 4,500.00 ",Left Bank Leeds Charitable Trust,"Libraries, Arts & Heritage",Supplies & Services
Leeds City Council,City Development,08/04/2019," 6,750.00 ",Pyramid Of Arts,"Libraries, Arts & Heritage",Supplies & Services
Leeds City Council,City Development,05/04/2019," 4,104.00 ",Skippko Arts Team,"Libraries, Arts & Heritage",Supplies & Services
Leeds City Council,City Development,08/04/2019," 14,107.50 ",South Asian Arts-Uk,"Libraries, Arts & Heritage",Supplies & Services
Leeds City Council,City Development,24/04/2019," 6,300.00 ",Space2 Leeds,"Libraries, Arts & Heritage",Supplies & Services
Leeds City Council,City Development,09/04/2019," 3,600.00 ",Tutti Frutti Productions,"Libraries, Arts & Heritage",Supplies & Services
Leeds City Council,City Development,17/04/2019," 9,500.00 ",Thackray Medical Museum Co Ltd,"Libraries, Arts & Heritage",Supplies & Services
Leeds City Council,City Development,08/04/2019," 4,500.00 ",Theatre Company Blah Blah Blah,"Libraries, Arts & Heritage",Supplies & Services
Leeds City Council,City Development,23/04/2019," 38,025.00 ",Black Health Initiative,"Libraries, Arts & Heritage",Supplies & Services
Leeds City Council,City Development,09/04/2019," 117,000.00 ",Leeds Grand Theatre & Opera,"Libraries, Arts & Heritage",Supplies & Services
Leeds City Council,City Development,09/04/2019," 180,000.00 ",Northern Ballet Limited,"Libraries, Arts & Heritage",Supplies & Services
Leeds City Council,City Development,09/04/2019," 418,500.00 ",Opera North Ltd,"Libraries, Arts & Heritage",Supplies & Services
Leeds City Council,City Development,09/04/2019," 55,575.00 ",Phoenix Dance Theatre,"Libraries, Arts & Heritage",Supplies & Services
Leeds City Council,City Development,24/04/2019," 45,900.00 ",Yorkshire Dance,"Libraries, Arts & Heritage",Supplies & Services
Leeds City Council,City Development,03/04/2019, 250.00 ,Art Link,"Libraries, Arts & Heritage",Supplies & Services
Leeds City Council,City Development,05/04/2019, 400.00 ,Noteability Concert Band,"Libraries, Arts & Heritage",Supplies & Services
Leeds City Council,City Development,12/04/2019," 2,000.00 ",The Fairey Band,"Libraries, Arts & Heritage",Supplies & Services
Leeds City Council,City Development,12/04/2019," 18,000.00 ",Opera North Ltd,"Libraries, Arts & Heritage",Supplies & Services
Leeds City Council,City Development,05/04/2019, 400.00 ,Skippko Arts Team,"Libraries, Arts & Heritage",Supplies & Services
Leeds City Council,City Development,26/04/2019," 1,500.00 ",Leeds Theatre Trust Ltd,"Libraries, Arts & Heritage",Supplies & Services
Leeds City Council,City Development,05/04/2019, 119.96 ,Yorkshire Dance,"Libraries, Arts & Heritage",Supplies & Services
Leeds City Council,City Development,05/04/2019, 38.00 ,Northern Ceramic Society,"Libraries, Arts & Heritage",Supplies & Services
Leeds City Council,City Development,10/04/2019,"-3,452.60 ",Leeds Civic Arts Guild,"Libraries, Arts & Heritage",Supplies & Services
Leeds City Council,City Development,10/04/2019, 688.50 ,Leeds Civic Arts Guild,"Libraries, Arts & Heritage",Supplies & Services
Leeds City Council,City Development,10/04/2019,-212.77 ,Leeds Civic Arts Guild,"Libraries, Arts & Heritage",Supplies & Services
Leeds City Council,City Development,10/04/2019," 5,106.41 ",Leeds Civic Arts Guild,"Libraries, Arts & Heritage",Supplies & Services
Leeds City Council,City Development,10/04/2019,-122.69 ,Leeds Civic Arts Guild,"Libraries, Arts & Heritage",Supplies & Services
Leeds City Council,City Development,03/04/2019, 950.00 ,Rtpi Yorkshire,Planning & Sustainable Development,Supplies & Services
Leeds City Council,City Development,25/04/2019, 243.50 ,Little Woodhouse Community Association,Planning & Sustainable Development,Supplies & Services
Leeds City Council,City Development,24/04/2019," 1,000.00 ",British Orienteering Federation,Recreation,Supplies & Services
Leeds City Council,City Development,04/04/2019, 188.32 ,Get Cycling Cic,Recreation,Supplies & Services
Leeds City Council,City Development,18/04/2019, 80.00 ,City Of Leeds Diving Club,Recreation,Supplies & Services
Leeds City Council,City Development,26/04/2019, 200.00 ,Yorkshire County Cricket Club,Recreation,Supplies & Services
Leeds City Council,City Development,25/04/2019, 35.00 ,Fareshare Yorkshire Limited,Recreation,Supplies & Services
Leeds City Council,City Development,12/04/2019, 267.49 ,The Makaton Charity,Recreation,Supplies & Services
Leeds City Council,City Development,10/04/2019," 8,000.00 ",Armley Helping Hands,Recreation,Supplies & Services
Leeds City Council,City Development,17/04/2019," 75,000.00 ",British Cycling Federation,Recreation,Supplies & Services
Leeds City Council,City Development,10/04/2019, 235.00 ,Henshaws Society For Blind People,Recreation,Supplies & Services
Leeds City Council,City Development,11/04/2019, 950.00 ,East Street Arts,,Supplies & Services
Leeds City Council,Communities and Environment,01/04/2019, 105.00 ,Lsdbp,"Benefits, Wlefare and Poverty",Supplies & Services
Leeds City Council,Communities and Environment,30/04/2019, 60.00 ,Lsdbp,"Benefits, Wlefare and Poverty",Supplies & Services
Leeds City Council,Communities and Environment,05/04/2019, 770.00 ,Emmaus Leeds,"Benefits, Wlefare and Poverty",Supplies & Services
Leeds City Council,Communities and Environment,12/04/2019," 1,320.00 ",Emmaus Leeds,"Benefits, Wlefare and Poverty",Supplies & Services
Leeds City Council,Communities and Environment,23/04/2019," 1,100.00 ",Emmaus Leeds,"Benefits, Wlefare and Poverty",Supplies & Services
Leeds City Council,Communities and Environment,26/04/2019, 220.00 ,Emmaus Leeds,"Benefits, Wlefare and Poverty",Supplies & Services
Leeds City Council,Communities and Environment,26/04/2019, 110.00 ,Emmaus Leeds,"Benefits, Wlefare and Poverty",Supplies & Services
Leeds City Council,Communities and Environment,08/04/2019, 115.00 ,Slate Cafe And Furniture Store,"Benefits, Wlefare and Poverty",Supplies & Services
Leeds City Council,Communities and Environment,01/04/2019, 495.00 ,Sydney Bridge Ltd,"Benefits, Wlefare and Poverty",Supplies & Services
Leeds City Council,Communities and Environment,26/04/2019, 220.00 ,Emmaus Leeds,"Benefits, Wlefare and Poverty",Supplies & Services
Leeds City Council,Communities and Environment,12/04/2019," 20,000.00 ",Leeds City Credit Union - Welfare Fund,"Benefits, Wlefare and Poverty",Supplies & Services
Leeds City Council,Communities and Environment,12/04/2019, 495.00 ,Sydney Bridge Ltd,"Benefits, Wlefare and Poverty",Supplies & Services
Leeds City Council,Communities and Environment,12/04/2019, 495.00 ,Sydney Bridge Ltd,"Benefits, Wlefare and Poverty",Supplies & Services
Leeds City Council,Communities and Environment,25/04/2019," 4,495.00 ",Keep Britain Tidy,Cleaner Neighbourhood Teams,Supplies & Services
Leeds City Council,Communities and Environment,01/04/2019, 30.00 ,Leeds Diocesan Board Of Finance,Communities,Supplies & Services
Leeds City Council,Communities and Environment,05/04/2019," 10,000.00 ",Holbeck Elderly Aid,Communities,Supplies & Services
Leeds City Council,Communities and Environment,11/04/2019, 45.00 ,The Robert Craven Memorial,Communities,Supplies & Services
Leeds City Council,Communities and Environment,16/04/2019, 833.00 ,Voluntary Action-Leeds,Communities,Supplies & Services
Leeds City Council,Communities and Environment,12/04/2019," 12,000.00 ",Voluntary Action-Leeds,Communities,Supplies & Services
Leeds City Council,Communities and Environment,30/04/2019," 1,756.00 ",Aireborough Supported Activities Scheme,Communities,Supplies & Services
Leeds City Council,Communities and Environment,02/04/2019, 40.00 ,Trinity Methodist Church,Communities,Supplies & Services
Leeds City Council,Communities and Environment,03/04/2019, 763.11 ,The Conservation Volunteers,Communities,Supplies & Services
Leeds City Council,Communities and Environment,17/04/2019," 1,393.01 ",The Cardigan Centre,Communities,Supplies & Services
Leeds City Council,Communities and Environment,30/04/2019," 1,633.07 ",Caring Together In Woodhouse And Little,Communities,Supplies & Services
Leeds City Council,Communities and Environment,11/04/2019," 5,967.45 ",Dazl,Communities,Supplies & Services
Leeds City Council,Communities and Environment,24/04/2019, 845.33 ,Leeds Irish Arts Foundation,Communities,Supplies & Services
Leeds City Council,Communities and Environment,26/04/2019," 1,439.69 ",Leeds Irish Arts Foundation,Communities,Supplies & Services
Leeds City Council,Communities and Environment,18/04/2019," 1,093.98 ",Love Pudsey,Communities,Supplies & Services
Leeds City Council,Communities and Environment,17/04/2019," 5,193.00 ",Moor Allerton Elderly Care,Communities,Supplies & Services
Leeds City Council,Communities and Environment,05/04/2019," 1,500.00 ",Naya Savera,Communities,Supplies & Services
Leeds City Council,Communities and Environment,04/04/2019," 1,000.00 ",Naya Savera,Communities,Supplies & Services
Leeds City Council,Communities and Environment,02/04/2019," 2,990.38 ",New Wortley Community Association Ltd,Communities,Supplies & Services
Leeds City Council,Communities and Environment,05/04/2019," 3,846.23 ",Dj School Leeds Cic,Communities,Supplies & Services
Leeds City Council,Communities and Environment,02/04/2019," 2,466.00 ",South Leeds Life C.I.C,Communities,Supplies & Services
Leeds City Council,Communities and Environment,05/04/2019," 3,000.00 ",Street Work Soccer Academy Ltd,Communities,Supplies & Services
Leeds City Council,Communities and Environment,11/04/2019," 5,000.00 ",Street Work Soccer Academy Ltd,Communities,Supplies & Services
Leeds City Council,Communities and Environment,09/04/2019, 24.00 ,Swinnow Community Centre,Communities,Supplies & Services
Leeds City Council,Communities and Environment,05/04/2019, 675.00 ,Vandan Group,Communities,Supplies & Services
Leeds City Council,Communities and Environment,18/04/2019, 135.00 ,Vandan Group,Communities,Supplies & Services
Leeds City Council,Communities and Environment,04/04/2019, 491.68 ,The Youth Association,Communities,Supplies & Services
Leeds City Council,Communities and Environment,18/04/2019, 50.00 ,Woodsley Road Community Centre,Communities,Supplies & Services
Leeds City Council,Communities and Environment,25/04/2019, 493.42 ,Leeds Irish Arts Foundation,Communities,Supplies & Services
Leeds City Council,Communities and Environment,26/04/2019," 5,000.00 ",St Lukes Cares,Communities,Supplies & Services
Leeds City Council,Communities and Environment,01/04/2019, 160.69 ,St Georges Centre Limited,Communities,Supplies & Services
Leeds City Council,Communities and Environment,12/04/2019, 388.69 ,St Georges Centre Limited,Communities,Supplies & Services
Leeds City Council,Communities and Environment,04/04/2019," 20,000.00 ",Learning Partnerships,Communities,Supplies & Services
Leeds City Council,Communities and Environment,30/04/2019," 427,967.14 ",Refugee Council,Communities,Supplies & Services
Leeds City Council,Communities and Environment,25/04/2019, 60.00 ,Leeds Swahili Cultural Community,Communities,Supplies & Services
Leeds City Council,Communities and Environment,18/04/2019," 5,992.00 ",Shantona Womens Centre,Communities,Supplies & Services
Leeds City Council,Communities and Environment,18/04/2019," 8,750.00 ",Street Work Soccer Academy Ltd,Communities,Supplies & Services
Leeds City Council,Communities and Environment,24/04/2019," 22,323.33 ",Voluntary Action-Leeds,Communities,Supplies & Services
Leeds City Council,Communities and Environment,05/04/2019, 100.00 ,Health For All (Leeds),Community Safety,Supplies & Services
Leeds City Council,Communities and Environment,18/04/2019, 225.00 ,Aspiedent Cic,Community Safety,Supplies & Services
Leeds City Council,Communities and Environment,18/04/2019," 1,200.00 ",Aspiedent Cic,Community Safety,Supplies & Services
Leeds City Council,Communities and Environment,25/04/2019," 18,750.00 ",Palm Cove Society,Community Safety,Supplies & Services
Leeds City Council,Communities and Environment,09/04/2019," 25,959.00 ",Victim Support,Community Safety,Supplies & Services
Leeds City Council,Communities and Environment,05/04/2019," 5,000.00 ",Black Health Initiative,Community Safety,Supplies & Services
Leeds City Council,Communities and Environment,05/04/2019," 5,000.00 ",Catch,Community Safety,Supplies & Services
Leeds City Council,Communities and Environment,05/04/2019," 5,000.00 ",Cfydc (Chance),Community Safety,Supplies & Services
Leeds City Council,Communities and Environment,05/04/2019," 5,000.00 ",Getaway Girls,Community Safety,Supplies & Services
Leeds City Council,Communities and Environment,10/04/2019, 6.00 ,Wetherby Civic Society,Customer Access,Supplies & Services
Leeds City Council,Communities and Environment,26/04/2019, 20.00 ,J B Priestley Society,Customer Access,Supplies & Services
Leeds City Council,Communities and Environment,05/04/2019, 700.00 ,Steven Clarkson,Customer Access,Supplies & Services
Leeds City Council,Communities and Environment,18/04/2019, 30.00 ,Thoresby Society,Customer Access,Supplies & Services
Leeds City Council,Communities and Environment,26/04/2019, 221.66 ,The Cardigan Centre,Customer Access,Supplies & Services
Leeds City Council,Communities and Environment,18/04/2019," 1,000.00 ",Ebor Gardens Advice Centre,Customer Access,Supplies & Services
Leeds City Council,Communities and Environment,05/04/2019, 100.00 ,Lion Learners North Lincolnshire,Customer Access,Supplies & Services
Leeds City Council,Communities and Environment,10/04/2019, 75.00 ,New Wortley Community Association Ltd,Customer Access,Supplies & Services
Leeds City Council,Communities and Environment,05/04/2019, 105.00 ,Rjc Productions Ltd,Customer Access,Supplies & Services
Leeds City Council,Communities and Environment,01/04/2019," 5,920.33 ",Cards For Good Causes Ltd,Customer Access,Supplies & Services
Leeds City Council,Communities and Environment,05/04/2019, 90.00 ,Lsdbp,Customer Access,Supplies & Services
Leeds City Council,Communities and Environment,25/04/2019, 99.45 ,Lsdbp,Customer Access,Supplies & Services
Leeds City Council,Communities and Environment,25/04/2019," 1,518.30 ",Lsdbp,Customer Access,Supplies & Services
Leeds City Council,Communities and Environment,05/04/2019," 3,325.00 ",Morley Arts Festival,Customer Access,Supplies & Services
Leeds City Council,Communities and Environment,01/04/2019, 250.00 ,East Keswick Village Hall,"Elections, Licensing and Registration",Supplies & Services
Leeds City Council,Communities and Environment,05/04/2019," 4,900.00 ",Garforth Rec Bowling Club,,Supplies & Services
Leeds City Council,Communities and Environment,30/04/2019, 5.00 ,Coal Industry Social Welfare,Parks and Countryside,Supplies & Services
Leeds City Council,Communities and Environment,12/04/2019," 1,960.00 ",Keep Britain Tidy,Parks and Countryside,Supplies & Services
Leeds City Council,Communities and Environment,04/04/2019, 275.00 ,Gloucester Cattle Society,Parks and Countryside,Supplies & Services
Leeds City Council,Communities and Environment,09/04/2019, 105.00 ,Irish Moiled Cattle Society,Parks and Countryside,Supplies & Services
Leeds City Council,Communities and Environment,26/04/2019," 16,000.00 ",Crossgates Cricket Club,Parks and Countryside,Supplies & Services
Leeds City Council,Communities and Environment,26/04/2019," 16,258.00 ",Yorkshire Wildlife Trust,Parks and Countryside,Supplies & Services
Leeds City Council,Communities and Environment,23/04/2019, 750.00 ,Fareshare Yorkshire Limited,Waste Management,Supplies & Services
Leeds City Council,Communities and Environment,05/04/2019," 1,042.99 ",Emmaus Leeds,Waste Management,Supplies & Services
Leeds City Council,Communities and Environment,05/04/2019, 436.62 ,St Judes Furniture Store,Waste Management,Supplies & Services
Leeds City Council,Communities and Environment,05/04/2019," 1,050.57 ",Leeds & Moortown Furniture Store,Waste Management,Supplies & Services
Leeds City Council,Communities and Environment,05/04/2019, 926.36 ,St Lukes Cares,Waste Management,Supplies & Services
Leeds City Council,Communities and Environment,05/04/2019, 534.71 ,Safe Haven & Willow Green,Waste Management,Supplies & Services
Leeds City Council,Communities and Environment,05/04/2019," 1,268.21 ",South Leeds Alternative Trading,Waste Management,Supplies & Services
Leeds City Council,Communities and Environment,17/04/2019, 430.00 ,Frn,Waste Management,Supplies & Services
Leeds City Council,Resources and Housing,24/04/2019, 151.20 ,Fareshare Yorkshire Limited,Commercial Services,Supplies & Services
Leeds City Council,Resources and Housing,24/04/2019," 1,000.00 ",Voluntary Action-Leeds,Commercial Services,Supplies & Services
Leeds City Council,Resources and Housing,05/04/2019, 17.30 ,Organic Dales,Commercial Services,Supplies & Services
Leeds City Council,Resources and Housing,05/04/2019, 128.30 ,Organic Dales,Commercial Services,Supplies & Services
Leeds City Council,Resources and Housing,05/04/2019, 64.50 ,Organic Dales,Commercial Services,Supplies & Services
Leeds City Council,Resources and Housing,12/04/2019, 90.00 ,Church In Rodley,Democratic Services,Supplies & Services
Leeds City Council,Resources and Housing,30/04/2019, 108.00 ,St Chads Parish Centre,Democratic Services,Supplies & Services
Leeds City Council,Resources and Housing,08/04/2019, 10.00 ,St James The Great Church Woodhall,Democratic Services,Supplies & Services
Leeds City Council,Resources and Housing,26/04/2019, 161.25 ,New Wortley Community Association Ltd,Democratic Services,Supplies & Services
Leeds City Council,Resources and Housing,25/04/2019, 18.00 ,Giving.Com Ltd T/A Justgiving,Democratic Services,Supplies & Services
Leeds City Council,Resources and Housing,12/04/2019, 200.00 ,Cipfa,Finance,Supplies & Services
Leeds City Council,Resources and Housing,18/04/2019, 100.00 ,Cipfa,Finance,Supplies & Services
Leeds City Council,Resources and Housing,18/04/2019, 100.00 ,Cipfa,Finance,Supplies & Services
Leeds City Council,Resources and Housing,18/04/2019, 100.00 ,Cipfa,Finance,Supplies & Services
Leeds City Council,Resources and Housing,18/04/2019, 100.00 ,Cipfa,Finance,Supplies & Services
Leeds City Council,Resources and Housing,18/04/2019, 100.00 ,Cipfa,Finance,Supplies & Services
Leeds City Council,Resources and Housing,01/04/2019," 38,967.71 ",Latch Ltd,,Supplies & Services
Leeds City Council,Resources and Housing,26/04/2019," 1,515.87 ",Care & Repair Leeds,,Supplies & Services
Leeds City Council,Resources and Housing,29/04/2019," 2,976.00 ",Care & Repair Leeds,,Supplies & Services
Leeds City Council,Resources and Housing,15/04/2019," 5,345.00 ",Care & Repair Leeds,,Supplies & Services
Leeds City Council,Resources and Housing,15/04/2019," 7,065.98 ",Care & Repair Leeds,,Supplies & Services
Leeds City Council,Resources and Housing,17/04/2019, 175.00 ,Cape Conference,Human Resources,Supplies & Services
Leeds City Council,Resources and Housing,26/04/2019, 53.52 ,Cgl,SP Contracts & SECC,Supplies & Services
Leeds City Council,Resources and Housing,26/04/2019," 25,000.00 ",Barca - Leeds,SP Contracts & SECC,Supplies & Services
Leeds City Council,Resources and Housing,18/04/2019, 582.45 ,Connect Housing Association Limited,SP Contracts & SECC,Supplies & Services
Leeds City Council,Resources and Housing,24/04/2019, 582.45 ,Connect Housing Association Limited,SP Contracts & SECC,Supplies & Services
Leeds City Council,Resources and Housing,24/04/2019, 582.45 ,Connect Housing Association Limited,SP Contracts & SECC,Supplies & Services
Leeds City Council,Resources and Housing,24/04/2019, 255.09 ,Connect Housing Association Limited,SP Contracts & SECC,Supplies & Services
Leeds City Council,Resources and Housing,18/04/2019," 18,886.00 ",Leeds Womens Aid,SP Contracts & SECC,Supplies & Services
Leeds City Council,Resources and Housing,24/04/2019, 582.45 ,Connect Housing Association Limited,SP Contracts & SECC,Supplies & Services
Leeds City Council,Resources and Housing,05/04/2019," 38,000.00 ",Gipsil,SP Contracts & SECC,Supplies & Services
Leeds City Council,Resources and Housing,05/04/2019," 70,291.50 ",Gipsil,SP Contracts & SECC,Supplies & Services
Leeds City Council,Resources and Housing,05/04/2019," 927,937.50 ",Gipsil,SP Contracts & SECC,Supplies & Services
Leeds City Council,Resources and Housing,05/04/2019," 352,755.00 ",Gipsil,SP Contracts & SECC,Supplies & Services
Leeds City Council,Resources and Housing,05/04/2019," 117,432.00 ",Gipsil,SP Contracts & SECC,Supplies & Services
Leeds City Council,Resources and Housing,16/04/2019," 1,211.85 ",Leeds Jewish Housing Association Limited,SP Contracts & SECC,Supplies & Services
Leeds City Council,Resources and Housing,18/04/2019," 38,527.00 ",Leeds Womens Aid,SP Contracts & SECC,Supplies & Services
Leeds City Council,Resources and Housing,18/04/2019," 25,000.00 ",Leeds Womens Aid,SP Contracts & SECC,Supplies & Services
Leeds City Council,Resources and Housing,16/04/2019," 221,474.50 ",Leeds Womens Aid,SP Contracts & SECC,Supplies & Services
Leeds City Council,Resources and Housing,12/04/2019," 43,803.25 ",Turning Lives Around (Tla),SP Contracts & SECC,Supplies & Services
Leeds City Council,Resources and Housing,12/04/2019," 30,556.25 ",Turning Lives Around (Tla),SP Contracts & SECC,Supplies & Services
Leeds City Council,Resources and Housing,12/04/2019," 279,895.02 ",Turning Lives Around (Tla),SP Contracts & SECC,Supplies & Services
Leeds City Council,Resources and Housing,18/04/2019," 3,652.50 ",Barnardos,Strategic Housing Partnership & Support,Supplies & Services
Leeds City Council,Resources and Housing,18/04/2019," 2,901.05 ",Turning Lives Around (Tla),Strategic Housing Partnership & Support,Supplies & Services
Leeds City Council,Resources and Housing,18/04/2019," 2,602.44 ",Turning Lives Around (Tla),Strategic Housing Partnership & Support,Supplies & Services
Leeds City Council,Resources and Housing,10/04/2019, 160.00 ,Sydney Bridge Ltd,Strategic Housing Partnership & Support,Supplies & Services
Leeds City Council,Resources and Housing,10/04/2019, 255.00 ,Sydney Bridge Ltd,Strategic Housing Partnership & Support,Supplies & Services
Leeds City Council,Resources and Housing,08/04/2019, 114.66 ,Cgl,Strategic Housing Partnership & Support,Supplies & Services
Leeds City Council,Resources and Housing,08/04/2019, 345.48 ,Connect Housing Association Limited,Strategic Housing Partnership & Support,Supplies & Services
Leeds City Council,Resources and Housing,15/04/2019, 422.72 ,Yorkshire Housing Association,Strategic Housing Partnership & Support,Supplies & Services
Leeds City Council,Resources and Housing,16/04/2019, 582.78 ,Yorkshire Housing Association,Strategic Housing Partnership & Support,Supplies & Services
Leeds City Council,Resources and Housing,26/04/2019," 7,484.17 ",Humankind,Strategic Housing Partnership & Support,Supplies & Services
Leeds City Council,Resources and Housing,30/04/2019," 38,755.60 ",Cgl,Strategic Housing Partnership & Support,Supplies & Services
Leeds City Council,Resources and Housing,04/04/2019," 2,376.00 ",Accent Homes Ltd,,Supplies & Services
Leeds City Council,Resources and Housing,04/04/2019," 13,847.70 ",Care & Repair Leeds,,Supplies & Services
Leeds City Council,Resources and Housing,04/04/2019," 7,787.71 ",Care & Repair Leeds,,Supplies & Services
Leeds City Council,Resources and Housing,04/04/2019," 12,991.80 ",Care & Repair Leeds,,Supplies & Services
Leeds City Council,Resources and Housing,04/04/2019," 17,735.99 ",Care & Repair Leeds,,Supplies & Services
Leeds City Council,Resources and Housing,04/04/2019," 33,600.00 ",Care & Repair Leeds,,Supplies & Services
Leeds City Council,Resources and Housing,04/04/2019," 46,062.35 ",Care & Repair Leeds,,Supplies & Services
Leeds City Council,Resources and Housing,04/04/2019," 34,760.91 ",Care & Repair Leeds,,Supplies & Services
Leeds City Council,Resources and Housing,04/04/2019," 21,013.92 ",Care & Repair Leeds,,Supplies & Services
Leeds City Council,Resources and Housing,04/04/2019," 5,983.46 ",Care & Repair Leeds,,Supplies & Services
Leeds City Council,Resources and Housing,04/04/2019," 20,192.21 ",Care & Repair Leeds,,Supplies & Services
Leeds City Council,Resources and Housing,04/04/2019," 4,772.84 ",Care & Repair Leeds,,Supplies & Services
Leeds City Council,Resources and Housing,04/04/2019," 16,628.32 ",Care & Repair Leeds,,Supplies & Services
Leeds City Council,Resources and Housing,04/04/2019," 32,700.00 ",Care & Repair Leeds,,Supplies & Services
Leeds City Council,Resources and Housing,04/04/2019," 2,528.49 ",Yorkshire Housing,,Supplies & Services
Leeds City Council,Resources and Housing,04/04/2019," 1,843.20 ",Yorkshire Housing,,Supplies & Services
Leeds City Council,Resources and Housing,26/04/2019," 1,771.92 ",Care & Repair Leeds,,Supplies & Services
Leeds City Council,Resources and Housing,11/04/2019," 50,000.00 ",Care & Repair Leeds,,Supplies & Services
Leeds City Council,Resources and Housing,23/04/2019," 5,560.00 ",Care & Repair Leeds,,Supplies & Services
Leeds City Council,Resources and Housing,11/04/2019," 16,138.98 ",Care & Repair Leeds,,Supplies & Services
Leeds City Council,Resources and Housing,26/04/2019," 17,974.50 ",Care & Repair Leeds,,Supplies & Services
Leeds City Council,Resources and Housing,26/04/2019," 2,177.28 ",Care & Repair Leeds,,Supplies & Services
Leeds City Council,Resources and Housing,26/04/2019," 4,788.67 ",Care & Repair Leeds,,Supplies & Services
Leeds City Council,Resources and Housing,26/04/2019," 2,795.46 ",Care & Repair Leeds,,Supplies & Services
Leeds City Council,Resources and Housing,26/04/2019," 11,812.80 ",Care & Repair Leeds,,Supplies & Services
Leeds City Council,Resources and Housing,26/04/2019," 8,859.60 ",Care & Repair Leeds,,Supplies & Services
Leeds City Council,Resources and Housing,25/04/2019, 500.00 ,East Street Arts,Strategy and Improvement,Supplies & Services
Leeds City Council,Resources and Housing,26/04/2019," 2,000.00 ",Care & Repair Leeds,,Supplies & Services
Leeds City Council,Strategic Accounts,11/04/2019, 106.80 ,St Wilfrids Church,Miscellaneous,Supplies & Services
Leeds City Council,Strategic Landlord,03/04/2019, 81.00 ,Lsdbp,Housing Management,Supplies & Services
Leeds City Council,Strategic Landlord,18/04/2019," 1,334.00 ",Wycas,Housing Management,Supplies & Services
Leeds City Council,Strategic Landlord,15/04/2019, 404.25 ,Disability Rights Uk,Housing Management,Supplies & Services
Leeds City Council,Strategic Landlord,05/04/2019," 4,000.00 ",Caring Together In Woodhouse And Little,Housing Management,Supplies & Services
Leeds City Council,Strategic Landlord,11/04/2019, 450.00 ,Connect Association,Housing Management,Supplies & Services
Leeds City Council,Strategic Landlord,11/04/2019," 1,460.00 ",East Leeds Arlfc,Housing Management,Supplies & Services
Leeds City Council,Strategic Landlord,05/04/2019, 290.00 ,Queensview Residents Association,Housing Management,Supplies & Services
Leeds City Council,Strategic Landlord,29/04/2019, 500.00 ,Harehills In Bloom,Housing Management,Supplies & Services
Leeds City Council,Strategic Landlord,11/04/2019," 4,900.00 ",Morley Elderly Action,Housing Management,Supplies & Services
Leeds City Council,Strategic Landlord,12/04/2019," 2,000.00 ",New Wortley Community Association Ltd,Housing Management,Supplies & Services
Leeds City Council,Strategic Landlord,29/04/2019," 1,250.00 ",Nigeria Community Leeds (Ncl),Housing Management,Supplies & Services
Leeds City Council,Strategic Landlord,29/04/2019," 3,140.00 ",Richmond Hill Elderly Action,Housing Management,Supplies & Services
Leeds City Council,Strategic Landlord,29/04/2019, 154.50 ,Stoney Rock Court Sheltered Housing,Housing Management,Supplies & Services
Leeds City Council,Strategic Landlord,17/04/2019, 574.12 ,Care & Repair Leeds,Property and Contracts,Supplies & Services
Leeds City Council as Accountable Body,Social Services Pooled Budgets,12/04/2019, 15.00 ,Advonet,Jcs For People With Learning Disabilitie,Supplies & Services
Leeds City Council as Accountable Body,Social Services Pooled Budgets,12/04/2019, 52.50 ,Advonet,Jcs For People With Learning Disabilitie,Supplies & Services
Leeds City Council as Accountable Body,Social Services Pooled Budgets,03/04/2019, 45.00 ,Advonet,Jcs For People With Learning Disabilitie,Supplies & Services
Leeds City Council as Accountable Body,Social Services Pooled Budgets,03/04/2019, 9.90 ,Advonet,Jcs For People With Learning Disabilitie,Supplies & Services
Leeds City Council as Accountable Body,Social Services Pooled Budgets,03/04/2019," 6,567.66 ",Advonet,Jcs For People With Learning Disabilitie,Supplies & Services
Leeds City Council as Accountable Body,Social Services Pooled Budgets,02/04/2019, 142.50 ,Advonet,Jcs For People With Learning Disabilitie,Supplies & Services
Leeds City Council as Accountable Body,Social Services Pooled Budgets,02/04/2019, 92.40 ,Advonet,Jcs For People With Learning Disabilitie,Supplies & Services
Leeds City Council as Accountable Body,Social Services Pooled Budgets,03/04/2019, 72.60 ,Advonet,Jcs For People With Learning Disabilitie,Supplies & Services
Leeds City Council as Accountable Body,Social Services Pooled Budgets,02/04/2019," 1,458.90 ",Advonet,Jcs For People With Learning Disabilitie,Supplies & Services
Leeds City Council as Accountable Body,Social Services Pooled Budgets,02/04/2019, 45.00 ,Advonet,Jcs For People With Learning Disabilitie,Supplies & Services
Leeds City Council as Accountable Body,Social Services Pooled Budgets,10/04/2019," 24,925.00 ",People In Action Leeds Uk,Jcs For People With Learning Disabilitie,Supplies & Services
Leeds City Council as Accountable Body,Social Services Pooled Budgets,10/04/2019," 21,921.45 ",People In Action Leeds Uk,Jcs For People With Learning Disabilitie,Supplies & Services
Leeds City Council as Accountable Body,Social Services Pooled Budgets,05/04/2019, 270.00 ,Advonet,Jcs For People With Learning Disabilitie,Supplies & Services
Leeds City Council as Accountable Body,Social Services Pooled Budgets,05/04/2019, 144.90 ,Advonet,Jcs For People With Learning Disabilitie,Supplies & Services
Leeds City Council as Accountable Body,Social Services Pooled Budgets,05/04/2019, 180.00 ,Advonet,Jcs For People With Learning Disabilitie,Supplies & Services
Leeds City Council as Accountable Body,Social Services Pooled Budgets,05/04/2019, 189.90 ,Advonet,Jcs For People With Learning Disabilitie,Supplies & Services
Leeds City Council as Accountable Body,Social Services Pooled Budgets,18/04/2019, 416.64 ,Affinity Trust,Jcs For People With Learning Disabilitie,Supplies & Services
Leeds City Council as Accountable Body,Social Services Pooled Budgets,18/04/2019, 255.68 ,Affinity Trust,Jcs For People With Learning Disabilitie,Supplies & Services
Leeds City Council as Accountable Body,Social Services Pooled Budgets,26/04/2019," 1,440.00 ",Affinity Trust,Jcs For People With Learning Disabilitie,Supplies & Services
Leeds City Council as Accountable Body,Social Services Pooled Budgets,26/04/2019," 1,021.32 ",Affinity Trust,Jcs For People With Learning Disabilitie,Supplies & Services
Leeds City Council as Accountable Body,Social Services Pooled Budgets,26/04/2019, 402.24 ,Affinity Trust,Jcs For People With Learning Disabilitie,Supplies & Services
Leeds City Council as Accountable Body,Social Services Pooled Budgets,26/04/2019," 2,149.92 ",Affinity Trust,Jcs For People With Learning Disabilitie,Supplies & Services
Leeds City Council as Accountable Body,Social Services Pooled Budgets,26/04/2019, 648.95 ,Affinity Trust,Jcs For People With Learning Disabilitie,Supplies & Services
Leeds City Council as Accountable Body,Social Services Pooled Budgets,26/04/2019," 2,346.40 ",Affinity Trust,Jcs For People With Learning Disabilitie,Supplies & Services
Leeds City Council as Accountable Body,Social Services Pooled Budgets,26/04/2019," 1,322.64 ",Affinity Trust,Jcs For People With Learning Disabilitie,Supplies & Services
Leeds City Council as Accountable Body,Social Services Pooled Budgets,26/04/2019," 2,031.48 ",Affinity Trust,Jcs For People With Learning Disabilitie,Supplies & Services
Leeds City Council as Accountable Body,Social Services Pooled Budgets,01/04/2019, 337.50 ,The Conservation Volunteers,Jcs For People With Learning Disabilitie,Supplies & Services
Leeds City Council as Accountable Body,Social Services Pooled Budgets,01/04/2019, 337.50 ,The Conservation Volunteers,Jcs For People With Learning Disabilitie,Supplies & Services
Leeds City Council as Accountable Body,Social Services Pooled Budgets,01/04/2019, 337.50 ,The Conservation Volunteers,Jcs For People With Learning Disabilitie,Supplies & Services
Leeds City Council as Accountable Body,Social Services Pooled Budgets,01/04/2019, 337.50 ,The Conservation Volunteers,Jcs For People With Learning Disabilitie,Supplies & Services
Leeds City Council as Accountable Body,Social Services Pooled Budgets,01/04/2019, 337.50 ,The Conservation Volunteers,Jcs For People With Learning Disabilitie,Supplies & Services
Leeds City Council as Accountable Body,Social Services Pooled Budgets,05/04/2019, 326.68 ,Harrogate Skills 4  Living Centre,Jcs For People With Learning Disabilitie,Supplies & Services
Leeds City Council as Accountable Body,Social Services Pooled Budgets,05/04/2019, 472.98 ,Harrogate Skills 4  Living Centre,Jcs For People With Learning Disabilitie,Supplies & Services
Leeds City Council as Accountable Body,Social Services Pooled Budgets,05/04/2019, 81.67 ,Harrogate Skills 4  Living Centre,Jcs For People With Learning Disabilitie,Supplies & Services
Leeds City Council as Accountable Body,Social Services Pooled Budgets,02/04/2019, 592.00 ,Henshaws Society For Blind People,Jcs For People With Learning Disabilitie,Supplies & Services
Leeds City Council as Accountable Body,Social Services Pooled Budgets,02/04/2019, 296.00 ,Henshaws Society For Blind People,Jcs For People With Learning Disabilitie,Supplies & Services
Leeds City Council as Accountable Body,Social Services Pooled Budgets,02/04/2019, 222.00 ,Henshaws Society For Blind People,Jcs For People With Learning Disabilitie,Supplies & Services
Leeds City Council as Accountable Body,Social Services Pooled Budgets,02/04/2019, 444.00 ,Henshaws Society For Blind People,Jcs For People With Learning Disabilitie,Supplies & Services
Leeds City Council as Accountable Body,Social Services Pooled Budgets,02/04/2019, 148.00 ,Henshaws Society For Blind People,Jcs For People With Learning Disabilitie,Supplies & Services
Leeds City Council as Accountable Body,Social Services Pooled Budgets,11/04/2019, 444.00 ,Henshaws Society For Blind People,Jcs For People With Learning Disabilitie,Supplies & Services
Leeds City Council as Accountable Body,Social Services Pooled Budgets,02/04/2019, 810.00 ,Henshaws Society For Blind People,Jcs For People With Learning Disabilitie,Supplies & Services
Leeds City Council as Accountable Body,Social Services Pooled Budgets,02/04/2019, 555.00 ,Henshaws Society For Blind People,Jcs For People With Learning Disabilitie,Supplies & Services
Leeds City Council as Accountable Body,Social Services Pooled Budgets,02/04/2019, 222.00 ,Henshaws Society For Blind People,Jcs For People With Learning Disabilitie,Supplies & Services
Leeds City Council as Accountable Body,Social Services Pooled Budgets,02/04/2019, 555.00 ,Henshaws Society For Blind People,Jcs For People With Learning Disabilitie,Supplies & Services
Leeds City Council as Accountable Body,Social Services Pooled Budgets,11/04/2019, 592.00 ,Henshaws Society For Blind People,Jcs For People With Learning Disabilitie,Supplies & Services
Leeds City Council as Accountable Body,Social Services Pooled Budgets,11/04/2019, 592.00 ,Henshaws Society For Blind People,Jcs For People With Learning Disabilitie,Supplies & Services
Leeds City Council as Accountable Body,Social Services Pooled Budgets,02/04/2019, 444.00 ,Henshaws Society For Blind People,Jcs For People With Learning Disabilitie,Supplies & Services
Leeds City Council as Accountable Body,Social Services Pooled Budgets,02/04/2019, 222.00 ,Henshaws Society For Blind People,Jcs For People With Learning Disabilitie,Supplies & Services
Leeds City Council as Accountable Body,Social Services Pooled Budgets,02/04/2019, 592.00 ,Henshaws Society For Blind People,Jcs For People With Learning Disabilitie,Supplies & Services
Leeds City Council as Accountable Body,Social Services Pooled Budgets,11/04/2019, 592.00 ,Henshaws Society For Blind People,Jcs For People With Learning Disabilitie,Supplies & Services
Leeds City Council as Accountable Body,Social Services Pooled Budgets,03/04/2019," 1,591.00 ",Henshaws Society For Blind People,Jcs For People With Learning Disabilitie,Supplies & Services
Leeds City Council as Accountable Body,Social Services Pooled Budgets,12/04/2019, 740.00 ,Henshaws Society For Blind People,Jcs For People With Learning Disabilitie,Supplies & Services
Leeds City Council as Accountable Body,Social Services Pooled Budgets,02/04/2019, 188.60 ,Henshaws Society For Blind People,Jcs For People With Learning Disabilitie,Supplies & Services
Leeds City Council as Accountable Body,Social Services Pooled Budgets,26/04/2019," 1,270.92 ",Henshaws Society For Blind People,Jcs For People With Learning Disabilitie,Supplies & Services
Leeds City Council as Accountable Body,Social Services Pooled Budgets,02/04/2019, 119.83 ,Henshaws Society For Blind People,Jcs For People With Learning Disabilitie,Supplies & Services
Leeds City Council as Accountable Body,Social Services Pooled Budgets,02/04/2019, 144.00 ,Henshaws Society For Blind People,Jcs For People With Learning Disabilitie,Supplies & Services
Leeds City Council as Accountable Body,Social Services Pooled Budgets,02/04/2019, 169.74 ,Henshaws Society For Blind People,Jcs For People With Learning Disabilitie,Supplies & Services
Leeds City Council as Accountable Body,Social Services Pooled Budgets,02/04/2019, 56.64 ,Henshaws Society For Blind People,Jcs For People With Learning Disabilitie,Supplies & Services
Leeds City Council as Accountable Body,Social Services Pooled Budgets,02/04/2019, 245.23 ,Henshaws Society For Blind People,Jcs For People With Learning Disabilitie,Supplies & Services
Leeds City Council as Accountable Body,Social Services Pooled Budgets,02/04/2019, 481.00 ,Henshaws Society For Blind People,Jcs For People With Learning Disabilitie,Supplies & Services
Leeds City Council as Accountable Body,Social Services Pooled Budgets,02/04/2019, 333.00 ,Henshaws Society For Blind People,Jcs For People With Learning Disabilitie,Supplies & Services
Leeds City Council as Accountable Body,Social Services Pooled Budgets,02/04/2019, 282.90 ,Henshaws Society For Blind People,Jcs For People With Learning Disabilitie,Supplies & Services
Leeds City Council as Accountable Body,Social Services Pooled Budgets,02/04/2019, 297.09 ,Henshaws Society For Blind People,Jcs For People With Learning Disabilitie,Supplies & Services
Leeds City Council as Accountable Body,Social Services Pooled Budgets,02/04/2019, 222.00 ,Henshaws Society For Blind People,Jcs For People With Learning Disabilitie,Supplies & Services
Leeds City Council as Accountable Body,Social Services Pooled Budgets,02/04/2019, 555.00 ,Henshaws Society For Blind People,Jcs For People With Learning Disabilitie,Supplies & Services
Leeds City Council as Accountable Body,Social Services Pooled Budgets,02/04/2019, 259.00 ,Henshaws Society For Blind People,Jcs For People With Learning Disabilitie,Supplies & Services
Leeds City Council as Accountable Body,Social Services Pooled Budgets,02/04/2019, 222.00 ,Henshaws Society For Blind People,Jcs For People With Learning Disabilitie,Supplies & Services
Leeds City Council as Accountable Body,Social Services Pooled Budgets,02/04/2019, 407.00 ,Henshaws Society For Blind People,Jcs For People With Learning Disabilitie,Supplies & Services
Leeds City Council as Accountable Body,Social Services Pooled Budgets,02/04/2019, 148.00 ,Henshaws Society For Blind People,Jcs For People With Learning Disabilitie,Supplies & Services
Leeds City Council as Accountable Body,Social Services Pooled Budgets,02/04/2019, 444.00 ,Henshaws Society For Blind People,Jcs For People With Learning Disabilitie,Supplies & Services
Leeds City Council as Accountable Body,Social Services Pooled Budgets,02/04/2019, 769.50 ,Henshaws Society For Blind People,Jcs For People With Learning Disabilitie,Supplies & Services
Leeds City Council as Accountable Body,Social Services Pooled Budgets,03/04/2019, 592.00 ,Henshaws Society For Blind People,Jcs For People With Learning Disabilitie,Supplies & Services
Leeds City Council as Accountable Body,Social Services Pooled Budgets,02/04/2019, 786.48 ,Henshaws Society For Blind People,Jcs For People With Learning Disabilitie,Supplies & Services
Leeds City Council as Accountable Body,Social Services Pooled Budgets,02/04/2019, 56.58 ,Henshaws Society For Blind People,Jcs For People With Learning Disabilitie,Supplies & Services
Leeds City Council as Accountable Body,Social Services Pooled Budgets,12/04/2019, 93.36 ,Hf Trust Ltd,Jcs For People With Learning Disabilitie,Supplies & Services
Leeds City Council as Accountable Body,Social Services Pooled Budgets,01/04/2019, 332.00 ,Horticap Limited,Jcs For People With Learning Disabilitie,Supplies & Services
Leeds City Council as Accountable Body,Social Services Pooled Budgets,01/04/2019, 498.00 ,Horticap Limited,Jcs For People With Learning Disabilitie,Supplies & Services
Leeds City Council as Accountable Body,Social Services Pooled Budgets,01/04/2019, 664.00 ,Horticap Limited,Jcs For People With Learning Disabilitie,Supplies & Services
Leeds City Council as Accountable Body,Social Services Pooled Budgets,01/04/2019, 124.00 ,Horticap Limited,Jcs For People With Learning Disabilitie,Supplies & Services
Leeds City Council as Accountable Body,Social Services Pooled Budgets,02/04/2019, 166.00 ,Horticap Limited,Jcs For People With Learning Disabilitie,Supplies & Services
Leeds City Council as Accountable Body,Social Services Pooled Budgets,01/04/2019, 248.00 ,Horticap Limited,Jcs For People With Learning Disabilitie,Supplies & Services
Leeds City Council as Accountable Body,Social Services Pooled Budgets,01/04/2019, 120.00 ,Leep1,Jcs For People With Learning Disabilitie,Supplies & Services
Leeds City Council as Accountable Body,Social Services Pooled Budgets,18/04/2019, 100.00 ,Leep1,Jcs For People With Learning Disabilitie,Supplies & Services
Leeds City Council as Accountable Body,Social Services Pooled Budgets,05/04/2019," 108,708.42 ",Leeds Autism Services,Jcs For People With Learning Disabilitie,Supplies & Services
Leeds City Council as Accountable Body,Social Services Pooled Budgets,05/04/2019, 70.82 ,Leeds Autism Services,Jcs For People With Learning Disabilitie,Supplies & Services
Leeds City Council as Accountable Body,Social Services Pooled Budgets,04/04/2019, 200.00 ,Meanwood Valley Urban Farm,Jcs For People With Learning Disabilitie,Supplies & Services
Leeds City Council as Accountable Body,Social Services Pooled Budgets,05/04/2019, 400.00 ,Meanwood Valley Urban Farm,Jcs For People With Learning Disabilitie,Supplies & Services
Leeds City Council as Accountable Body,Social Services Pooled Budgets,04/04/2019, 600.00 ,Meanwood Valley Urban Farm,Jcs For People With Learning Disabilitie,Supplies & Services
Leeds City Council as Accountable Body,Social Services Pooled Budgets,05/04/2019, 600.00 ,Meanwood Valley Urban Farm,Jcs For People With Learning Disabilitie,Supplies & Services
Leeds City Council as Accountable Body,Social Services Pooled Budgets,04/04/2019, 400.00 ,Meanwood Valley Urban Farm,Jcs For People With Learning Disabilitie,Supplies & Services
Leeds City Council as Accountable Body,Social Services Pooled Budgets,03/04/2019, 225.00 ,Northern Ballet Limited,Jcs For People With Learning Disabilitie,Supplies & Services
Leeds City Council as Accountable Body,Social Services Pooled Budgets,12/04/2019, 446.88 ,People In Action Leeds Uk,Jcs For People With Learning Disabilitie,Supplies & Services
Leeds City Council as Accountable Body,Social Services Pooled Budgets,12/04/2019, 925.68 ,People In Action Leeds Uk,Jcs For People With Learning Disabilitie,Supplies & Services
Leeds City Council as Accountable Body,Social Services Pooled Budgets,03/04/2019, 255.36 ,People In Action Leeds Uk,Jcs For People With Learning Disabilitie,Supplies & Services
Leeds City Council as Accountable Body,Social Services Pooled Budgets,03/04/2019, 287.28 ,People In Action Leeds Uk,Jcs For People With Learning Disabilitie,Supplies & Services
Leeds City Council as Accountable Body,Social Services Pooled Budgets,03/04/2019, 829.92 ,People In Action Leeds Uk,Jcs For People With Learning Disabilitie,Supplies & Services
Leeds City Council as Accountable Body,Social Services Pooled Budgets,11/04/2019, 829.92 ,People In Action Leeds Uk,Jcs For People With Learning Disabilitie,Supplies & Services
Leeds City Council as Accountable Body,Social Services Pooled Budgets,04/04/2019," 1,101.24 ",People In Action Leeds Uk,Jcs For People With Learning Disabilitie,Supplies & Services
Leeds City Council as Accountable Body,Social Services Pooled Budgets,04/04/2019, 255.36 ,People In Action Leeds Uk,Jcs For People With Learning Disabilitie,Supplies & Services
Leeds City Council as Accountable Body,Social Services Pooled Budgets,04/04/2019, 542.64 ,People In Action Leeds Uk,Jcs For People With Learning Disabilitie,Supplies & Services
Leeds City Council as Accountable Body,Social Services Pooled Budgets,02/04/2019, 480.00 ,Purple Patch Arts,Jcs For People With Learning Disabilitie,Supplies & Services
Leeds City Council as Accountable Body,Social Services Pooled Budgets,02/04/2019, 160.00 ,Purple Patch Arts,Jcs For People With Learning Disabilitie,Supplies & Services
Leeds City Council as Accountable Body,Social Services Pooled Budgets,02/04/2019, 160.00 ,Purple Patch Arts,Jcs For People With Learning Disabilitie,Supplies & Services
Leeds City Council as Accountable Body,Social Services Pooled Budgets,02/04/2019, 160.00 ,Purple Patch Arts,Jcs For People With Learning Disabilitie,Supplies & Services
Leeds City Council as Accountable Body,Social Services Pooled Budgets,02/04/2019, 330.00 ,Pyramid Of Arts,Jcs For People With Learning Disabilitie,Supplies & Services
Leeds City Council as Accountable Body,Social Services Pooled Budgets,05/04/2019, 988.04 ,Ripon Community Link Company Limited,Jcs For People With Learning Disabilitie,Supplies & Services
Leeds City Council as Accountable Body,Social Services Pooled Budgets,02/04/2019," 2,240.00 ",Sense,Jcs For People With Learning Disabilitie,Supplies & Services
Leeds City Council as Accountable Body,Social Services Pooled Budgets,26/04/2019," 2,900.00 ",Sense,Jcs For People With Learning Disabilitie,Supplies & Services
Leeds City Council as Accountable Body,Social Services Pooled Budgets,26/04/2019," 1,120.00 ",Sense,Jcs For People With Learning Disabilitie,Supplies & Services
Leeds City Council as Accountable Body,Social Services Pooled Budgets,26/04/2019," 1,120.00 ",Sense,Jcs For People With Learning Disabilitie,Supplies & Services
Leeds City Council as Accountable Body,Social Services Pooled Budgets,26/04/2019," 2,840.40 ",Sense,Jcs For People With Learning Disabilitie,Supplies & Services
Leeds City Council as Accountable Body,Social Services Pooled Budgets,26/04/2019," 2,843.53 ",Sense,Jcs For People With Learning Disabilitie,Supplies & Services
Leeds City Council as Accountable Body,Social Services Pooled Budgets,26/04/2019," 2,900.00 ",Sense,Jcs For People With Learning Disabilitie,Supplies & Services
Leeds City Council as Accountable Body,Social Services Pooled Budgets,26/04/2019," 2,240.00 ",Sense,Jcs For People With Learning Disabilitie,Supplies & Services
Leeds City Council as Accountable Body,Social Services Pooled Budgets,26/04/2019," 2,785.52 ",Sense,Jcs For People With Learning Disabilitie,Supplies & Services
Leeds City Council as Accountable Body,Social Services Pooled Budgets,26/04/2019," 2,417.51 ",Sense,Jcs For People With Learning Disabilitie,Supplies & Services
Leeds City Council as Accountable Body,Social Services Pooled Budgets,03/04/2019," 2,900.00 ",Sense,Jcs For People With Learning Disabilitie,Supplies & Services
Leeds City Council as Accountable Body,Social Services Pooled Budgets,03/04/2019," 2,785.52 ",Sense,Jcs For People With Learning Disabilitie,Supplies & Services
Leeds City Council as Accountable Body,Social Services Pooled Budgets,02/04/2019," 2,240.00 ",Sense,Jcs For People With Learning Disabilitie,Supplies & Services
Leeds City Council as Accountable Body,Social Services Pooled Budgets,05/04/2019," 2,900.00 ",Sense,Jcs For People With Learning Disabilitie,Supplies & Services
Leeds City Council as Accountable Body,Social Services Pooled Budgets,03/04/2019," 2,417.51 ",Sense,Jcs For People With Learning Disabilitie,Supplies & Services
Leeds City Council as Accountable Body,Social Services Pooled Budgets,02/04/2019," 2,702.40 ",Sense,Jcs For People With Learning Disabilitie,Supplies & Services
Leeds City Council as Accountable Body,Social Services Pooled Budgets,02/04/2019," 2,900.00 ",Sense,Jcs For People With Learning Disabilitie,Supplies & Services
Leeds City Council as Accountable Body,Social Services Pooled Budgets,03/04/2019," 2,843.53 ",Sense,Jcs For People With Learning Disabilitie,Supplies & Services
Leeds City Council as Accountable Body,Social Services Pooled Budgets,03/04/2019," 2,840.40 ",Sense,Jcs For People With Learning Disabilitie,Supplies & Services
Leeds City Council as Accountable Body,Social Services Pooled Budgets,03/04/2019," 2,900.00 ",Sense,Jcs For People With Learning Disabilitie,Supplies & Services
Leeds City Council as Accountable Body,Social Services Pooled Budgets,03/04/2019," 1,740.00 ",Sense,Jcs For People With Learning Disabilitie,Supplies & Services
Leeds City Council as Accountable Body,Social Services Pooled Budgets,03/04/2019," 4,841.85 ",Sense,Jcs For People With Learning Disabilitie,Supplies & Services
Leeds City Council as Accountable Body,Social Services Pooled Budgets,03/04/2019," 1,120.00 ",Sense,Jcs For People With Learning Disabilitie,Supplies & Services
Leeds City Council as Accountable Body,Social Services Pooled Budgets,03/04/2019," 1,120.00 ",Sense,Jcs For People With Learning Disabilitie,Supplies & Services
Leeds City Council as Accountable Body,Social Services Pooled Budgets,02/04/2019," 1,040.00 ",Slate Cafe And Furniture Store,Jcs For People With Learning Disabilitie,Supplies & Services
Leeds City Council as Accountable Body,Social Services Pooled Budgets,02/04/2019," 1,040.00 ",Slate Cafe And Furniture Store,Jcs For People With Learning Disabilitie,Supplies & Services
Leeds City Council as Accountable Body,Social Services Pooled Budgets,02/04/2019," 1,950.00 ",Slate Cafe And Furniture Store,Jcs For People With Learning Disabilitie,Supplies & Services
Leeds City Council as Accountable Body,Social Services Pooled Budgets,02/04/2019, 650.00 ,Slate Cafe And Furniture Store,Jcs For People With Learning Disabilitie,Supplies & Services
Leeds City Council as Accountable Body,Social Services Pooled Budgets,02/04/2019, 650.00 ,Slate Cafe And Furniture Store,Jcs For People With Learning Disabilitie,Supplies & Services
Leeds City Council as Accountable Body,Social Services Pooled Budgets,12/04/2019," 1,105.00 ",Slate Cafe And Furniture Store,Jcs For People With Learning Disabilitie,Supplies & Services
Leeds City Council as Accountable Body,Social Services Pooled Budgets,12/04/2019," 1,300.00 ",Slate Cafe And Furniture Store,Jcs For People With Learning Disabilitie,Supplies & Services
Leeds City Council as Accountable Body,Social Services Pooled Budgets,02/04/2019," 1,040.00 ",Slate Cafe And Furniture Store,Jcs For People With Learning Disabilitie,Supplies & Services
Leeds City Council as Accountable Body,Social Services Pooled Budgets,02/04/2019," 1,300.00 ",Slate Cafe And Furniture Store,Jcs For People With Learning Disabilitie,Supplies & Services
Leeds City Council as Accountable Body,Social Services Pooled Budgets,02/04/2019, 780.00 ,Slate Cafe And Furniture Store,Jcs For People With Learning Disabilitie,Supplies & Services
Leeds City Council as Accountable Body,Social Services Pooled Budgets,02/04/2019, 780.00 ,Slate Cafe And Furniture Store,Jcs For People With Learning Disabilitie,Supplies & Services
Leeds City Council as Accountable Body,Social Services Pooled Budgets,18/04/2019, 761.30 ,Specialist Autism Services,Jcs For People With Learning Disabilitie,Supplies & Services
Leeds City Council as Accountable Body,Social Services Pooled Budgets,18/04/2019, 228.39 ,Specialist Autism Services,Jcs For People With Learning Disabilitie,Supplies & Services
Leeds City Council as Accountable Body,Social Services Pooled Budgets,18/04/2019," 3,493.25 ",Specialist Autism Services,Jcs For People With Learning Disabilitie,Supplies & Services
Leeds City Council as Accountable Body,Social Services Pooled Budgets,18/04/2019," 2,100.00 ",Specialist Autism Services,Jcs For People With Learning Disabilitie,Supplies & Services
Leeds City Council as Accountable Body,Social Services Pooled Budgets,18/04/2019," 3,112.60 ",Specialist Autism Services,Jcs For People With Learning Disabilitie,Supplies & Services
Leeds City Council as Accountable Body,Social Services Pooled Budgets,18/04/2019," 2,095.95 ",Specialist Autism Services,Jcs For People With Learning Disabilitie,Supplies & Services
Leeds City Council as Accountable Body,Social Services Pooled Budgets,18/04/2019," 4,702.60 ",Specialist Autism Services,Jcs For People With Learning Disabilitie,Supplies & Services
Leeds City Council as Accountable Body,Social Services Pooled Budgets,18/04/2019," 3,493.25 ",Specialist Autism Services,Jcs For People With Learning Disabilitie,Supplies & Services
Leeds City Council as Accountable Body,Social Services Pooled Budgets,18/04/2019, 761.30 ,Specialist Autism Services,Jcs For People With Learning Disabilitie,Supplies & Services
Leeds City Council as Accountable Body,Social Services Pooled Budgets,18/04/2019, 825.00 ,Specialist Autism Services,Jcs For People With Learning Disabilitie,Supplies & Services
Leeds City Council as Accountable Body,Social Services Pooled Budgets,18/04/2019, 380.65 ,Specialist Autism Services,Jcs For People With Learning Disabilitie,Supplies & Services
Leeds City Council as Accountable Body,Social Services Pooled Budgets,18/04/2019, 761.30 ,Specialist Autism Services,Jcs For People With Learning Disabilitie,Supplies & Services
Leeds City Council as Accountable Body,Social Services Pooled Budgets,18/04/2019," 2,334.45 ",Specialist Autism Services,Jcs For People With Learning Disabilitie,Supplies & Services
Leeds City Council as Accountable Body,Social Services Pooled Budgets,18/04/2019," 1,556.30 ",Specialist Autism Services,Jcs For People With Learning Disabilitie,Supplies & Services
Leeds City Council as Accountable Body,Social Services Pooled Budgets,18/04/2019," 1,141.95 ",Specialist Autism Services,Jcs For People With Learning Disabilitie,Supplies & Services
Leeds City Council as Accountable Body,Social Services Pooled Budgets,18/04/2019, 380.65 ,Specialist Autism Services,Jcs For People With Learning Disabilitie,Supplies & Services
Leeds City Council as Accountable Body,Social Services Pooled Budgets,18/04/2019, 200.00 ,Specialist Autism Services,Jcs For People With Learning Disabilitie,Supplies & Services
Leeds City Council as Accountable Body,Social Services Pooled Budgets,18/04/2019," 1,141.95 ",Specialist Autism Services,Jcs For People With Learning Disabilitie,Supplies & Services
Leeds City Council as Accountable Body,Social Services Pooled Budgets,18/04/2019, 761.30 ,Specialist Autism Services,Jcs For People With Learning Disabilitie,Supplies & Services
Leeds City Council as Accountable Body,Social Services Pooled Budgets,12/04/2019," 1,102.60 ",Henshaws Society For Blind People,Jcs For People With Learning Disabilitie,Supplies & Services
Leeds City Council as Accountable Body,Social Services Pooled Budgets,24/04/2019," 8,184.19 ",Henshaws Society For Blind People,Jcs For People With Learning Disabilitie,Supplies & Services
Leeds City Council as Accountable Body,Social Services Pooled Budgets,30/04/2019, 444.00 ,Henshaws Society For Blind People,Jcs For People With Learning Disabilitie,Supplies & Services
Leeds City Council as Accountable Body,Social Services Pooled Budgets,08/04/2019, 40.00 ,Leep1,Jcs For People With Learning Disabilitie,Supplies & Services
Leeds City Council as Accountable Body,Social Services Pooled Budgets,08/04/2019, 154.00 ,Leep1,Jcs For People With Learning Disabilitie,Supplies & Services
Leeds City Council as Accountable Body,Social Services Pooled Budgets,08/04/2019, 320.00 ,Leep1,Jcs For People With Learning Disabilitie,Supplies & Services
Leeds City Council as Accountable Body,Social Services Pooled Budgets,29/04/2019, 609.04 ,Specialist Autism Services,Jcs For People With Learning Disabilitie,Supplies & Services
Leeds City Council as Accountable Body,Social Services Pooled Budgets,18/04/2019," 1,141.95 ",Specialist Autism Services,Jcs For People With Learning Disabilitie,Supplies & Services
Leeds City Council as Accountable Body,Social Services Pooled Budgets,29/04/2019, 913.56 ,Specialist Autism Services,Jcs For People With Learning Disabilitie,Supplies & Services
Leeds City Council as Accountable Body,Social Services Pooled Budgets,12/04/2019, 68.64 ,Hf Trust Ltd,Jcs For People With Learning Disabilitie,Supplies & Services
Leeds City Council as Accountable Body,Social Services Pooled Budgets,26/04/2019," 1,560.00 ",Affinity Trust,Jcs For People With Learning Disabilitie,Supplies & Services
Leeds City Council as Accountable Body,Social Services Pooled Budgets,26/04/2019, 675.00 ,Affinity Trust,Jcs For People With Learning Disabilitie,Supplies & Services
Leeds City Council as Accountable Body,Social Services Pooled Budgets,26/04/2019," 1,800.00 ",Affinity Trust,Jcs For People With Learning Disabilitie,Supplies & Services
Leeds City Council as Accountable Body,Social Services Pooled Budgets,18/04/2019, 639.20 ,Affinity Trust,Jcs For People With Learning Disabilitie,Supplies & Services
Leeds City Council as Accountable Body,Social Services Pooled Budgets,18/04/2019, 239.70 ,Affinity Trust,Jcs For People With Learning Disabilitie,Supplies & Services
Leeds City Council as Accountable Body,Social Services Pooled Budgets,18/04/2019, 319.60 ,Affinity Trust,Jcs For People With Learning Disabilitie,Supplies & Services
Leeds City Council as Accountable Body,Social Services Pooled Budgets,18/04/2019, 922.85 ,Affinity Trust,Jcs For People With Learning Disabilitie,Supplies & Services
Leeds City Council as Accountable Body,Social Services Pooled Budgets,18/04/2019, 255.68 ,Affinity Trust,Jcs For People With Learning Disabilitie,Supplies & Services
Leeds City Council as Accountable Body,Social Services Pooled Budgets,18/04/2019, 639.20 ,Affinity Trust,Jcs For People With Learning Disabilitie,Supplies & Services
Leeds City Council as Accountable Body,Social Services Pooled Budgets,18/04/2019, 511.36 ,Affinity Trust,Jcs For People With Learning Disabilitie,Supplies & Services
Leeds City Council as Accountable Body,Social Services Pooled Budgets,18/04/2019, 799.00 ,Affinity Trust,Jcs For People With Learning Disabilitie,Supplies & Services
Leeds City Council as Accountable Body,Social Services Pooled Budgets,18/04/2019, 941.92 ,Affinity Trust,Jcs For People With Learning Disabilitie,Supplies & Services
Leeds City Council as Accountable Body,Social Services Pooled Budgets,26/04/2019," 2,752.80 ",Affinity Trust,Jcs For People With Learning Disabilitie,Supplies & Services
Leeds City Council as Accountable Body,Social Services Pooled Budgets,26/04/2019," 1,951.35 ",Affinity Trust,Jcs For People With Learning Disabilitie,Supplies & Services
Leeds City Council as Accountable Body,Social Services Pooled Budgets,26/04/2019," 1,065.33 ",Affinity Trust,Jcs For People With Learning Disabilitie,Supplies & Services
Leeds City Council as Accountable Body,Social Services Pooled Budgets,26/04/2019," 3,336.76 ",Affinity Trust,Jcs For People With Learning Disabilitie,Supplies & Services
Leeds City Council as Accountable Body,Social Services Pooled Budgets,26/04/2019, 525.72 ,Affinity Trust,Jcs For People With Learning Disabilitie,Supplies & Services
Leeds City Council as Accountable Body,Social Services Pooled Budgets,26/04/2019, 804.48 ,Affinity Trust,Jcs For People With Learning Disabilitie,Supplies & Services
Leeds City Council as Accountable Body,Social Services Pooled Budgets,26/04/2019," 1,504.72 ",Affinity Trust,Jcs For People With Learning Disabilitie,Supplies & Services
Leeds City Council as Accountable Body,Social Services Pooled Budgets,26/04/2019," 1,800.00 ",Affinity Trust,Jcs For People With Learning Disabilitie,Supplies & Services
Leeds City Council as Accountable Body,Social Services Pooled Budgets,26/04/2019," 1,005.60 ",Affinity Trust,Jcs For People With Learning Disabilitie,Supplies & Services
Leeds City Council as Accountable Body,Social Services Pooled Budgets,26/04/2019, 360.00 ,Affinity Trust,Jcs For People With Learning Disabilitie,Supplies & Services
Leeds City Council as Accountable Body,Social Services Pooled Budgets,26/04/2019," 1,280.73 ",Affinity Trust,Jcs For People With Learning Disabilitie,Supplies & Services
Leeds City Council as Accountable Body,Social Services Pooled Budgets,02/04/2019, 62.78 ,Affinity Trust,Jcs For People With Learning Disabilitie,Supplies & Services
Leeds City Council as Accountable Body,Social Services Pooled Budgets,10/04/2019, 463.42 ,Affinity Trust,Jcs For People With Learning Disabilitie,Supplies & Services
Leeds City Council as Accountable Body,Social Services Pooled Budgets,18/04/2019," 2,141.32 ",Affinity Trust,Jcs For People With Learning Disabilitie,Supplies & Services
Leeds City Council as Accountable Body,Social Services Pooled Budgets,09/04/2019, 479.40 ,Affinity Trust,Services For Older People Under 65 P/Dis,Supplies & Services
Leeds City Council as Accountable Body,Social Services Pooled Budgets,18/04/2019, 727.09 ,Affinity Trust,Jcs For People With Learning Disabilitie,Supplies & Services
Leeds City Council as Accountable Body,Social Services Pooled Budgets,18/04/2019," 1,342.32 ",Affinity Trust,Jcs For People With Learning Disabilitie,Supplies & Services
Leeds City Council as Accountable Body,Social Services Pooled Budgets,18/04/2019, 287.64 ,Affinity Trust,Jcs For People With Learning Disabilitie,Supplies & Services
Leeds City Council as Accountable Body,Social Services Pooled Budgets,18/04/2019," 1,138.50 ",Affinity Trust,Jcs For People With Learning Disabilitie,Supplies & Services
Leeds City Council as Accountable Body,Social Services Pooled Budgets,18/04/2019," 1,211.04 ",Affinity Trust,Jcs For People With Learning Disabilitie,Supplies & Services
Leeds City Council as Accountable Body,Social Services Pooled Budgets,18/04/2019, 639.20 ,Affinity Trust,Jcs For People With Learning Disabilitie,Supplies & Services
Leeds City Council as Accountable Body,Social Services Pooled Budgets,18/04/2019, 639.20 ,Affinity Trust,Jcs For People With Learning Disabilitie,Supplies & Services
Leeds City Council as Accountable Body,Social Services Pooled Budgets,18/04/2019, 408.00 ,Affinity Trust,Jcs For People With Learning Disabilitie,Supplies & Services
Leeds City Council as Accountable Body,Social Services Pooled Budgets,18/04/2019," 1,086.64 ",Affinity Trust,Jcs For People With Learning Disabilitie,Supplies & Services
Leeds City Council as Accountable Body,Social Services Pooled Budgets,18/04/2019, 102.16 ,Affinity Trust,Jcs For People With Learning Disabilitie,Supplies & Services
Leeds City Council as Accountable Body,Social Services Pooled Budgets,03/04/2019, 535.68 ,St Annes Community Services,Jcs For People With Learning Disabilitie,Supplies & Services
Leeds City Council as Accountable Body,Social Services Pooled Budgets,03/04/2019, 416.64 ,St Annes Community Services,Jcs For People With Learning Disabilitie,Supplies & Services
Leeds City Council as Accountable Body,Social Services Pooled Budgets,03/04/2019, 535.68 ,St Annes Community Services,Jcs For People With Learning Disabilitie,Supplies & Services
Leeds City Council as Accountable Body,Social Services Pooled Budgets,03/04/2019, 535.68 ,St Annes Community Services,Jcs For People With Learning Disabilitie,Supplies & Services
Leeds City Council as Accountable Body,Social Services Pooled Budgets,04/04/2019, 476.16 ,St Annes Community Services,Jcs For People With Learning Disabilitie,Supplies & Services
Leeds City Council as Accountable Body,Social Services Pooled Budgets,03/04/2019, 535.68 ,St Annes Community Services,Jcs For People With Learning Disabilitie,Supplies & Services
Leeds City Council as Accountable Body,Social Services Pooled Budgets,04/04/2019, 59.52 ,St Annes Community Services,Jcs For People With Learning Disabilitie,Supplies & Services
Leeds City Council as Accountable Body,Social Services Pooled Budgets,12/04/2019, 456.06 ,St Annes Community Services,Jcs For People With Learning Disabilitie,Supplies & Services
Leeds City Council as Accountable Body,Social Services Pooled Budgets,12/04/2019, 238.08 ,St Annes Community Services,Jcs For People With Learning Disabilitie,Supplies & Services
Leeds City Council as Accountable Body,Social Services Pooled Budgets,10/04/2019," 1,071.36 ",St Annes Community Services,Jcs For People With Learning Disabilitie,Supplies & Services
Leeds City Council as Accountable Body,Social Services Pooled Budgets,03/04/2019,-59.52 ,St Annes Community Services,Jcs For People With Learning Disabilitie,Supplies & Services
Leeds City Council as Accountable Body,Social Services Pooled Budgets,03/04/2019,-59.52 ,St Annes Community Services,Jcs For People With Learning Disabilitie,Supplies & Services
Leeds City Council as Accountable Body,Social Services Pooled Budgets,03/04/2019,-59.52 ,St Annes Community Services,Jcs For People With Learning Disabilitie,Supplies & Services
Leeds City Council as Accountable Body,Social Services Pooled Budgets,03/04/2019,-59.52 ,St Annes Community Services,Jcs For People With Learning Disabilitie,Supplies & Services
Leeds City Council as Accountable Body,Social Services Pooled Budgets,03/04/2019,-59.52 ,St Annes Community Services,Jcs For People With Learning Disabilitie,Supplies & Services
Leeds City Council as Accountable Body,Social Services Pooled Budgets,03/04/2019,-59.52 ,St Annes Community Services,Jcs For People With Learning Disabilitie,Supplies & Services
Leeds City Council as Accountable Body,Social Services Pooled Budgets,05/04/2019," 1,012.80 ",St Annes Community Services,Jcs For People With Learning Disabilitie,Supplies & Services
Leeds City Council as Accountable Body,Social Services Pooled Budgets,04/04/2019, 535.68 ,St Annes Community Services,Jcs For People With Learning Disabilitie,Supplies & Services
Leeds City Council as Accountable Body,Social Services Pooled Budgets,05/04/2019, 535.68 ,St Annes Community Services,Jcs For People With Learning Disabilitie,Supplies & Services
Leeds City Council as Accountable Body,Social Services Pooled Budgets,05/04/2019, 238.08 ,St Annes Community Services,Jcs For People With Learning Disabilitie,Supplies & Services
Leeds City Council as Accountable Body,Social Services Pooled Budgets,04/04/2019, 535.68 ,St Annes Community Services,Jcs For People With Learning Disabilitie,Supplies & Services
Leeds City Council as Accountable Body,Social Services Pooled Budgets,02/04/2019, 297.60 ,St Annes Community Services,Jcs For People With Learning Disabilitie,Supplies & Services
Leeds City Council as Accountable Body,Social Services Pooled Budgets,05/04/2019," 1,361.52 ",St Annes Community Services,Jcs For People With Learning Disabilitie,Supplies & Services
Leeds City Council as Accountable Body,Social Services Pooled Budgets,04/04/2019," 1,011.84 ",St Annes Community Services,Jcs For People With Learning Disabilitie,Supplies & Services
Leeds City Council as Accountable Body,Social Services Pooled Budgets,05/04/2019," 1,689,910.29 ",Aspire Services (Leeds) Limited,Jcs For People With Learning Disabilitie,Supplies & Services
Leeds City Council as Accountable Body,Social Services Pooled Budgets,05/04/2019," 42,864.19 ",Aspire Services (Leeds) Limited,Jcs For People With Learning Disabilitie,Supplies & Services
Leeds City Council as Accountable Body,Social Services Pooled Budgets,05/04/2019," 4,172.01 ",Aspire Services (Leeds) Limited,Jcs For People With Learning Disabilitie,Supplies & Services
Leeds City Council as Accountable Body,Social Services Pooled Budgets,05/04/2019," 45,399.99 ",Aspire Services (Leeds) Limited,Jcs For People With Learning Disabilitie,Supplies & Services
Leeds City Council as Accountable Body,Social Services Pooled Budgets,05/04/2019," 4,172.01 ",Aspire Services (Leeds) Limited,Jcs For People With Learning Disabilitie,Supplies & Services
Leeds City Council as Accountable Body,Social Services Pooled Budgets,24/04/2019," 41,988.47 ",Aspire Services (Leeds) Limited,Jcs For People With Learning Disabilitie,Supplies & Services
Leeds City Council as Accountable Body,Social Services Pooled Budgets,24/04/2019," 4,172.01 ",Aspire Services (Leeds) Limited,Jcs For People With Learning Disabilitie,Supplies & Services
Leeds City Council as Accountable Body,Social Services Pooled Budgets,10/04/2019, 295.00 ,Hf Trust Ltd,Jcs For People With Learning Disabilitie,Supplies & Services
Leeds City Council as Accountable Body,Social Services Pooled Budgets,12/04/2019, 143.76 ,Hf Trust Ltd,Jcs For People With Learning Disabilitie,Supplies & Services
Leeds City Council as Accountable Body,Social Services Pooled Budgets,12/04/2019," 1,032.52 ",Hf Trust Ltd,Jcs For People With Learning Disabilitie,Supplies & Services
Leeds City Council as Accountable Body,Social Services Pooled Budgets,12/04/2019," 1,032.52 ",Hf Trust Ltd,Jcs For People With Learning Disabilitie,Supplies & Services
Leeds City Council as Accountable Body,Social Services Pooled Budgets,12/04/2019, 287.52 ,Hf Trust Ltd,Jcs For People With Learning Disabilitie,Supplies & Services
Leeds City Council as Accountable Body,Social Services Pooled Budgets,12/04/2019, 95.20 ,Hf Trust Ltd,Jcs For People With Learning Disabilitie,Supplies & Services
Leeds City Council as Accountable Body,Social Services Pooled Budgets,12/04/2019, 295.00 ,Hf Trust Ltd,Jcs For People With Learning Disabilitie,Supplies & Services
Leeds City Council as Accountable Body,Social Services Pooled Budgets,12/04/2019, 354.00 ,Hf Trust Ltd,Jcs For People With Learning Disabilitie,Supplies & Services
Leeds City Council as Accountable Body,Social Services Pooled Budgets,12/04/2019, 191.68 ,Hf Trust Ltd,Jcs For People With Learning Disabilitie,Supplies & Services
Leeds City Council as Accountable Body,Social Services Pooled Budgets,12/04/2019, 95.20 ,Hf Trust Ltd,Jcs For People With Learning Disabilitie,Supplies & Services
Leeds City Council as Accountable Body,Social Services Pooled Budgets,12/04/2019, 449.20 ,Hf Trust Ltd,Jcs For People With Learning Disabilitie,Supplies & Services
Leeds City Council as Accountable Body,Social Services Pooled Budgets,09/04/2019," 2,923.58 ",Hf Trust Ltd,Jcs For People With Learning Disabilitie,Supplies & Services
Leeds City Council as Accountable Body,Social Services Pooled Budgets,12/04/2019," 1,121.00 ",Hf Trust Ltd,Jcs For People With Learning Disabilitie,Supplies & Services
Leeds City Council as Accountable Body,Social Services Pooled Budgets,01/04/2019, 486.75 ,Hf Trust Ltd,Jcs For People With Learning Disabilitie,Supplies & Services
Leeds City Council as Accountable Body,Social Services Pooled Budgets,09/04/2019," 2,146.13 ",Hf Trust Ltd,Jcs For People With Learning Disabilitie,Supplies & Services
Leeds City Council as Accountable Body,Social Services Pooled Budgets,03/04/2019, 240.00 ,Leeds Jewish Welfare Board,Jcs For People With Learning Disabilitie,Supplies & Services
Leeds City Council as Accountable Body,Social Services Pooled Budgets,05/04/2019, 723.00 ,Leeds Jewish Welfare Board,Jcs For People With Learning Disabilitie,Supplies & Services
Leeds City Council as Accountable Body,Social Services Pooled Budgets,05/04/2019, 492.00 ,Leeds Jewish Welfare Board,Jcs For People With Learning Disabilitie,Supplies & Services
Leeds City Council as Accountable Body,Social Services Pooled Budgets,02/04/2019, 723.00 ,Leeds Jewish Welfare Board,Jcs For People With Learning Disabilitie,Supplies & Services
Leeds City Council as Accountable Body,Social Services Pooled Budgets,03/04/2019, 756.00 ,Leeds Jewish Welfare Board,Jcs For People With Learning Disabilitie,Supplies & Services
Leeds City Council as Accountable Body,Social Services Pooled Budgets,02/04/2019, 492.00 ,Leeds Jewish Welfare Board,Jcs For People With Learning Disabilitie,Supplies & Services
Leeds City Council as Accountable Body,Social Services Pooled Budgets,03/04/2019, 751.25 ,Leeds Jewish Welfare Board,Jcs For People With Learning Disabilitie,Supplies & Services
Leeds City Council as Accountable Body,Social Services Pooled Budgets,02/04/2019, 492.00 ,Leeds Jewish Welfare Board,Jcs For People With Learning Disabilitie,Supplies & Services
Leeds City Council as Accountable Body,Social Services Pooled Budgets,02/04/2019, 734.25 ,Leeds Jewish Welfare Board,Jcs For People With Learning Disabilitie,Supplies & Services
Leeds City Council as Accountable Body,Social Services Pooled Budgets,02/04/2019, 492.00 ,Leeds Jewish Welfare Board,Jcs For People With Learning Disabilitie,Supplies & Services
Leeds City Council as Accountable Body,Social Services Pooled Budgets,02/04/2019, 492.00 ,Leeds Jewish Welfare Board,Jcs For People With Learning Disabilitie,Supplies & Services
Leeds City Council as Accountable Body,Social Services Pooled Budgets,02/04/2019, 474.00 ,Leeds Jewish Welfare Board,Jcs For People With Learning Disabilitie,Supplies & Services
Leeds City Council as Accountable Body,Social Services Pooled Budgets,26/04/2019, 240.00 ,Leeds Jewish Welfare Board,Jcs For People With Learning Disabilitie,Supplies & Services
Leeds City Council as Accountable Body,Social Services Pooled Budgets,02/04/2019, 510.00 ,Leeds Jewish Welfare Board,Jcs For People With Learning Disabilitie,Supplies & Services
Leeds City Council as Accountable Body,Social Services Pooled Budgets,02/04/2019, 474.00 ,Leeds Jewish Welfare Board,Jcs For People With Learning Disabilitie,Supplies & Services
Leeds City Council as Accountable Body,Social Services Pooled Budgets,02/04/2019, 456.00 ,Leeds Jewish Welfare Board,Jcs For People With Learning Disabilitie,Supplies & Services
Leeds City Council as Accountable Body,Social Services Pooled Budgets,03/04/2019," 1,206.80 ",Linkage Community Trust,Jcs For People With Learning Disabilitie,Supplies & Services
Leeds City Council as Accountable Body,Social Services Pooled Budgets,05/04/2019, 319.38 ,Child Autism Uk,Jcs For People With Learning Disabilitie,Supplies & Services
Leeds City Council as Accountable Body,Social Services Pooled Budgets,12/04/2019, 137.64 ,Child Autism Uk,Jcs For People With Learning Disabilitie,Supplies & Services
Leeds City Council as Accountable Body,Social Services Pooled Budgets,02/04/2019, 480.76 ,People Matters (West Yorkshire) Cio,Jcs For People With Learning Disabilitie,Supplies & Services
Leeds City Council as Accountable Body,Social Services Pooled Budgets,02/04/2019, 206.04 ,People Matters (West Yorkshire) Cio,Jcs For People With Learning Disabilitie,Supplies & Services
Leeds City Council as Accountable Body,Social Services Pooled Budgets,02/04/2019, 549.44 ,People Matters (West Yorkshire) Cio,Jcs For People With Learning Disabilitie,Supplies & Services
Leeds City Council as Accountable Body,Social Services Pooled Budgets,03/04/2019," 21,708.79 ",People Matters (West Yorkshire) Cio,Jcs For People With Learning Disabilitie,Supplies & Services
Leeds City Council as Accountable Body,Social Services Pooled Budgets,04/04/2019," 20,133.58 ",People Matters (West Yorkshire) Cio,Jcs For People With Learning Disabilitie,Supplies & Services
Leeds City Council as Accountable Body,Social Services Pooled Budgets,02/04/2019, 549.44 ,People Matters (West Yorkshire) Cio,Jcs For People With Learning Disabilitie,Supplies & Services
Leeds City Council as Accountable Body,Social Services Pooled Budgets,09/04/2019, 206.04 ,People Matters (West Yorkshire) Cio,Jcs For People With Learning Disabilitie,Supplies & Services
Leeds City Council as Accountable Body,Social Services Pooled Budgets,03/04/2019, 255.36 ,People In Action Leeds Uk,Jcs For People With Learning Disabilitie,Supplies & Services
Leeds City Council as Accountable Body,Social Services Pooled Budgets,03/04/2019, 383.04 ,People In Action Leeds Uk,Jcs For People With Learning Disabilitie,Supplies & Services
Leeds City Council as Accountable Body,Social Services Pooled Budgets,03/04/2019," 1,627.92 ",People In Action Leeds Uk,Jcs For People With Learning Disabilitie,Supplies & Services
Leeds City Council as Accountable Body,Social Services Pooled Budgets,03/04/2019, 853.86 ,People In Action Leeds Uk,Jcs For People With Learning Disabilitie,Supplies & Services
Leeds City Council as Accountable Body,Social Services Pooled Budgets,03/04/2019, 606.48 ,People In Action Leeds Uk,Jcs For People With Learning Disabilitie,Supplies & Services
Leeds City Council as Accountable Body,Social Services Pooled Budgets,03/04/2019, 510.72 ,People In Action Leeds Uk,Jcs For People With Learning Disabilitie,Supplies & Services
Leeds City Council as Accountable Body,Social Services Pooled Budgets,03/04/2019, 319.20 ,People In Action Leeds Uk,Jcs For People With Learning Disabilitie,Supplies & Services
Leeds City Council as Accountable Body,Social Services Pooled Budgets,03/04/2019, 287.26 ,People In Action Leeds Uk,Jcs For People With Learning Disabilitie,Supplies & Services
Leeds City Council as Accountable Body,Social Services Pooled Budgets,03/04/2019, 510.72 ,People In Action Leeds Uk,Jcs For People With Learning Disabilitie,Supplies & Services
Leeds City Council as Accountable Body,Social Services Pooled Budgets,03/04/2019, 255.36 ,People In Action Leeds Uk,Jcs For People With Learning Disabilitie,Supplies & Services
Leeds City Council as Accountable Body,Social Services Pooled Budgets,03/04/2019," 1,149.12 ",People In Action Leeds Uk,Jcs For People With Learning Disabilitie,Supplies & Services
Leeds City Council as Accountable Body,Social Services Pooled Budgets,03/04/2019, 638.40 ,People In Action Leeds Uk,Jcs For People With Learning Disabilitie,Supplies & Services
Leeds City Council as Accountable Body,Social Services Pooled Budgets,03/04/2019," 1,923.18 ",People In Action Leeds Uk,Jcs For People With Learning Disabilitie,Supplies & Services
Leeds City Council as Accountable Body,Social Services Pooled Budgets,03/04/2019, 159.60 ,People In Action Leeds Uk,Jcs For People With Learning Disabilitie,Supplies & Services
Leeds City Council as Accountable Body,Social Services Pooled Budgets,03/04/2019, 446.88 ,People In Action Leeds Uk,Jcs For People With Learning Disabilitie,Supplies & Services
Leeds City Council as Accountable Body,Social Services Pooled Budgets,03/04/2019, 670.32 ,People In Action Leeds Uk,Jcs For People With Learning Disabilitie,Supplies & Services
Leeds City Council as Accountable Body,Social Services Pooled Budgets,03/04/2019," 1,596.00 ",People In Action Leeds Uk,Jcs For People With Learning Disabilitie,Supplies & Services
Leeds City Council as Accountable Body,Social Services Pooled Budgets,03/04/2019, 287.28 ,People In Action Leeds Uk,Jcs For People With Learning Disabilitie,Supplies & Services
Leeds City Council as Accountable Body,Social Services Pooled Budgets,03/04/2019," 1,915.20 ",People In Action Leeds Uk,Jcs For People With Learning Disabilitie,Supplies & Services
Leeds City Council as Accountable Body,Social Services Pooled Budgets,03/04/2019, 702.24 ,People In Action Leeds Uk,Jcs For People With Learning Disabilitie,Supplies & Services
Leeds City Council as Accountable Body,Social Services Pooled Budgets,03/04/2019, 638.40 ,People In Action Leeds Uk,Jcs For People With Learning Disabilitie,Supplies & Services
Leeds City Council as Accountable Body,Social Services Pooled Budgets,03/04/2019," 1,468.32 ",People In Action Leeds Uk,Jcs For People With Learning Disabilitie,Supplies & Services
Leeds City Council as Accountable Body,Social Services Pooled Budgets,03/04/2019, 255.36 ,People In Action Leeds Uk,Jcs For People With Learning Disabilitie,Supplies & Services
Leeds City Council as Accountable Body,Social Services Pooled Budgets,03/04/2019," 1,723.68 ",People In Action Leeds Uk,Jcs For People With Learning Disabilitie,Supplies & Services
Leeds City Council as Accountable Body,Social Services Pooled Budgets,12/04/2019," 1,348.62 ",People In Action Leeds Uk,Jcs For People With Learning Disabilitie,Supplies & Services
Leeds City Council as Accountable Body,Social Services Pooled Budgets,03/04/2019, 63.84 ,People In Action Leeds Uk,Jcs For People With Learning Disabilitie,Supplies & Services
Leeds City Council as Accountable Body,Social Services Pooled Budgets,12/04/2019, 734.16 ,People In Action Leeds Uk,Jcs For People With Learning Disabilitie,Supplies & Services
Leeds City Council as Accountable Body,Social Services Pooled Budgets,12/04/2019, 335.16 ,People In Action Leeds Uk,Jcs For People With Learning Disabilitie,Supplies & Services
Leeds City Council as Accountable Body,Social Services Pooled Budgets,12/04/2019, 734.16 ,People In Action Leeds Uk,Jcs For People With Learning Disabilitie,Supplies & Services
Leeds City Council as Accountable Body,Social Services Pooled Budgets,12/04/2019, 829.92 ,People In Action Leeds Uk,Jcs For People With Learning Disabilitie,Supplies & Services
Leeds City Council as Accountable Body,Social Services Pooled Budgets,12/04/2019, 957.60 ,People In Action Leeds Uk,Jcs For People With Learning Disabilitie,Supplies & Services
Leeds City Council as Accountable Body,Social Services Pooled Budgets,12/04/2019, 462.84 ,People In Action Leeds Uk,Jcs For People With Learning Disabilitie,Supplies & Services
Leeds City Council as Accountable Body,Social Services Pooled Budgets,12/04/2019, 191.52 ,People In Action Leeds Uk,Jcs For People With Learning Disabilitie,Supplies & Services
Leeds City Council as Accountable Body,Social Services Pooled Budgets,12/04/2019, 383.04 ,People In Action Leeds Uk,Jcs For People With Learning Disabilitie,Supplies & Services
Leeds City Council as Accountable Body,Social Services Pooled Budgets,12/04/2019, 319.20 ,People In Action Leeds Uk,Jcs For People With Learning Disabilitie,Supplies & Services
Leeds City Council as Accountable Body,Social Services Pooled Budgets,12/04/2019, 510.72 ,People In Action Leeds Uk,Jcs For People With Learning Disabilitie,Supplies & Services
Leeds City Council as Accountable Body,Social Services Pooled Budgets,12/04/2019, 510.72 ,People In Action Leeds Uk,Jcs For People With Learning Disabilitie,Supplies & Services
Leeds City Council as Accountable Body,Social Services Pooled Budgets,12/04/2019, 510.72 ,People In Action Leeds Uk,Jcs For People With Learning Disabilitie,Supplies & Services
Leeds City Council as Accountable Body,Social Services Pooled Budgets,12/04/2019, 718.20 ,People In Action Leeds Uk,Jcs For People With Learning Disabilitie,Supplies & Services
Leeds City Council as Accountable Body,Social Services Pooled Budgets,12/04/2019, 510.72 ,People In Action Leeds Uk,Jcs For People With Learning Disabilitie,Supplies & Services
Leeds City Council as Accountable Body,Social Services Pooled Budgets,12/04/2019," 2,050.86 ",People In Action Leeds Uk,Jcs For People With Learning Disabilitie,Supplies & Services
Leeds City Council as Accountable Body,Social Services Pooled Budgets,12/04/2019, 766.08 ,People In Action Leeds Uk,Jcs For People With Learning Disabilitie,Supplies & Services
Leeds City Council as Accountable Body,Social Services Pooled Budgets,12/04/2019, 383.04 ,People In Action Leeds Uk,Jcs For People With Learning Disabilitie,Supplies & Services
Leeds City Council as Accountable Body,Social Services Pooled Budgets,12/04/2019, 383.04 ,People In Action Leeds Uk,Jcs For People With Learning Disabilitie,Supplies & Services
Leeds City Council as Accountable Body,Social Services Pooled Budgets,03/04/2019, 766.08 ,People In Action Leeds Uk,Jcs For People With Learning Disabilitie,Supplies & Services
Leeds City Council as Accountable Body,Social Services Pooled Budgets,03/04/2019, 766.08 ,People In Action Leeds Uk,Jcs For People With Learning Disabilitie,Supplies & Services
Leeds City Council as Accountable Body,Social Services Pooled Budgets,03/04/2019," 1,484.28 ",People In Action Leeds Uk,Jcs For People With Learning Disabilitie,Supplies & Services
Leeds City Council as Accountable Body,Social Services Pooled Budgets,12/04/2019," 1,021.44 ",People In Action Leeds Uk,Jcs For People With Learning Disabilitie,Supplies & Services
Leeds City Council as Accountable Body,Social Services Pooled Budgets,03/04/2019, 510.72 ,People In Action Leeds Uk,Jcs For People With Learning Disabilitie,Supplies & Services
Leeds City Council as Accountable Body,Social Services Pooled Budgets,04/04/2019, 191.52 ,People In Action Leeds Uk,Jcs For People With Learning Disabilitie,Supplies & Services
Leeds City Council as Accountable Body,Social Services Pooled Budgets,04/04/2019, 462.84 ,People In Action Leeds Uk,Jcs For People With Learning Disabilitie,Supplies & Services
Leeds City Council as Accountable Body,Social Services Pooled Budgets,04/04/2019, 478.80 ,People In Action Leeds Uk,Jcs For People With Learning Disabilitie,Supplies & Services
Leeds City Council as Accountable Body,Social Services Pooled Budgets,04/04/2019, 430.92 ,People In Action Leeds Uk,Jcs For People With Learning Disabilitie,Supplies & Services
Leeds City Council as Accountable Body,Social Services Pooled Budgets,04/04/2019, 861.84 ,People In Action Leeds Uk,Jcs For People With Learning Disabilitie,Supplies & Services
Leeds City Council as Accountable Body,Social Services Pooled Budgets,03/04/2019, 893.76 ,People In Action Leeds Uk,Jcs For People With Learning Disabilitie,Supplies & Services
Leeds City Council as Accountable Body,Social Services Pooled Budgets,03/04/2019," 1,532.16 ",People In Action Leeds Uk,Jcs For People With Learning Disabilitie,Supplies & Services
Leeds City Council as Accountable Body,Social Services Pooled Budgets,03/04/2019, 191.52 ,People In Action Leeds Uk,Jcs For People With Learning Disabilitie,Supplies & Services
Leeds City Council as Accountable Body,Social Services Pooled Budgets,03/04/2019, 319.20 ,People In Action Leeds Uk,Jcs For People With Learning Disabilitie,Supplies & Services
Leeds City Council as Accountable Body,Social Services Pooled Budgets,03/04/2019, 510.72 ,People In Action Leeds Uk,Jcs For People With Learning Disabilitie,Supplies & Services
Leeds City Council as Accountable Body,Social Services Pooled Budgets,03/04/2019, 399.00 ,People In Action Leeds Uk,Jcs For People With Learning Disabilitie,Supplies & Services
Leeds City Council as Accountable Body,Social Services Pooled Budgets,03/04/2019," 1,268.82 ",People In Action Leeds Uk,Jcs For People With Learning Disabilitie,Supplies & Services
Leeds City Council as Accountable Body,Social Services Pooled Budgets,03/04/2019, 255.36 ,People In Action Leeds Uk,Jcs For People With Learning Disabilitie,Supplies & Services
Leeds City Council as Accountable Body,Social Services Pooled Budgets,03/04/2019, 638.40 ,People In Action Leeds Uk,Jcs For People With Learning Disabilitie,Supplies & Services
Leeds City Council as Accountable Body,Social Services Pooled Budgets,03/04/2019, 383.04 ,People In Action Leeds Uk,Jcs For People With Learning Disabilitie,Supplies & Services
Leeds City Council as Accountable Body,Social Services Pooled Budgets,03/04/2019, 383.04 ,People In Action Leeds Uk,Jcs For People With Learning Disabilitie,Supplies & Services
Leeds City Council as Accountable Body,Social Services Pooled Budgets,03/04/2019, 255.36 ,People In Action Leeds Uk,Jcs For People With Learning Disabilitie,Supplies & Services
Leeds City Council as Accountable Body,Social Services Pooled Budgets,03/04/2019," 1,396.50 ",People In Action Leeds Uk,Jcs For People With Learning Disabilitie,Supplies & Services
Leeds City Council as Accountable Body,Social Services Pooled Budgets,03/04/2019, 191.52 ,People In Action Leeds Uk,Jcs For People With Learning Disabilitie,Supplies & Services
Leeds City Council as Accountable Body,Social Services Pooled Budgets,03/04/2019, 638.40 ,People In Action Leeds Uk,Jcs For People With Learning Disabilitie,Supplies & Services
Leeds City Council as Accountable Body,Social Services Pooled Budgets,03/04/2019," 1,005.48 ",People In Action Leeds Uk,Jcs For People With Learning Disabilitie,Supplies & Services
Leeds City Council as Accountable Body,Social Services Pooled Budgets,03/04/2019, 383.04 ,People In Action Leeds Uk,Jcs For People With Learning Disabilitie,Supplies & Services
Leeds City Council as Accountable Body,Social Services Pooled Budgets,03/04/2019," 1,021.44 ",People In Action Leeds Uk,Jcs For People With Learning Disabilitie,Supplies & Services
Leeds City Council as Accountable Body,Social Services Pooled Budgets,12/04/2019," 1,212.96 ",People In Action Leeds Uk,Jcs For People With Learning Disabilitie,Supplies & Services
Leeds City Council as Accountable Body,Social Services Pooled Budgets,03/04/2019," 1,500.24 ",People In Action Leeds Uk,Jcs For People With Learning Disabilitie,Supplies & Services
Leeds City Council as Accountable Body,Social Services Pooled Budgets,03/04/2019," 1,189.02 ",People In Action Leeds Uk,Jcs For People With Learning Disabilitie,Supplies & Services
Leeds City Council as Accountable Body,Social Services Pooled Budgets,04/04/2019, 430.92 ,People In Action Leeds Uk,Jcs For People With Learning Disabilitie,Supplies & Services
Leeds City Council as Accountable Body,Social Services Pooled Budgets,11/04/2019," 2,074.80 ",People In Action Leeds Uk,Jcs For People With Learning Disabilitie,Supplies & Services
Leeds City Council as Accountable Body,Social Services Pooled Budgets,11/04/2019, 159.60 ,People In Action Leeds Uk,Jcs For People With Learning Disabilitie,Supplies & Services
Leeds City Council as Accountable Body,Social Services Pooled Budgets,11/04/2019, 223.44 ,People In Action Leeds Uk,Jcs For People With Learning Disabilitie,Supplies & Services
Leeds City Council as Accountable Body,Social Services Pooled Budgets,11/04/2019, 287.28 ,People In Action Leeds Uk,Jcs For People With Learning Disabilitie,Supplies & Services
Leeds City Council as Accountable Body,Social Services Pooled Budgets,11/04/2019," 1,835.40 ",People In Action Leeds Uk,Jcs For People With Learning Disabilitie,Supplies & Services
Leeds City Council as Accountable Body,Social Services Pooled Budgets,11/04/2019, 287.28 ,People In Action Leeds Uk,Jcs For People With Learning Disabilitie,Supplies & Services
Leeds City Council as Accountable Body,Social Services Pooled Budgets,11/04/2019," 2,010.96 ",People In Action Leeds Uk,Jcs For People With Learning Disabilitie,Supplies & Services
Leeds City Council as Accountable Body,Social Services Pooled Budgets,11/04/2019, 798.00 ,People In Action Leeds Uk,Jcs For People With Learning Disabilitie,Supplies & Services
Leeds City Council as Accountable Body,Social Services Pooled Budgets,04/04/2019," 1,181.04 ",People In Action Leeds Uk,Jcs For People With Learning Disabilitie,Supplies & Services
Leeds City Council as Accountable Body,Social Services Pooled Budgets,04/04/2019, 462.84 ,People In Action Leeds Uk,Jcs For People With Learning Disabilitie,Supplies & Services
Leeds City Council as Accountable Body,Social Services Pooled Budgets,04/04/2019," 2,266.32 ",People In Action Leeds Uk,Jcs For People With Learning Disabilitie,Supplies & Services
Leeds City Council as Accountable Body,Social Services Pooled Budgets,03/04/2019, 333.60 ,Real Life Options,Jcs For People With Learning Disabilitie,Supplies & Services
Leeds City Council as Accountable Body,Social Services Pooled Budgets,03/04/2019, 667.20 ,Real Life Options,Jcs For People With Learning Disabilitie,Supplies & Services
Leeds City Council as Accountable Body,Social Services Pooled Budgets,02/04/2019," 28,618.08 ",Real Life Options,Jcs For People With Learning Disabilitie,Supplies & Services
Leeds City Council as Accountable Body,Social Services Pooled Budgets,02/04/2019," 23,189.88 ",Real Life Options,Jcs For People With Learning Disabilitie,Supplies & Services
Leeds City Council as Accountable Body,Social Services Pooled Budgets,03/04/2019, 889.60 ,Real Life Options,Jcs For People With Learning Disabilitie,Supplies & Services
Leeds City Council as Accountable Body,Social Services Pooled Budgets,03/04/2019, 389.20 ,Real Life Options,Jcs For People With Learning Disabilitie,Supplies & Services
Leeds City Council as Accountable Body,Social Services Pooled Budgets,03/04/2019, 611.60 ,Real Life Options,Jcs For People With Learning Disabilitie,Supplies & Services
Leeds City Council as Accountable Body,Social Services Pooled Budgets,03/04/2019, 444.80 ,Real Life Options,Jcs For People With Learning Disabilitie,Supplies & Services
Leeds City Council as Accountable Body,Social Services Pooled Budgets,02/04/2019," 29,069.60 ",Real Life Options,Jcs For People With Learning Disabilitie,Supplies & Services
Leeds City Council as Accountable Body,Social Services Pooled Budgets,26/04/2019, 736.70 ,Real Life Options,Jcs For People With Learning Disabilitie,Supplies & Services
Leeds City Council as Accountable Body,Social Services Pooled Budgets,11/04/2019, 444.80 ,Real Life Options,Jcs For People With Learning Disabilitie,Supplies & Services
Leeds City Council as Accountable Body,Social Services Pooled Budgets,11/04/2019, 667.20 ,Real Life Options,Jcs For People With Learning Disabilitie,Supplies & Services
Leeds City Council as Accountable Body,Social Services Pooled Budgets,03/04/2019, 889.60 ,Real Life Options,Jcs For People With Learning Disabilitie,Supplies & Services
Leeds City Council as Accountable Body,Social Services Pooled Budgets,03/04/2019, 556.00 ,Real Life Options,Jcs For People With Learning Disabilitie,Supplies & Services
Leeds City Council as Accountable Body,Social Services Pooled Budgets,03/04/2019, 333.60 ,Real Life Options,Jcs For People With Learning Disabilitie,Supplies & Services
Leeds City Council as Accountable Body,Social Services Pooled Budgets,11/04/2019, 667.20 ,Real Life Options,Jcs For People With Learning Disabilitie,Supplies & Services
Leeds City Council as Accountable Body,Social Services Pooled Budgets,11/04/2019, 889.60 ,Real Life Options,Jcs For People With Learning Disabilitie,Supplies & Services
Leeds City Council as Accountable Body,Social Services Pooled Budgets,11/04/2019, 278.00 ,Real Life Options,Jcs For People With Learning Disabilitie,Supplies & Services
Leeds City Council as Accountable Body,Social Services Pooled Budgets,11/04/2019, 278.00 ,Real Life Options,Jcs For People With Learning Disabilitie,Supplies & Services
Leeds City Council as Accountable Body,Social Services Pooled Budgets,11/04/2019, 973.00 ,Real Life Options,Jcs For People With Learning Disabilitie,Supplies & Services
Leeds City Council as Accountable Body,Social Services Pooled Budgets,11/04/2019, 736.70 ,Real Life Options,Jcs For People With Learning Disabilitie,Supplies & Services
Leeds City Council as Accountable Body,Social Services Pooled Budgets,11/04/2019, 667.20 ,Real Life Options,Jcs For People With Learning Disabilitie,Supplies & Services
Leeds City Council as Accountable Body,Social Services Pooled Budgets,11/04/2019, 889.60 ,Real Life Options,Jcs For People With Learning Disabilitie,Supplies & Services
Leeds City Council as Accountable Body,Social Services Pooled Budgets,03/04/2019, 65.70 ,Real Life Options,Jcs For People With Learning Disabilitie,Supplies & Services
Leeds City Council as Accountable Body,Social Services Pooled Budgets,11/04/2019, 111.20 ,Real Life Options,Jcs For People With Learning Disabilitie,Supplies & Services
Leeds City Council as Accountable Body,Social Services Pooled Budgets,02/04/2019, 370.65 ,Sanctuary Housing Association,Jcs For People With Learning Disabilitie,Supplies & Services
Leeds City Council as Accountable Body,Social Services Pooled Budgets,02/04/2019, 370.65 ,Sanctuary Housing Association,Jcs For People With Learning Disabilitie,Supplies & Services
Leeds City Council as Accountable Body,Social Services Pooled Budgets,26/04/2019," 2,913.00 ",Sense,Jcs For People With Learning Disabilitie,Supplies & Services
Leeds City Council as Accountable Body,Social Services Pooled Budgets,02/04/2019," 2,913.00 ",Sense,Jcs For People With Learning Disabilitie,Supplies & Services
Leeds City Council as Accountable Body,Social Services Pooled Budgets,03/04/2019," 1,529.46 ",Health For All (Leeds),Jcs For People With Learning Disabilitie,Supplies & Services
Leeds City Council as Accountable Body,Social Services Pooled Budgets,05/04/2019, 679.76 ,Health For All (Leeds),Jcs For People With Learning Disabilitie,Supplies & Services
Leeds City Council as Accountable Body,Social Services Pooled Budgets,02/04/2019, 441.84 ,United Response,Jcs For People With Learning Disabilitie,Supplies & Services
Leeds City Council as Accountable Body,Social Services Pooled Budgets,02/04/2019, 441.84 ,United Response,Jcs For People With Learning Disabilitie,Supplies & Services
Leeds City Council as Accountable Body,Social Services Pooled Budgets,02/04/2019, 441.84 ,United Response,Jcs For People With Learning Disabilitie,Supplies & Services
Leeds City Council as Accountable Body,Social Services Pooled Budgets,02/04/2019, 441.84 ,United Response,Jcs For People With Learning Disabilitie,Supplies & Services
Leeds City Council as Accountable Body,Social Services Pooled Budgets,12/04/2019,"-4,000.00 ",United Response,Jcs For People With Learning Disabilitie,Supplies & Services
Leeds City Council as Accountable Body,Social Services Pooled Budgets,02/04/2019," 4,441.84 ",United Response,Jcs For People With Learning Disabilitie,Supplies & Services
Leeds City Council as Accountable Body,Social Services Pooled Budgets,02/04/2019, 441.84 ,United Response,Jcs For People With Learning Disabilitie,Supplies & Services
Leeds City Council as Accountable Body,Social Services Pooled Budgets,02/04/2019, 441.84 ,United Response,Jcs For People With Learning Disabilitie,Supplies & Services
Leeds City Council as Accountable Body,Social Services Pooled Budgets,02/04/2019, 441.84 ,United Response,Jcs For People With Learning Disabilitie,Supplies & Services
Leeds City Council as Accountable Body,Social Services Pooled Budgets,02/04/2019, 441.84 ,United Response,Jcs For People With Learning Disabilitie,Supplies & Services
Leeds City Council as Accountable Body,Social Services Pooled Budgets,02/04/2019, 284.04 ,United Response,Jcs For People With Learning Disabilitie,Supplies & Services
Leeds City Council as Accountable Body,Social Services Pooled Budgets,17/04/2019, 239.72 ,Affinity Trust,Services For Older People - 65 And Over,Supplies & Services
Leeds City Council as Accountable Body,Social Services Pooled Budgets,18/04/2019, 175.78 ,Affinity Trust,Services For Older People - 65 And Over,Supplies & Services
Leeds City Council as Accountable Body,Social Services Pooled Budgets,29/04/2019, 133.92 ,St Annes Community Services,Jcs For People With Learning Disabilitie,Supplies & Services
Leeds City Council as Accountable Body,Social Services Pooled Budgets,12/04/2019," 47,792.08 ",St Annes Community Services,Jcs For People With Learning Disabilitie,Supplies & Services
Leeds City Council as Accountable Body,Social Services Pooled Budgets,12/04/2019," 49,779.80 ",St Annes Community Services,Jcs For People With Learning Disabilitie,Supplies & Services
Leeds City Council as Accountable Body,Social Services Pooled Budgets,12/04/2019," 19,486.60 ",St Annes Community Services,Jcs For People With Learning Disabilitie,Supplies & Services
Leeds City Council as Accountable Body,Social Services Pooled Budgets,12/04/2019," 20,189.68 ",St Annes Community Services,Jcs For People With Learning Disabilitie,Supplies & Services
Leeds City Council as Accountable Body,Social Services Pooled Budgets,12/04/2019," 45,179.40 ",St Annes Community Services,Jcs For People With Learning Disabilitie,Supplies & Services
Leeds City Council as Accountable Body,Social Services Pooled Budgets,12/04/2019," 21,125.80 ",St Annes Community Services,Jcs For People With Learning Disabilitie,Supplies & Services
Leeds City Council as Accountable Body,Social Services Pooled Budgets,12/04/2019," 50,109.64 ",St Annes Community Services,Jcs For People With Learning Disabilitie,Supplies & Services
Leeds City Council as Accountable Body,Social Services Pooled Budgets,12/04/2019," 111,939.48 ",St Annes Community Services,Jcs For People With Learning Disabilitie,Supplies & Services
Leeds City Council as Accountable Body,Social Services Pooled Budgets,12/04/2019," 21,109.76 ",St Annes Community Services,Jcs For People With Learning Disabilitie,Supplies & Services
Leeds City Council as Accountable Body,Social Services Pooled Budgets,15/04/2019," 127,915.56 ",St Annes Community Services,Jcs For People With Learning Disabilitie,Supplies & Services
Leeds City Council as Accountable Body,Social Services Pooled Budgets,26/04/2019," 44,996.39 ",Aspire Services (Leeds) Limited,Jcs For People With Learning Disabilitie,Supplies & Services
Leeds City Council as Accountable Body,Social Services Pooled Budgets,26/04/2019," 1,778,334.78 ",Aspire Services (Leeds) Limited,Jcs For People With Learning Disabilitie,Supplies & Services
Leeds City Council as Accountable Body,Social Services Pooled Budgets,05/04/2019," 1,817.44 ",Be Caring Ltd,Jcs For People With Learning Disabilitie,Supplies & Services
Leeds City Council as Accountable Body,Social Services Pooled Budgets,10/04/2019, 741.21 ,Be Caring Ltd,Services For Older People Under 65 P/Dis,Supplies & Services
Leeds City Council as Accountable Body,Social Services Pooled Budgets,05/04/2019, 146.66 ,Harrogate Skills 4  Living Centre,Jcs For People With Learning Disabilitie,Supplies & Services
Leeds City Council as Accountable Body,Social Services Pooled Budgets,05/04/2019, 65.33 ,Harrogate Skills 4  Living Centre,Jcs For People With Learning Disabilitie,Supplies & Services
Leeds City Council as Accountable Body,Social Services Pooled Budgets,11/04/2019, 111.00 ,Henshaws Society For Blind People,Jcs For People With Learning Disabilitie,Supplies & Services
Leeds City Council as Accountable Body,Social Services Pooled Budgets,29/04/2019, 187.65 ,Real Life Options,Jcs For People With Learning Disabilitie,Supplies & Services
Leeds City Council as Accountable Body,Social Services Pooled Budgets,18/04/2019," 1,400.00 ",Specialist Autism Services,Jcs For People With Learning Disabilitie,Supplies & Services
Leeds City Council as Accountable Body,Social Services Pooled Budgets,12/04/2019," 21,706.44 ",United Response,Jcs For People With Learning Disabilitie,Supplies & Services
Leeds City Council as Accountable Body,Social Services Pooled Budgets,11/04/2019," 84,509.92 ",St Annes Community Services,Jcs For People With Learning Disabilitie,Supplies & Services
Leeds City Council as Accountable Body,Social Services Pooled Budgets,11/04/2019," 83,825.53 ",St Annes Community Services,Jcs For People With Learning Disabilitie,Supplies & Services
Leeds City Council as Accountable Body,Social Services Pooled Budgets,12/04/2019," 83,805.53 ",St Annes Community Services,Jcs For People With Learning Disabilitie,Supplies & Services
Leeds City Council as Accountable Body,Social Services Pooled Budgets,03/04/2019," 349,736.68 ",St Annes Residential Care,Assessment And Care Management,Supplies & Services
Leeds City Council as Accountable Body,Social Services Pooled Budgets,03/04/2019," 7,732.74 ",Catholic Care Diocese Of Leeds,Jcs For People With Learning Disabilitie,Supplies & Services
Leeds City Council as Accountable Body,Social Services Pooled Budgets,03/04/2019," 5,248.48 ",The Croft,Jcs For People With Learning Disabilitie,Supplies & Services
Leeds City Council as Accountable Body,Social Services Pooled Budgets,03/04/2019," 10,801.72 ",Mencap,Jcs For People With Learning Disabilitie,Supplies & Services
Leeds City Council as Accountable Body,Social Services Pooled Budgets,03/04/2019," 2,625.16 ",Henshaw Yokshire,Services For Older People Under 65 P/Dis,Supplies & Services
Leeds City Council as Accountable Body,Social Services Pooled Budgets,03/04/2019," 132,461.44 ",Affinity Trust North Divisional Office,Jcs For People With Learning Disabilitie,Supplies & Services
Leeds City Council as Accountable Body,Social Services Pooled Budgets,03/04/2019," 219,782.01 ",Home Farm Trust Ltd,Jcs For People With Learning Disabilitie,Supplies & Services
Leeds City Council as Accountable Body,Social Services Pooled Budgets,03/04/2019," 75,920.10 ",Catholic Care Diocese Of Leeds,Jcs For People With Learning Disabilitie,Supplies & Services
Leeds City Council as Accountable Body,Social Services Pooled Budgets,03/04/2019," 28,861.73 ",Catholic Care Diocese Of Leeds,Jcs For People With Learning Disabilitie,Supplies & Services
Leeds City Council as Accountable Body,Social Services Pooled Budgets,03/04/2019," 21,935.60 ",Wilfward Family Trust,Jcs For People With Learning Disabilitie,Supplies & Services
Leeds City Council as Accountable Body,Social Services Pooled Budgets,03/04/2019," 9,957.44 ",The Wilf Ward Family Trust,Jcs For People With Learning Disabilitie,Supplies & Services
Leeds City Council as Accountable Body,Social Services Pooled Budgets,03/04/2019," 9,522.76 ",L'Arche Preston,Jcs For People With Learning Disabilitie,Supplies & Services
Leeds City Council as Accountable Body,Social Services Pooled Budgets,03/04/2019," 194,783.00 ",Real Life Options,Jcs For People With Learning Disabilitie,Supplies & Services
Leeds City Council as Accountable Body,Social Services Pooled Budgets,03/04/2019," 49,778.24 ",Community Integrated Care,Jcs For People With Learning Disabilitie,Supplies & Services
Leeds City Council as Accountable Body,Social Services Pooled Budgets,03/04/2019," 74,227.47 ",St Annes Residential Care,Assessment And Care Management,Supplies & Services
Leeds City Council as Accountable Body,Social Services Pooled Budgets,17/04/2019, 191.52 ,People In Action Leeds Uk,Jcs For People With Learning Disabilitie,Supplies & Services
Leeds City Council as Accountable Body,Social Services Pooled Budgets,17/04/2019, 766.08 ,People In Action Leeds Uk,Jcs For People With Learning Disabilitie,Supplies & Services
Leeds City Council as Accountable Body,Social Services Pooled Budgets,17/04/2019, 191.52 ,People In Action Leeds Uk,Jcs For People With Learning Disabilitie,Supplies & Services
Leeds City Council as Accountable Body,Social Services Pooled Budgets,08/04/2019, 108.00 ,Pyramid Of Arts,Jcs For People With Learning Disabilitie,Supplies & Services
Leeds City Council as Accountable Body,Social Services Pooled Budgets,01/04/2019, 108.00 ,Pyramid Of Arts,Jcs For People With Learning Disabilitie,Supplies & Services
Leeds City Council as Accountable Body,Social Services Pooled Budgets,23/04/2019, 160.00 ,Purple Patch Arts,Jcs For People With Learning Disabilitie,Supplies & Services
Leeds City Council as Accountable Body,Social Services Pooled Budgets,18/04/2019, 108.00 ,Pyramid Of Arts,Jcs For People With Learning Disabilitie,Supplies & Services
Leeds City Council as Accountable Body,Social Services Pooled Budgets,26/04/2019," 3,814.24 ",Specialist Autism Services,Services For Adults Under 65 Mental/Dis,Supplies & Services
Leeds City Council as Accountable Body,Social Services Pooled Budgets,17/04/2019, 609.04 ,Specialist Autism Services,Jcs For People With Learning Disabilitie,Supplies & Services
Leeds City Council as Accountable Body,Social Services Pooled Budgets,09/04/2019," 6,613.68 ",Together Housing Association Ltd,Jcs For People With Learning Disabilitie,Supplies & Services
Leeds City Council as Accountable Body,Social Services Pooled Budgets,18/04/2019, 135.71 ,Wilf Ward Family Trust,Jcs For People With Learning Disabilitie,Supplies & Services
Leeds City Council as Accountable Body,Social Services Pooled Budgets,12/04/2019, 55.92 ,Wilf Ward Family Trust,Jcs For People With Learning Disabilitie,Supplies & Services
Leeds City Council as Accountable Body,Social Services Pooled Budgets,10/04/2019, 74.56 ,Wilf Ward Family Trust,Jcs For People With Learning Disabilitie,Supplies & Services
Leeds City Council as Accountable Body,Social Services Pooled Budgets,10/04/2019, 119.88 ,Wilf Ward Family Trust,Jcs For People With Learning Disabilitie,Supplies & Services
Leeds City Council as Accountable Body,Social Services Pooled Budgets,04/04/2019," 49,177.80 ",Wilf Ward Family Trust,Jcs For People With Learning Disabilitie,Supplies & Services
Leeds City Council as Accountable Body,Social Services Pooled Budgets,03/04/2019, 129.20 ,Wilf Ward Family Trust,Jcs For People With Learning Disabilitie,Supplies & Services
Leeds City Council as Accountable Body,Social Services Pooled Budgets,02/04/2019, 55.92 ,Wilf Ward Family Trust,Jcs For People With Learning Disabilitie,Supplies & Services
Leeds City Council as Accountable Body,Social Services Pooled Budgets,03/04/2019, 65.24 ,Wilf Ward Family Trust,Jcs For People With Learning Disabilitie,Supplies & Services
Leeds City Council as Accountable Body,Social Services Pooled Budgets,03/04/2019, 131.37 ,Wilf Ward Family Trust,Jcs For People With Learning Disabilitie,Supplies & Services
Leeds City Council as Accountable Body,Social Services Pooled Budgets,03/04/2019, 136.99 ,Wilf Ward Family Trust,Jcs For People With Learning Disabilitie,Supplies & Services
Leeds City Council as Accountable Body,Social Services Pooled Budgets,24/04/2019," 1,332.20 ",Adult Placement Services,Jcs For People With Learning Disabilitie,Supplies & Services
Leeds City Council as Accountable Body,Social Services Pooled Budgets,24/04/2019," 1,332.20 ",Adult Placement Services,Jcs For People With Learning Disabilitie,Supplies & Services
Leeds City Council as Accountable Body,Social Services Pooled Budgets,25/04/2019," 1,332.20 ",Adult Placement Services,Jcs For People With Learning Disabilitie,Supplies & Services
Leeds City Council as Accountable Body,Social Services Pooled Budgets,09/04/2019,-40.00 ,Leep1,Jcs For People With Learning Disabilitie,Supplies & Services
Leeds City Council as Accountable Body,Social Services Pooled Budgets,09/04/2019, 160.00 ,Leep1,Jcs For People With Learning Disabilitie,Supplies & Services
Leeds City Council as Accountable Body,Social Services Pooled Budgets,05/04/2019, 757.75 ,Leeds Jewish Welfare Board,Jcs For People With Learning Disabilitie,Supplies & Services
Leeds City Council as Accountable Body,Social Services Pooled Budgets,03/04/2019," 1,242.02 ",Larchfield Residential Home,Assessment And Care Management,Supplies & Services
Leeds City Council as Accountable Body,Social Services Pooled Budgets,03/04/2019," 141,845.51 ",St Annes Residential Care,Assessment And Care Management,Supplies & Services
Leeds City Council as Accountable Body,Social Services Pooled Budgets,03/04/2019," 11,941.84 ",The David Lewis Centre,Jcs For People With Learning Disabilitie,Supplies & Services
Leeds City Council as Accountable Body,Social Services Pooled Budgets,03/04/2019," 62,106.72 ",Hollybank Trust,Jcs For People With Learning Disabilitie,Supplies & Services
Leeds City Council as Accountable Body,Social Services Pooled Budgets,03/04/2019," 38,427.72 ",Leeds Autism Services,Jcs For People With Learning Disabilitie,Supplies & Services
Leeds City Council as Accountable Body,Social Services Pooled Budgets,03/04/2019," 2,488.28 ",Harry Priestley House,Jcs For People With Learning Disabilitie,Supplies & Services
Leeds City Council as Accountable Body,Social Services Pooled Budgets,03/04/2019," 4,563.22 ",Brookvale (For The Mentally,Jcs For People With Learning Disabilitie,Supplies & Services
Leeds City Council as Accountable Body,Social Services Pooled Budgets,03/04/2019," 2,668.44 ",Newland Hurst,Jcs For People With Learning Disabilitie,Supplies & Services
Leeds City Council as Accountable Body,Social Services Pooled Budgets,03/04/2019," 10,926.20 ",Henshaw Yokshire,Services For Older People Under 65 P/Dis,Supplies & Services
Leeds City Council as Accountable Body,Social Services Pooled Budgets,03/04/2019," 64,239.33 ",Home Farm Trust Ltd,Jcs For People With Learning Disabilitie,Supplies & Services
Leeds City Council as Accountable Body,Social Services Pooled Budgets,03/04/2019," 7,296.21 ",Catholic Care Diocese Of Leeds,Jcs For People With Learning Disabilitie,Supplies & Services
Leeds City Council as Accountable Body,Social Services Pooled Budgets,03/04/2019," 10,780.36 ",Saint John Of God Hospitaller Services,Services For Older People Under 65 P/Dis,Supplies & Services
Leeds City Council as Accountable Body,Social Services Pooled Budgets,03/04/2019," 7,399.72 ",Leonard Cheshire Disability,Services For Older People Under 65 P/Dis,Supplies & Services
Leeds City Council as Accountable Body,Social Services Pooled Budgets,03/04/2019," 46,935.28 ",Lily Thompson House,Services For Older People - 65 And Over,Supplies & Services
Leeds City Council as Accountable Body,Social Services Pooled Budgets,03/04/2019," 12,000.52 ",Hollybank Trust,Services For Older People Under 65 P/Dis,Supplies & Services
Leeds City Council as Accountable Body,Social Services Pooled Budgets,03/04/2019," 13,733.68 ",Community Integrated Care,Jcs For People With Learning Disabilitie,Supplies & Services
Leeds City Council as Accountable Body,Social Services Pooled Budgets,03/04/2019," 35,742.14 ",Leeds Jewish Welfare Board,Jcs For People With Learning Disabilitie,Supplies & Services
Leeds City Council as Accountable Body,Social Services Pooled Budgets,03/04/2019," 59,346.42 ",Sense,Jcs For People With Learning Disabilitie,Supplies & Services
Leeds City Council as Accountable Body,Social Services Pooled Budgets,03/04/2019," 31,128.34 ",The Rookery,Jcs For People With Learning Disabilitie,Supplies & Services
Leeds City Council as Accountable Body,Social Services Pooled Budgets,03/04/2019," 38,033.44 ",Lynda Cohen House,Services For Older People - 65 And Over,Supplies & Services
Leeds City Council as Accountable Body,Social Services Pooled Budgets,26/04/2019, 747.69 ,Affinity Trust,Jcs For People With Learning Disabilitie,Supplies & Services
Leeds City Council as Accountable Body,Social Services Pooled Budgets,05/04/2019," 31,082.00 ",Leeds Centre For Integrated Living,Jcs For People With Learning Disabilitie,Supplies & Services
Leeds City Council,Adults and Health,31/05/2019, 120.00 ,Airedale Community Trading (Act) Ltd,Assessment And Care Management,Supplies & Services
Leeds City Council,Adults and Health,02/05/2019, 120.00 ,Airedale Community Trading (Act) Ltd,Assessment And Care Management,Supplies & Services
Leeds City Council,Adults and Health,10/05/2019, 587.84 ,St Annes Community Services,Assessment And Care Management,Supplies & Services
